Workbook

Sheet ReadMe
L2: Model Inputs
L3: Client Name | M3: Example Municipality
L4: Billing UOM | M4: gal
L5: Billing Period | M5: Quarter
L6: Starting Fiscal Year in Model | M6: 2018
L7: Starting Month in Model | M7: June
L8: AMHI (Census Data) | M8: 58333
L9: Model Duration (yr) | M9: 25
L11: Worksheet Tab Legend:
L12: Calculations
L13: Data Inputs
L14: Summary Tables
L15: Graphs
L18: Cell Legend:
L19: User Input
L20: Client Input

Sheet Reported Revenue
A1: Notes/Assumptions: Revenue data from FY2018 Revenue Control Report and 2019 Adopted BudgetSEWER. Starting Account Balance from 10/31/18 email from Treasurer.
A4: Account Balances
A5: Account | B5: Total
A6: Working Capital Carried Over from previous Year (for Operating Expenses) | B6: 407091
A7: Client Account Name | B7: Sewer Money Market
A8: Usage Revenue | E8: Calculated
A9: Account | B9: Notes | C9: FY18 (Given) | E9: Metered | F9: Unmetered | G9: Total | H9: Difference
A10: Sewer Rents | B10: GG-2120-00 | C10: 576557.17 | E10: =SUM('Y0 Calculated Revenue'!O7:Z1048576) -> 79979.625 | F10: =SUM(Nonmeter[Calculated Yearly Revenue]) -> 494646.9 | G10: =E10+F10 -> 574626.525 | H10: =1-(UseRevY0/CalculatedMeteredRevY0) -> -0.003359825758
A12: Other Revenue | C12: (Given) | E12: (Calculated)
C13: =ReadMe!M6 -> 2018 | D13: =C13+1 -> 2019 | E13: =D13+1 -> 2020 | F13: 2021 | G13: 2022 | H13: 2023 | I13: 2024 | J13: 2025 | K13: 2026 | L13: 2027 | M13: 2028 | N13: 2029 | O13: =N13+1 -> 2030 | P13: =O13+1 -> 2031 | Q13: =P13+1 -> 2032 | R13: =Q13+1 -> 2033 | S13: =R13+1 -> 2034 | T13: =S13+1 -> 2035 | U13: =T13+1 -> 2036 | V13: =U13+1 -> 2037 | W13: =V13+1 -> 2038 | X13: =W13+1 -> 2039 | Y13: =X13+1 -> 2040 | Z13: =Y13+1 -> 2041 | AA13: =Z13+1 -> 2042 | AB13: 2043
A14: Account | B14: Notes | C14: Y0 | D14: Y1 | E14: Y2 | F14: Y3 | G14: Y4 | H14: Y5 | I14: Y6 | J14: Y7 | K14: Y8 | L14: Y9 | M14: Y10 | N14: Y11 | O14: Y12 | P14: Y13 | Q14: Y14 | R14: Y15 | S14: Y16 | T14: Y17 | U14: Y18 | V14: Y19 | W14: Y20 | X14: Y21 | Y14: Y22 | Z14: Y23 | AA14: Y24 | AB14: Y25
A15: Other Revenue not included per client request. | C15: 0 | D15: 0 | E15: =OtherRev[[#This Row],[Y1]] -> 0 | F15: =OtherRev[[#This Row],[Y2]] -> 0 | G15: =OtherRev[[#This Row],[Y3]] -> 0 | H15: =OtherRev[[#This Row],[Y4]] -> 0 | I15: =OtherRev[[#This Row],[Y5]] -> 0 | J15: =OtherRev[[#This Row],[Y6]] -> 0 | K15: =OtherRev[[#This Row],[Y7]] -> 0 | L15: =OtherRev[[#This Row],[Y8]] -> 0 | M15: =OtherRev[[#This Row],[Y9]] -> 0 | N15: =OtherRev[[#This Row],[Y10]] -> 0 | O15: =OtherRev[[#This Row],[Y11]] -> 0 | P15: =OtherRev[[#This Row],[Y12]] -> 0 | Q15: =OtherRev[[#This Row],[Y13]] -> 0 | R15: =OtherRev[[#This Row],[Y14]] -> 0 | S15: =OtherRev[[#This Row],[Y15]] -> 0 | T15: =OtherRev[[#This Row],[Y16]] -> 0 | U15: =OtherRev[[#This Row],[Y17]] -> 0 | V15: =OtherRev[[#This Row],[Y18]] -> 0 | W15: =OtherRev[[#This Row],[Y19]] -> 0 | X15: =OtherRev[[#This Row],[Y20]] -> 0 | Y15: =OtherRev[[#This Row],[Y21]] -> 0 | Z15: =OtherRev[[#This Row],[Y22]] -> 0 | AA15: =OtherRev[[#This Row],[Y23]] -> 0 | AB15: =OtherRev[[#This Row],[Y24]] -> 0
C16: 0 | D16: 0 | E16: =OtherRev[[#This Row],[Y1]] -> 0 | F16: =OtherRev[[#This Row],[Y2]] -> 0 | G16: =OtherRev[[#This Row],[Y3]] -> 0 | H16: =OtherRev[[#This Row],[Y4]] -> 0 | I16: =OtherRev[[#This Row],[Y5]] -> 0 | J16: =OtherRev[[#This Row],[Y6]] -> 0 | K16: =OtherRev[[#This Row],[Y7]] -> 0 | L16: =OtherRev[[#This Row],[Y8]] -> 0 | M16: =OtherRev[[#This Row],[Y9]] -> 0 | N16: =OtherRev[[#This Row],[Y10]] -> 0 | O16: =OtherRev[[#This Row],[Y11]] -> 0 | P16: =OtherRev[[#This Row],[Y12]] -> 0 | Q16: =OtherRev[[#This Row],[Y13]] -> 0 | R16: =OtherRev[[#This Row],[Y14]] -> 0 | S16: =OtherRev[[#This Row],[Y15]] -> 0 | T16: =OtherRev[[#This Row],[Y16]] -> 0 | U16: =OtherRev[[#This Row],[Y17]] -> 0 | V16: =OtherRev[[#This Row],[Y18]] -> 0 | W16: =OtherRev[[#This Row],[Y19]] -> 0 | X16: =OtherRev[[#This Row],[Y20]] -> 0 | Y16: =OtherRev[[#This Row],[Y21]] -> 0 | Z16: =OtherRev[[#This Row],[Y22]] -> 0 | AA16: =OtherRev[[#This Row],[Y23]] -> 0 | AB16: =OtherRev[[#This Row],[Y24]] -> 0
C17: 0 | D17: 0 | E17: =OtherRev[[#This Row],[Y1]] -> 0 | F17: =OtherRev[[#This Row],[Y2]] -> 0 | G17: =OtherRev[[#This Row],[Y3]] -> 0 | H17: =OtherRev[[#This Row],[Y4]] -> 0 | I17: =OtherRev[[#This Row],[Y5]] -> 0 | J17: =OtherRev[[#This Row],[Y6]] -> 0 | K17: =OtherRev[[#This Row],[Y7]] -> 0 | L17: =OtherRev[[#This Row],[Y8]] -> 0 | M17: =OtherRev[[#This Row],[Y9]] -> 0 | N17: =OtherRev[[#This Row],[Y10]] -> 0 | O17: =OtherRev[[#This Row],[Y11]] -> 0 | P17: =OtherRev[[#This Row],[Y12]] -> 0 | Q17: =OtherRev[[#This Row],[Y13]] -> 0 | R17: =OtherRev[[#This Row],[Y14]] -> 0 | S17: =OtherRev[[#This Row],[Y15]] -> 0 | T17: =OtherRev[[#This Row],[Y16]] -> 0 | U17: =OtherRev[[#This Row],[Y17]] -> 0 | V17: =OtherRev[[#This Row],[Y18]] -> 0 | W17: =OtherRev[[#This Row],[Y19]] -> 0 | X17: =OtherRev[[#This Row],[Y20]] -> 0 | Y17: =OtherRev[[#This Row],[Y21]] -> 0 | Z17: =OtherRev[[#This Row],[Y22]] -> 0 | AA17: =OtherRev[[#This Row],[Y23]] -> 0 | AB17: =OtherRev[[#This Row],[Y24]] -> 0

Sheet Y0 Operating Cost Allocation
A1: Notes/Assumptions: Cost data taken from ExpControlReport2018.xlsx Allocations made using best judgment.
A2: Operating Cost Allocation
A3: This section is to account for multiple sources of costs for each catergory listed on the "Fixed v. Variable Costs" tab. The categories below are the summation of the City's costs on the right and are tied to the appropriate cells on the "Fixed v. Variable Costs" tab:
A4: Item | C4: Total | E4: DEPT | F4: Fund | G4: Description | H4: =ReadMe!M6 -> 2018 | I4: Cost Category
A5: Salaries & Benefits for Administration Staff | B5: A - Salaries/Benefits Admin | C5: =SUMIF($I:$I,B5,$H:$H) -> 0
A6: Billing, Office Operation & Utilities, Rent & Other Overhead | B6: B - Other overhead | C6: =SUMIF($I:$I,B6,$H:$H) -> 0 | E6: GG Sewer Fund | H6: End Bal
A7: Insurance & Bonding | B7: C - Insurance/Bond | C7: =SUMIF($I:$I,B7,$H:$H) -> 47623.72 | F7: GG-1620-21 | G7: BUILDINGS.UPGRADE | H7: 0 | I7: M -Maint
A8: Accounting, Legal, Engineering & Other Professional Services | B8: D - Professional Services | C8: =SUMIF($I:$I,B8,$H:$H) -> 29910.92 | F8: GG-1990-40 | G8: CONTINGENT ACCOUNT | H8: 0 | I8: B - Other overhead
A9: Debt Repayment & Related Expenses | B9: E - Debt Repayment | C9: =SUMIF($I:$I,B9,$H:$H) -> 70276.04 | F9: GG-8020-40 | G9: ENGINEERS | H9: 8924.2 | I9: D - Professional Services
A10: 15% Grant Responsibility | B10: F - Grant Responsibility | C10: =SUMIF($I:$I,B10,$H:$H) -> 62961.43 | F10: GG-8110-40 | G10: SEWER | H10: 5579.03 | I10: D - Professional Services
A11: Capital Reserve Payments | B11: G - Other Reserve | C11: 0 | G11: ADMIN.CONTRACTUAL
A12: Salaries & Benefits for Operations Staff | B12: H - Salaries/Benefits Ops | C12: 51049.29 | F12: GG-8120-10 | G12: SANITARY SEWERS.PAYROLL | H12: 8519.04 | I12: H - Salaries/Benefits Ops
A13: Utilities for Operations | B13: I - Utilties Ops | C13: 6902.48 | F13: GG-8120-11 | G13: SANITARY SEWERS.N MAIN | H13: 0
A14: Operating Supplies & Equipment | B14: J - Op Supplies/Equip | C14: 203897.58 | G14: STREET
A15: Chemicals | B15: K - Chemicals | C15: 1259.82 | F15: GG-8120-20 | G15: SANITARY | H15: 61978.84 | I15: J - Op Supplies/Equip
A16: Equipment Leases | B16: L - Equip Leases | C16: 2315.95 | G16: SEWERS.EQUIPMENT
A17: Regular Maintenance & Repairs | B17: M -Maint | C17: 13923.87 | F17: GG-8120-40 | G17: SANITARY | H17: 15407.69 | I17: D - Professional Services
A18: Auto & Other Rolling Stock | B18: N - Stock | C18: 0 | G18: SEWERS.CONTRACTUAL
A19: Permits, Training | B19: O - Permits/Training | C19: 0 | F19: GG-8120-42 | G19: SANITARY | H19: 0
A20: Taxes and Franchise Fees | B20: P - Taxes and Franchise Fees | C20: 0 | G20: SEWERS.UNAPPROP FUNDS
A21: Capital Replacement & Improvement | B21: Q - Capital | C21: 0 | F21: GG-8130-11 | G21: SEWAGE TREATDISP.SUPE | H21: 4020.34 | I21: H - Salaries/Benefits Ops
A22: Electricity for Operations | B22: R - Electricity | C22: 14424.01 | F22: GG-8130-12 | G22: SEWAGE TREATDISP.PLANT | H22: 114058.91 | I22: J - Op Supplies/Equip
A23: Sludge Disposal | B23: S - Sludge Disposal | C23: 20385.08 | G23: OPS
B24: Total | C24: =SUM(C5:C23) -> 524930.19 | F24: GG-8130-20 | G24: SEWAGE | H24: 26213.41 | I24: J - Op Supplies/Equip
G25: TREATDISP.EQUIPMENT
C26: =IF(SUM(H$7:H$1048576)=SUM(C5:C23), "QAQC Checks", "REDO QAQC") -> QAQC Checks | F26: GG-8130-40 | G26: SEWAGE TREATDISP.MAINT | H26: 13923.87 | I26: M -Maint
F27: GG-8130-41 | G27: SEWAGE TREATDISP.PLANT | H27: 914.13 | I27: J - Op Supplies/Equip
G28: SUPPLY
F29: GG-8130-42 | G29: SEWAGE TREATDISP.LAB | H29: 732.29 | I29: J - Op Supplies/Equip
G30: SUPPLIES
F31: GG-8130-43 | G31: SEWAGE | H31: 14424.01 | I31: R - Electricity
G32: TREATDISP.ELECTRICITY
F33: GG-8130-44 | G33: SEWAGE TREATDISP.WATER | H33: 1212.02 | I33: I - Utilties Ops
F34: GG-8130-45 | G34: SEWAGE TREATDISP.GAS | H34: 5690.46 | I34: I - Utilties Ops
F35: GG-8130-46 | G35: SEWAGE TREATDISP.TRUCK | H35: 2315.95 | I35: L - Equip Leases
G36: EXP
F37: GG-8130-47 | G37: SEWAGE | H37: 8980.53 | I37: C - Insurance/Bond
G38: TREATDISP.INSURANCE
F39: GG-8130-48 | G39: SEWAGE TREATDISP.SLUDGE | H39: 20385.08 | I39: S - Sludge Disposal
G40: REMVL
F41: GG-8130-49 | G41: SEWAGE | H41: 1259.82 | I41: K - Chemicals
G42: TREATDISP.CHEMICALS
F43: GG-9010-80 | G43: STATE RETIREMENT | H43: 22719.29 | I43: H - Salaries/Benefits Ops
F44: GG-9030-80 | G44: SOCIAL SECURITY | H44: 9311.74 | I44: H - Salaries/Benefits Ops
F45: GG-9040-80 | G45: WORKERS COMPENSATION | H45: 6478.88 | I45: H - Salaries/Benefits Ops
F46: GG-9050-80 | G46: UNEMPLOYMENT | H46: 0 | I46: H - Salaries/Benefits Ops
F47: GG-9055-80 | G47: DISABILITY INSURANCE | H47: 123.19 | I47: C - Insurance/Bond
F48: GG-9060-80 | G48: HOSPITAL AND MEDICAL | H48: 30993.84 | I48: C - Insurance/Bond
G49: INSURANCE
F50: GG-9063-80 | G50: MEDICAL DEDUCTIBLE | H50: 7526.16 | I50: C - Insurance/Bond
F51: GG-9730-60 | G51: BOND ANTIC.WWTP | H51: 20000 | I51: E - Debt Repayment
G52: DIGESTER PRIN
F53: GG-9730-70 | G53: BOND ANTIC.WWTP | H53: 7037.5 | I53: E - Debt Repayment
G54: DIGESTER INT
F55: GG-9790-60 | G55: STATE LOANS.PRINCIPAL - | H55: 0 | I55: E - Debt Repayment
G56: 1996
F57: GG-9790-61 | G57: STATE LOANS.PRINCIPAL - | H57: 15000 | I57: E - Debt Repayment
G58: 2001
F59: GG-9790-70 | G59: STATE LOANS.INTEREST - | H59: 0 | I59: E - Debt Repayment
G60: 1996
F61: GG-9790-71 | G61: STATE LOANS.INTEREST - | H61: 916.43 | I61: E - Debt Repayment
G62: 2001
F63: GG-9790-80 | G63: STATE LOANS.PRIN FILTER - | H63: 25000 | I63: E - Debt Repayment
G64: 2004
F65: GG-9790-81 | G65: STATE LOANS.INT FILTER - | H65: 1760.11 | I65: E - Debt Repayment
G66: 2004
F67: GG-9790-90 | G67: STATE LOANS.ADMIN FEE | H67: 562 | I67: E - Debt Repayment
F68: GG-9950-90 | G68: TRANS CAP FUND | H68: 62961.43 | I68: F - Grant Responsibility
F69: GG-9950-91 | G69: TRANS TO SANITARY RES | H69: 0
G70: G231.S
F71: GG-9950-92 | G71: TRANS TO PLANT REPAIR | H71: 0
G72: G231.P
F73: GG-9950-93 | G73: TRANS TO EQUIP RESERVE | H73: 0
G74: G231.E

Sheet Y1 Operating Cost Allocation
A1: Notes/Assumptions: Cost data taken from 2019 Adopted BudgetSEWER. Allocations made using best judgment.
A2: Operating Cost Allocation
A3: This section is to account for multiple sources of costs for each catergory listed on the "Fixed v. Variable Costs" tab. The categories below are the summation of the Municipality's costs on the right and are tied to the appropriate cells on the "Fixed v. Variable Costs" tab:
A4: Item | C4: Total | E4: DEPT | F4: Fund | G4: Description | H4: ='Y0 Operating Cost Allocation'!H4+1 -> 2019 | I4: Cost Category
A5: ='Y0 Operating Cost Allocation'!A5 -> Salaries & Benefits for Administration Staff | B5: ='Y0 Operating Cost Allocation'!B5 -> A - Salaries/Benefits Admin | C5: =SUMIF($I:$I,B5,$H:$H) -> 0
A6: ='Y0 Operating Cost Allocation'!A6 -> Billing, Office Operation & Utilities, Rent & Other Overhead | B6: ='Y0 Operating Cost Allocation'!B6 -> B - Other overhead | C6: =SUMIF($I:$I,B6,$H:$H) -> 5000 | E6: GG Sewer Fund | H6: End Bal
A7: ='Y0 Operating Cost Allocation'!A7 -> Insurance & Bonding | B7: ='Y0 Operating Cost Allocation'!B7 -> C - Insurance/Bond | C7: 48843 | F7: GG-1620-21 | G7: BUILDINGS.UPGRADE | H7: 4000 | I7: M -Maint
A8: ='Y0 Operating Cost Allocation'!A8 -> Accounting, Legal, Engineering & Other Professional Services | B8: ='Y0 Operating Cost Allocation'!B8 -> D - Professional Services | C8: 90000 | F8: GG-1990-40 | G8: CONTINGENT ACCOUNT | H8: 5000 | I8: B - Other overhead
A9: ='Y0 Operating Cost Allocation'!A9 -> Debt Repayment & Related Expenses | B9: ='Y0 Operating Cost Allocation'!B9 -> E - Debt Repayment | C9: 71240.35 | F9: GG-8020-40 | G9: ENGINEERS | H9: 25000 | I9: D - Professional Services
A10: ='Y0 Operating Cost Allocation'!A10 -> 15% Grant Responsibility | B10: ='Y0 Operating Cost Allocation'!B10 -> F - Grant Responsibility | C10: 0 | F10: GG-8110-40 | G10: SEWER | H10: 5000 | I10: D - Professional Services
A11: ='Y0 Operating Cost Allocation'!A11 -> Capital Reserve Payments | B11: ='Y0 Operating Cost Allocation'!B11 -> G - Other Reserve | C11: 2066.15 | G11: ADMIN.CONTRACTUAL
A12: ='Y0 Operating Cost Allocation'!A12 -> Salaries & Benefits for Operations Staff | B12: ='Y0 Operating Cost Allocation'!B12 -> H - Salaries/Benefits Ops | C12: 62800 | F12: GG-8120-10 | G12: SANITARY SEWERS.PAYROLL | H12: 12000 | I12: H - Salaries/Benefits Ops
A13: ='Y0 Operating Cost Allocation'!A13 -> Utilities for Operations | B13: ='Y0 Operating Cost Allocation'!B13 -> I - Utilties Ops | C13: 9000 | F13: GG-8120-11 | G13: SANITARY SEWERS.N MAIN
A14: ='Y0 Operating Cost Allocation'!A14 -> Operating Supplies & Equipment | B14: ='Y0 Operating Cost Allocation'!B14 -> J - Op Supplies/Equip | C14: 224000 | G14: STREET
A15: ='Y0 Operating Cost Allocation'!A15 -> Chemicals | B15: ='Y0 Operating Cost Allocation'!B15 -> K - Chemicals | C15: 2000 | F15: GG-8120-20 | G15: SANITARY | H15: 50000 | I15: J - Op Supplies/Equip
A16: ='Y0 Operating Cost Allocation'!A16 -> Equipment Leases | B16: ='Y0 Operating Cost Allocation'!B16 -> L - Equip Leases | C16: 2500 | G16: SEWERS.EQUIPMENT
A17: ='Y0 Operating Cost Allocation'!A17 -> Regular Maintenance & Repairs | B17: ='Y0 Operating Cost Allocation'!B17 -> M -Maint | C17: 19000 | F17: GG-8120-40 | G17: SANITARY | H17: 60000 | I17: D - Professional Services
A18: ='Y0 Operating Cost Allocation'!A18 -> Auto & Other Rolling Stock | B18: ='Y0 Operating Cost Allocation'!B18 -> N - Stock | C18: 0 | G18: SEWERS.CONTRACTUAL
A19: ='Y0 Operating Cost Allocation'!A19 -> Permits, Training | B19: ='Y0 Operating Cost Allocation'!B19 -> O - Permits/Training | C19: 0 | F19: GG-8120-42 | G19: SANITARY
A20: ='Y0 Operating Cost Allocation'!A20 -> Taxes and Franchise Fees | B20: ='Y0 Operating Cost Allocation'!B20 -> P - Taxes and Franchise Fees | C20: 0 | G20: SEWERS.UNAPPROP FUNDS
A21: ='Y0 Operating Cost Allocation'!A21 -> Capital Replacement & Improvement | B21: ='Y0 Operating Cost Allocation'!B21 -> Q - Capital | C21: 0 | F21: GG-8130-11 | G21: SEWAGE TREATDISP.SUPE | H21: 0 | I21: H - Salaries/Benefits Ops
A22: ='Y0 Operating Cost Allocation'!A22 -> Electricity for Operations | B22: ='Y0 Operating Cost Allocation'!B22 -> R - Electricity | C22: 15000 | F22: GG-8130-12 | G22: SEWAGE TREATDISP.PLANT | H22: 135000 | I22: J - Op Supplies/Equip
A23: ='Y0 Operating Cost Allocation'!A23 -> Sludge Disposal | B23: ='Y0 Operating Cost Allocation'!B23 -> S - Sludge Disposal | C23: 23000 | G23: OPS
B24: Total | C24: =SUM(C5:C23) -> 574449.5 | F24: GG-8130-20 | G24: SEWAGE | H24: 35000 | I24: J - Op Supplies/Equip
G25: TREATDISP.EQUIPMENT
C26: =IF(SUM(H$7:H$1048576)=SUM(C5:C23), "QAQC Checks", "REDO QAQC") -> QAQC Checks | F26: GG-8130-40 | G26: SEWAGE TREATDISP.MAINT | H26: 15000 | I26: M -Maint
F27: GG-8130-41 | G27: SEWAGE TREATDISP.PLANT | H27: 2000 | I27: J - Op Supplies/Equip
G28: SUPPLY
F29: GG-8130-42 | G29: SEWAGE TREATDISP.LAB | H29: 2000 | I29: J - Op Supplies/Equip
G30: SUPPLIES
F31: GG-8130-43 | G31: SEWAGE | H31: 15000 | I31: R - Electricity
G32: TREATDISP.ELECTRICITY
F33: GG-8130-44 | G33: SEWAGE TREATDISP.WATER | H33: 2000 | I33: I - Utilties Ops
F34: GG-8130-45 | G34: SEWAGE TREATDISP.GAS | H34: 7000 | I34: I - Utilties Ops
F35: GG-8130-46 | G35: SEWAGE TREATDISP.TRUCK | H35: 2500 | I35: L - Equip Leases
G36: EXP
F37: GG-8130-47 | G37: SEWAGE | H37: 7250 | I37: C - Insurance/Bond
G38: TREATDISP.INSURANCE
F39: GG-8130-48 | G39: SEWAGE TREATDISP.SLUDGE | H39: 23000 | I39: S - Sludge Disposal
G40: REMVL
F41: GG-8130-49 | G41: SEWAGE | H41: 2000 | I41: K - Chemicals
G42: TREATDISP.CHEMICALS
F43: GG-9010-80 | G43: STATE RETIREMENT | H43: 31000 | I43: H - Salaries/Benefits Ops
F44: GG-9030-80 | G44: SOCIAL SECURITY | H44: 11000 | I44: H - Salaries/Benefits Ops
F45: GG-9040-80 | G45: WORKERS COMPENSATION | H45: 8800 | I45: H - Salaries/Benefits Ops
F46: GG-9050-80 | G46: UNEMPLOYMENT | H46: 0 | I46: H - Salaries/Benefits Ops
F47: GG-9055-80 | G47: DISABILITY INSURANCE | H47: 60 | I47: C - Insurance/Bond
F48: GG-9060-80 | G48: HOSPITAL AND MEDICAL | H48: 35000 | I48: C - Insurance/Bond
G49: INSURANCE
F50: GG-9063-80 | G50: MEDICAL DEDUCTIBLE | H50: 6533 | I50: C - Insurance/Bond
F51: GG-9730-60 | G51: BOND ANTIC.WWTP | H51: 20000 | I51: E - Debt Repayment
G52: DIGESTER PRIN
F53: GG-9730-70 | G53: BOND ANTIC.WWTP | H53: 6337 | I53: E - Debt Repayment
G54: DIGESTER INT
F55: GG-9790-60 | G55: STATE LOANS.PRINCIPAL - | H55: 0 | I55: E - Debt Repayment
G56: 1996
F57: GG-9790-61 | G57: STATE LOANS.PRINCIPAL - | H57: 15000 | I57: E - Debt Repayment
G58: 2001
F59: GG-9790-70 | G59: STATE LOANS.INTEREST - | H59: 0 | I59: E - Debt Repayment
G60: 1996
F61: GG-9790-71 | G61: STATE LOANS.INTEREST - | H61: 1043.68 | I61: E - Debt Repayment
G62: 2001
F63: GG-9790-80 | G63: STATE LOANS.PRIN FILTER - | H63: 25000 | I63: E - Debt Repayment
G64: 2004
F65: GG-9790-81 | G65: STATE LOANS.INT FILTER - | H65: 3422.67 | I65: E - Debt Repayment
G66: 2004
F67: GG-9790-90 | G67: STATE LOANS.ADMIN FEE | H67: 437 | I67: E - Debt Repayment
F68: GG-9950-90 | G68: TRANS CAP FUND | H68: 0 | I68: G - Other Reserve
F69: GG-9950-91 | G69: TRANS TO SANITARY RES | H69: 0
G70: G231.S
F71: GG-9950-92 | G71: TRANS TO PLANT REPAIR | H71: 0
G72: G231.P
F73: GG-9950-93 | G73: TRANS TO EQUIP RESERVE | H73: 2066.15 | I73: G - Other Reserve
G74: G231.E

Sheet Fixed v. Variable Costs
A1: Notes/Assumptions: Linked directly to the operating cost allocation. Fixed costs are O&M costs that are independent of the volume and strength of flows treated at the WWTP, relative to variable costs.
A4: Fixed and Variable Operating Costs
A5: Item | B5: Total Annual Cost for Each Item | C5: Fixed Cost Percentage for Each Item | D5: Variable Cost Percentage for Each Item | E5: Adjusted Fixed Cost | F5: Adjusted Variable Cost | G5: Cost of Service Recommendation: Flat/Mininum revenue should meet or exceed fixed costs. | I5: Source
A6: ='Y0 Operating Cost Allocation'!A5 -> Salaries & Benefits for Administration Staff | B6: ='Y0 Operating Cost Allocation'!C5 -> 0 | C6: 0 | D6: =100%-Table3[[#This Row],[Fixed Cost Percentage for Each Item]] -> 1 | E6: =Table3[[#This Row],[Total Annual Cost for Each Item]]*Table3[[#This Row],[Fixed Cost Percentage for Each Item]] -> 0 | F6: =Table3[[#This Row],[Total Annual Cost for Each Item]]*D6 -> 0 | G6: Fixed (Non-Metered) Revenue | H6: =SUM(Nonmeter[Calculated Yearly Revenue]) -> 494646.9 | I6: sewerusageinfo.xlsx
A7: ='Y0 Operating Cost Allocation'!A6 -> Billing, Office Operation & Utilities, Rent & Other Overhead | B7: ='Y0 Operating Cost Allocation'!C6 -> 0 | C7: 0 | D7: =100%-Table3[[#This Row],[Fixed Cost Percentage for Each Item]] -> 1 | E7: =Table3[[#This Row],[Total Annual Cost for Each Item]]*Table3[[#This Row],[Fixed Cost Percentage for Each Item]] -> 0 | F7: =Table3[[#This Row],[Total Annual Cost for Each Item]]*D7 -> 0 | G7: Adjusted Fixed Costs | H7: =SUM(Table3[Adjusted Fixed Cost]) -> 497668.3056 | I7: ExpControlReport2018.xlsx
A8: ='Y0 Operating Cost Allocation'!A7 -> Insurance & Bonding | B8: ='Y0 Operating Cost Allocation'!C7 -> 47623.72 | C8: 1 | D8: =100%-Table3[[#This Row],[Fixed Cost Percentage for Each Item]] -> 0 | E8: =Table3[[#This Row],[Total Annual Cost for Each Item]]*Table3[[#This Row],[Fixed Cost Percentage for Each Item]] -> 47623.72 | F8: =Table3[[#This Row],[Total Annual Cost for Each Item]]*D8 -> 0 | G8: What percentage of fixed cost does fixed revenue cover? | H8: =IF(H6>=(0.99*H7),"Fixed revenue meets or exceeds 99% of fixed costs.","Consider adjusting fixed or minimum rates to cover fixed costs.") -> Fixed revenue meets or exceeds 99% of fixed costs.
A9: ='Y0 Operating Cost Allocation'!A8 -> Accounting, Legal, Engineering & Other Professional Services | B9: ='Y0 Operating Cost Allocation'!C8 -> 29910.92 | C9: 1 | D9: =100%-Table3[[#This Row],[Fixed Cost Percentage for Each Item]] -> 0 | E9: =Table3[[#This Row],[Total Annual Cost for Each Item]]*Table3[[#This Row],[Fixed Cost Percentage for Each Item]] -> 29910.92 | F9: =Table3[[#This Row],[Total Annual Cost for Each Item]]*D9 -> 0
A10: ='Y0 Operating Cost Allocation'!A9 -> Debt Repayment & Related Expenses | B10: ='Y0 Operating Cost Allocation'!C9 -> 70276.04 | C10: 1 | D10: =100%-Table3[[#This Row],[Fixed Cost Percentage for Each Item]] -> 0 | E10: =Table3[[#This Row],[Total Annual Cost for Each Item]]*Table3[[#This Row],[Fixed Cost Percentage for Each Item]] -> 70276.04 | F10: =Table3[[#This Row],[Total Annual Cost for Each Item]]*D10 -> 0
A11: ='Y0 Operating Cost Allocation'!A10 -> 15% Grant Responsibility | B11: ='Y0 Operating Cost Allocation'!C10 -> 62961.43 | C11: 1 | D11: =100%-Table3[[#This Row],[Fixed Cost Percentage for Each Item]] -> 0 | E11: =Table3[[#This Row],[Total Annual Cost for Each Item]]*Table3[[#This Row],[Fixed Cost Percentage for Each Item]] -> 62961.43 | F11: =Table3[[#This Row],[Total Annual Cost for Each Item]]*D11 -> 0
A12: ='Y0 Operating Cost Allocation'!A11 -> Capital Reserve Payments | B12: ='Y0 Operating Cost Allocation'!C11 -> 0 | C12: 0 | D12: =100%-Table3[[#This Row],[Fixed Cost Percentage for Each Item]] -> 1 | E12: =Table3[[#This Row],[Total Annual Cost for Each Item]]*Table3[[#This Row],[Fixed Cost Percentage for Each Item]] -> 0 | F12: =Table3[[#This Row],[Total Annual Cost for Each Item]]*D12 -> 0
A13: ='Y0 Operating Cost Allocation'!A12 -> Salaries & Benefits for Operations Staff | B13: ='Y0 Operating Cost Allocation'!C12 -> 51049.29 | C13: 0.9 | D13: =100%-Table3[[#This Row],[Fixed Cost Percentage for Each Item]] -> 0.1 | E13: =Table3[[#This Row],[Total Annual Cost for Each Item]]*Table3[[#This Row],[Fixed Cost Percentage for Each Item]] -> 45944.361 | F13: =Table3[[#This Row],[Total Annual Cost for Each Item]]*D13 -> 5104.929
A14: ='Y0 Operating Cost Allocation'!A13 -> Utilities for Operations | B14: ='Y0 Operating Cost Allocation'!C13 -> 6902.48 | C14: 1 | D14: =100%-Table3[[#This Row],[Fixed Cost Percentage for Each Item]] -> 0 | E14: =Table3[[#This Row],[Total Annual Cost for Each Item]]*Table3[[#This Row],[Fixed Cost Percentage for Each Item]] -> 6902.48 | F14: =Table3[[#This Row],[Total Annual Cost for Each Item]]*D14 -> 0
A15: ='Y0 Operating Cost Allocation'!A14 -> Operating Supplies & Equipment | B15: ='Y0 Operating Cost Allocation'!C14 -> 203897.58 | C15: 0.9 | D15: =100%-Table3[[#This Row],[Fixed Cost Percentage for Each Item]] -> 0.1 | E15: =Table3[[#This Row],[Total Annual Cost for Each Item]]*Table3[[#This Row],[Fixed Cost Percentage for Each Item]] -> 183507.822 | F15: =Table3[[#This Row],[Total Annual Cost for Each Item]]*D15 -> 20389.758
A16: ='Y0 Operating Cost Allocation'!A15 -> Chemicals | B16: ='Y0 Operating Cost Allocation'!C15 -> 1259.82 | C16: 1 | D16: =100%-Table3[[#This Row],[Fixed Cost Percentage for Each Item]] -> 0 | E16: =Table3[[#This Row],[Total Annual Cost for Each Item]]*Table3[[#This Row],[Fixed Cost Percentage for Each Item]] -> 1259.82 | F16: =Table3[[#This Row],[Total Annual Cost for Each Item]]*D16 -> 0
A17: ='Y0 Operating Cost Allocation'!A16 -> Equipment Leases | B17: ='Y0 Operating Cost Allocation'!C16 -> 2315.95 | C17: 0.98 | D17: =100%-Table3[[#This Row],[Fixed Cost Percentage for Each Item]] -> 0.02 | E17: =Table3[[#This Row],[Total Annual Cost for Each Item]]*Table3[[#This Row],[Fixed Cost Percentage for Each Item]] -> 2269.631 | F17: =Table3[[#This Row],[Total Annual Cost for Each Item]]*D17 -> 46.319
A18: ='Y0 Operating Cost Allocation'!A17 -> Regular Maintenance & Repairs | B18: ='Y0 Operating Cost Allocation'!C17 -> 13923.87 | C18: 0.98 | D18: =100%-Table3[[#This Row],[Fixed Cost Percentage for Each Item]] -> 0.02 | E18: =Table3[[#This Row],[Total Annual Cost for Each Item]]*Table3[[#This Row],[Fixed Cost Percentage for Each Item]] -> 13645.3926 | F18: =Table3[[#This Row],[Total Annual Cost for Each Item]]*D18 -> 278.4774
A19: ='Y0 Operating Cost Allocation'!A18 -> Auto & Other Rolling Stock | B19: ='Y0 Operating Cost Allocation'!C18 -> 0 | C19: 0 | D19: =100%-Table3[[#This Row],[Fixed Cost Percentage for Each Item]] -> 1 | E19: =Table3[[#This Row],[Total Annual Cost for Each Item]]*Table3[[#This Row],[Fixed Cost Percentage for Each Item]] -> 0 | F19: =Table3[[#This Row],[Total Annual Cost for Each Item]]*D19 -> 0
A20: ='Y0 Operating Cost Allocation'!A19 -> Permits, Training | B20: ='Y0 Operating Cost Allocation'!C19 -> 0 | C20: 0 | D20: =100%-Table3[[#This Row],[Fixed Cost Percentage for Each Item]] -> 1 | E20: =Table3[[#This Row],[Total Annual Cost for Each Item]]*Table3[[#This Row],[Fixed Cost Percentage for Each Item]] -> 0 | F20: =Table3[[#This Row],[Total Annual Cost for Each Item]]*D20 -> 0
A21: ='Y0 Operating Cost Allocation'!A20 -> Taxes and Franchise Fees | B21: ='Y0 Operating Cost Allocation'!C20 -> 0 | C21: 0 | D21: =100%-Table3[[#This Row],[Fixed Cost Percentage for Each Item]] -> 1 | E21: =Table3[[#This Row],[Total Annual Cost for Each Item]]*Table3[[#This Row],[Fixed Cost Percentage for Each Item]] -> 0 | F21: =Table3[[#This Row],[Total Annual Cost for Each Item]]*D21 -> 0
A22: ='Y0 Operating Cost Allocation'!A21 -> Capital Replacement & Improvement | B22: ='Y0 Operating Cost Allocation'!C21 -> 0 | C22: 0 | D22: =100%-Table3[[#This Row],[Fixed Cost Percentage for Each Item]] -> 1 | E22: =Table3[[#This Row],[Total Annual Cost for Each Item]]*Table3[[#This Row],[Fixed Cost Percentage for Each Item]] -> 0 | F22: =Table3[[#This Row],[Total Annual Cost for Each Item]]*D22 -> 0
A23: ='Y0 Operating Cost Allocation'!A22 -> Electricity for Operations | B23: ='Y0 Operating Cost Allocation'!C22 -> 14424.01 | C23: 0.9 | D23: =100%-Table3[[#This Row],[Fixed Cost Percentage for Each Item]] -> 0.1 | E23: =Table3[[#This Row],[Total Annual Cost for Each Item]]*Table3[[#This Row],[Fixed Cost Percentage for Each Item]] -> 12981.609 | F23: =Table3[[#This Row],[Total Annual Cost for Each Item]]*D23 -> 1442.401
A24: ='Y0 Operating Cost Allocation'!A23 -> Sludge Disposal | B24: ='Y0 Operating Cost Allocation'!C23 -> 20385.08 | C24: 1 | D24: =100%-Table3[[#This Row],[Fixed Cost Percentage for Each Item]] -> 0 | E24: =Table3[[#This Row],[Total Annual Cost for Each Item]]*Table3[[#This Row],[Fixed Cost Percentage for Each Item]] -> 20385.08 | F24: =Table3[[#This Row],[Total Annual Cost for Each Item]]*D24 -> 0
B25: 0 | D25: =100%-Table3[[#This Row],[Fixed Cost Percentage for Each Item]] -> 1 | E25: =Table3[[#This Row],[Total Annual Cost for Each Item]]*Table3[[#This Row],[Fixed Cost Percentage for Each Item]] -> 0 | F25: =Table3[[#This Row],[Total Annual Cost for Each Item]]*D25 -> 0
B26: 0 | D26: =100%-Table3[[#This Row],[Fixed Cost Percentage for Each Item]] -> 1 | E26: =Table3[[#This Row],[Total Annual Cost for Each Item]]*Table3[[#This Row],[Fixed Cost Percentage for Each Item]] -> 0 | F26: =Table3[[#This Row],[Total Annual Cost for Each Item]]*D26 -> 0
B27: 0 | D27: =100%-Table3[[#This Row],[Fixed Cost Percentage for Each Item]] -> 1 | E27: =Table3[[#This Row],[Total Annual Cost for Each Item]]*Table3[[#This Row],[Fixed Cost Percentage for Each Item]] -> 0 | F27: =Table3[[#This Row],[Total Annual Cost for Each Item]]*D27 -> 0

Sheet Current Loans
A1: Notes/Assumptions: Loan information from p.8 of the Sewer Rate Information.pdf and loaninfo.xls (highlighted loans)
A5: Current Loans
C6: Maturity | D6: Interest Rate | E6: Total Cost | F6: Payments | G6: Payments | H6: Payments | I6: Payments | J6: Payments | K6: Payments | L6: Payments | M6: Payments | N6: Payments | O6: Payments | P6: Payments | Q6: Payments | R6: Payments | S6: Payments | T6: Payments | U6: Payments | V6: Payments | W6: Payments | X6: Payments | Y6: Payments | Z6: Payments | AA6: Payments | AB6: Payments | AC6: Payments | AD6: Payments | AE6: Payments
A7: Purpose | B7: Line # | C7: Date | F7: =ReadMe!M6 -> 2018 | G7: =F7+1 -> 2019 | H7: =G7+1 -> 2020 | I7: 2021 | J7: 2022 | K7: 2023 | L7: 2024 | M7: 2025 | N7: 2026 | O7: 2027 | P7: 2028 | Q7: 2029 | R7: 2030 | S7: 2031 | T7: 2032 | U7: 2033 | V7: 2034 | W7: 2035 | X7: 2036 | Y7: 2037 | Z7: 2038 | AA7: 2039 | AB7: 2040 | AC7: 2041 | AD7: 2042 | AE7: 2043
E9: TOTAL ANNUAL DEBT PAYMENT | F9: =SUM(CurrentLoans[Y0]) -> 72459 | G9: =SUM(CurrentLoans[Y1]) -> 68287.34 | H9: =SUM(CurrentLoans[Y2]) -> 71910.29 | I9: =SUM(CurrentLoans[Y3]) -> 70290.05 | J9: =SUM(CurrentLoans[Y4]) -> 53887.5 | K9: =SUM(CurrentLoans[Y5]) -> 53012.5 | L9: =SUM(CurrentLoans[Y6]) -> 57137.5 | M9: =SUM(CurrentLoans[Y7]) -> 31200 | N9: =SUM(CurrentLoans[Y8]) -> 0 | O9: =SUM(CurrentLoans[Y9]) -> 0 | P9: =SUM(CurrentLoans[Y10]) -> 0 | Q9: =SUM(CurrentLoans[Y11]) -> 0 | R9: =SUM(CurrentLoans[Y12]) -> 0 | S9: =SUM(CurrentLoans[Y13]) -> 0 | T9: =SUM(CurrentLoans[Y14]) -> 0 | U9: =SUM(CurrentLoans[Y15]) -> 0 | V9: =SUM(CurrentLoans[Y16]) -> 0 | W9: =SUM(CurrentLoans[Y17]) -> 0 | X9: =SUM(CurrentLoans[Y18]) -> 0 | Y9: =SUM(CurrentLoans[Y19]) -> 0 | Z9: =SUM(CurrentLoans[Y20]) -> 0 | AA9: =SUM(CurrentLoans[Y21]) -> 0 | AB9: =SUM(CurrentLoans[Y22]) -> 0 | AC9: =SUM(CurrentLoans[Y23]) -> 0 | AD9: =SUM(CurrentLoans[Y24]) -> 0 | AE9: =SUM(CurrentLoans[Purpose]) -> 0
A11: Purpose | B11: Line # | C11: Maturity Date | D11: Interest Rate | E11: Total Cost | F11: Y0 | G11: Y1 | H11: Y2 | I11: Y3 | J11: Y4 | K11: Y5 | L11: Y6 | M11: Y7 | N11: Y8 | O11: Y9 | P11: Y10 | Q11: Y11 | R11: Y12 | S11: Y13 | T11: Y14 | U11: Y15 | V11: Y16 | W11: Y17 | X11: Y18 | Y11: Y19 | Z11: Y20 | AA11: Y21 | AB11: Y22 | AC11: Y23 | AD11: Y24 | AE11: Y25
A12: 2001 EFC PRIN | C12: 2020-11-15 | D12: n/a | E12: n/a | F12: 72459 | G12: 15000 | H12: 15000 | I12: 15000
A13: 2001 EFC INT | C13: =C12 -> 2020-11-15 | D13: n/a | E13: n/a | G13: 680.29 | H13: 421.84 | I13: 143.59
A14: 2004 EFC PRIN | C14: 2023-11-15 | D14: n/a | E14: n/a | G14: 25000 | H14: 25000 | I14: 25000 | J14: 25000 | K14: 25000 | L14: 30000
A15: 2004 EFC INT | C15: =C14 -> 2023-11-15 | D15: n/a | E15: n/a | G15: 1269.55 | H15: 850.95 | I15: 383.96
A16: WWTP BOND PRIN | C16: 2025-05-01 | D16: n/a | E16: n/a | G16: 20000 | H16: 25000 | I16: 25000 | J16: 25000 | K16: 25000 | L16: 25000 | M16: 30000
A17: WWTP BOND INT | C17: =C16 -> 2025-05-01 | D17: n/a | E17: n/a | G17: 6337.5 | H17: 5637.5 | I17: 4762.5 | J17: 3887.5 | K17: 3012.5 | L17: 2137.5 | M17: 1200

Sheet Future Loans
A1: Notes/Assumptions: When changes are made to the CIP, the annual payments need to be updated here manually. $150,000 is the approximate annualized cost for 100% treatment system repair and replacement and $35,000 per year in collection system repairs.
B3: CIP Cost | C3: Interest Rate | D3: Loan Duration | E3: Payments | F3: Payments | G3: Payments | H3: Payments | I3: Payments | J3: Payments | K3: Payments | L3: Payments | M3: Payments | N3: Payments | O3: Payments | P3: Payments | Q3: Payments | R3: Payments | S3: Payments | T3: Payments | U3: Payments | V3: Payments | W3: Payments | X3: Payments | Y3: Payments | Z3: Payments | AA3: Payments | AB3: Payments | AC3: Payments | AD3: Payments
A4: Line # | E4: =ReadMe!M6 -> 2018 | F4: =E4+1 -> 2019 | G4: =F4+1 -> 2020 | H4: 2021 | I4: 2022 | J4: 2023 | K4: 2024 | L4: 2025 | M4: 2026 | N4: 2027 | O4: 2028 | P4: 2029 | Q4: 2030 | R4: 2031 | S4: 2032 | T4: 2033 | U4: 2034 | V4: 2035 | W4: 2036 | X4: 2037 | Y4: 2038 | Z4: 2039 | AA4: 2040 | AB4: 2041 | AC4: 2042 | AD4: 2043
B6: Inflation | C6: 0.03 | D6: TOTAL ANNUAL DEBT PAYMENT | E6: =SUM(FutureLoans[Y0]) -> 0 | F6: =SUM(FutureLoans[Y1]) -> 10439.27492 | G6: =SUM(FutureLoans[Y2]) -> 21191.7281 | H6: =SUM(FutureLoans[Y3]) -> 32266.75486 | I6: =SUM(FutureLoans[Y4]) -> 43674.03243 | J6: =SUM(FutureLoans[Y5]) -> 55423.52833 | K6: =SUM(FutureLoans[Y6]) -> 67525.5091 | L6: =SUM(FutureLoans[Y7]) -> 79990.5493 | M6: =SUM(FutureLoans[Y8]) -> 92829.5407 | N6: =SUM(FutureLoans[Y9]) -> 106053.7018 | O6: =SUM(FutureLoans[Y10]) -> 119674.5878 | P6: =SUM(FutureLoans[Y11]) -> 133704.1004 | Q6: =SUM(FutureLoans[Y12]) -> 148154.4983 | R6: =SUM(FutureLoans[Y13]) -> 163038.4082 | S6: =SUM(FutureLoans[Y14]) -> 178368.8354 | T6: =SUM(FutureLoans[Y15]) -> 194159.1753 | U6: =SUM(FutureLoans[Y16]) -> 210423.2255 | V6: =SUM(FutureLoans[Y17]) -> 227175.1972 | W6: =SUM(FutureLoans[Y18]) -> 244429.7281 | X6: =SUM(FutureLoans[Y19]) -> 262201.8948 | Y6: =SUM(FutureLoans[Y20]) -> 280507.2266 | Z6: =SUM(FutureLoans[Y21]) -> 288922.4434 | AA6: =SUM(FutureLoans[Y22]) -> 297590.1167 | AB6: =SUM(FutureLoans[Y23]) -> 306517.8202 | AC6: =SUM(FutureLoans[Y24]) -> 315713.3548 | AD6: =SUM(FutureLoans[Y25]) -> 325184.7554
A8: Project | B8: CIP Cost | C8: Interest Rate ( Annual %) | D8: Loan Duration (yr) | E8: Y0 | F8: Y1 | G8: Y2 | H8: Y3 | I8: Y4 | J8: Y5 | K8: Y6 | L8: Y7 | M8: Y8 | N8: Y9 | O8: Y10 | P8: Y11 | Q8: Y12 | R8: Y13 | S8: Y14 | T8: Y15 | U8: Y16 | V8: Y17 | W8: Y18 | X8: Y19 | Y8: Y20 | Z8: Y21 | AA8: Y22 | AB8: Y23 | AC8: Y24 | AD8: Y25
A9: CIP Year 1 | B9: 150000 | C9: 0.035 | D9: 20 | F9: =-PMT(FutureLoans[[#This Row],[Interest Rate ( Annual %)]]/12,FutureLoans[[#This Row],[Loan Duration (yr)]]*12,FutureLoans[[#This Row],[CIP Cost]])*12 -> 10439.27492 | G9: =FutureLoans[[#This Row],[Y1]] -> 10439.27492 | H9: =FutureLoans[[#This Row],[Y2]] -> 10439.27492 | I9: =FutureLoans[[#This Row],[Y3]] -> 10439.27492 | J9: =FutureLoans[[#This Row],[Y4]] -> 10439.27492 | K9: =FutureLoans[[#This Row],[Y5]] -> 10439.27492 | L9: =FutureLoans[[#This Row],[Y6]] -> 10439.27492 | M9: =FutureLoans[[#This Row],[Y7]] -> 10439.27492 | N9: =FutureLoans[[#This Row],[Y8]] -> 10439.27492 | O9: =FutureLoans[[#This Row],[Y9]] -> 10439.27492 | P9: =FutureLoans[[#This Row],[Y10]] -> 10439.27492 | Q9: =FutureLoans[[#This Row],[Y11]] -> 10439.27492 | R9: =FutureLoans[[#This Row],[Y12]] -> 10439.27492 | S9: =FutureLoans[[#This Row],[Y13]] -> 10439.27492 | T9: =FutureLoans[[#This Row],[Y14]] -> 10439.27492 | U9: =FutureLoans[[#This Row],[Y15]] -> 10439.27492 | V9: =FutureLoans[[#This Row],[Y16]] -> 10439.27492 | W9: =FutureLoans[[#This Row],[Y17]] -> 10439.27492 | X9: =FutureLoans[[#This Row],[Y18]] -> 10439.27492 | Y9: =FutureLoans[[#This Row],[Y19]] -> 10439.27492
A10: CIP Year 2 | B10: =B9*(1+$C$6) -> 154500 | C10: 0.035 | D10: 20 | G10: =-PMT(FutureLoans[[#This Row],[Interest Rate ( Annual %)]]/12,FutureLoans[[#This Row],[Loan Duration (yr)]]*12,FutureLoans[[#This Row],[CIP Cost]])*12 -> 10752.45317 | H10: =FutureLoans[[#This Row],[Y2]] -> 10752.45317 | I10: =FutureLoans[[#This Row],[Y3]] -> 10752.45317 | J10: =FutureLoans[[#This Row],[Y4]] -> 10752.45317 | K10: =FutureLoans[[#This Row],[Y5]] -> 10752.45317 | L10: =FutureLoans[[#This Row],[Y6]] -> 10752.45317 | M10: =FutureLoans[[#This Row],[Y7]] -> 10752.45317 | N10: =FutureLoans[[#This Row],[Y8]] -> 10752.45317 | O10: =FutureLoans[[#This Row],[Y9]] -> 10752.45317 | P10: =FutureLoans[[#This Row],[Y10]] -> 10752.45317 | Q10: =FutureLoans[[#This Row],[Y11]] -> 10752.45317 | R10: =FutureLoans[[#This Row],[Y12]] -> 10752.45317 | S10: =FutureLoans[[#This Row],[Y13]] -> 10752.45317 | T10: =FutureLoans[[#This Row],[Y14]] -> 10752.45317 | U10: =FutureLoans[[#This Row],[Y15]] -> 10752.45317 | V10: =FutureLoans[[#This Row],[Y16]] -> 10752.45317 | W10: =FutureLoans[[#This Row],[Y17]] -> 10752.45317 | X10: =FutureLoans[[#This Row],[Y18]] -> 10752.45317 | Y10: =FutureLoans[[#This Row],[Y19]] -> 10752.45317 | Z10: =-PMT(FutureLoans[[#This Row],[Interest Rate ( Annual %)]]/12,FutureLoans[[#This Row],[Loan Duration (yr)]]*12,FutureLoans[[#This Row],[CIP Cost]])*12 -> 10752.45317
A11: CIP Year 3 | B11: =B10*(1+$C$6) -> 159135 | C11: 0.035 | D11: 20 | H11: =-PMT(FutureLoans[[#This Row],[Interest Rate ( Annual %)]]/12,FutureLoans[[#This Row],[Loan Duration (yr)]]*12,FutureLoans[[#This Row],[CIP Cost]])*12 -> 11075.02677 | I11: =FutureLoans[[#This Row],[Y3]] -> 11075.02677 | J11: =FutureLoans[[#This Row],[Y4]] -> 11075.02677 | K11: =FutureLoans[[#This Row],[Y5]] -> 11075.02677 | L11: =FutureLoans[[#This Row],[Y6]] -> 11075.02677 | M11: =FutureLoans[[#This Row],[Y7]] -> 11075.02677 | N11: =FutureLoans[[#This Row],[Y8]] -> 11075.02677 | O11: =FutureLoans[[#This Row],[Y9]] -> 11075.02677 | P11: =FutureLoans[[#This Row],[Y10]] -> 11075.02677 | Q11: =FutureLoans[[#This Row],[Y11]] -> 11075.02677 | R11: =FutureLoans[[#This Row],[Y12]] -> 11075.02677 | S11: =FutureLoans[[#This Row],[Y13]] -> 11075.02677 | T11: =FutureLoans[[#This Row],[Y14]] -> 11075.02677 | U11: =FutureLoans[[#This Row],[Y15]] -> 11075.02677 | V11: =FutureLoans[[#This Row],[Y16]] -> 11075.02677 | W11: =FutureLoans[[#This Row],[Y17]] -> 11075.02677 | X11: =FutureLoans[[#This Row],[Y18]] -> 11075.02677 | Y11: =FutureLoans[[#This Row],[Y19]] -> 11075.02677 | Z11: =-PMT(FutureLoans[[#This Row],[Interest Rate ( Annual %)]]/12,FutureLoans[[#This Row],[Loan Duration (yr)]]*12,FutureLoans[[#This Row],[CIP Cost]])*12 -> 11075.02677 | AA11: =-PMT(FutureLoans[[#This Row],[Interest Rate ( Annual %)]]/12,FutureLoans[[#This Row],[Loan Duration (yr)]]*12,FutureLoans[[#This Row],[CIP Cost]])*12 -> 11075.02677
A12: CIP Year 4 | B12: 163909.05 | C12: 0.035 | D12: 20 | I12: =-PMT(FutureLoans[[#This Row],[Interest Rate ( Annual %)]]/12,FutureLoans[[#This Row],[Loan Duration (yr)]]*12,FutureLoans[[#This Row],[CIP Cost]])*12 -> 11407.27757 | J12: =FutureLoans[[#This Row],[Y4]] -> 11407.27757 | K12: =FutureLoans[[#This Row],[Y5]] -> 11407.27757 | L12: =FutureLoans[[#This Row],[Y6]] -> 11407.27757 | M12: =FutureLoans[[#This Row],[Y7]] -> 11407.27757 | N12: =FutureLoans[[#This Row],[Y8]] -> 11407.27757 | O12: =FutureLoans[[#This Row],[Y9]] -> 11407.27757 | P12: =FutureLoans[[#This Row],[Y10]] -> 11407.27757 | Q12: =FutureLoans[[#This Row],[Y11]] -> 11407.27757 | R12: =FutureLoans[[#This Row],[Y12]] -> 11407.27757 | S12: =FutureLoans[[#This Row],[Y13]] -> 11407.27757 | T12: =FutureLoans[[#This Row],[Y14]] -> 11407.27757 | U12: =FutureLoans[[#This Row],[Y15]] -> 11407.27757 | V12: =FutureLoans[[#This Row],[Y16]] -> 11407.27757 | W12: =FutureLoans[[#This Row],[Y17]] -> 11407.27757 | X12: =FutureLoans[[#This Row],[Y18]] -> 11407.27757 | Y12: =FutureLoans[[#This Row],[Y19]] -> 11407.27757 | Z12: =-PMT(FutureLoans[[#This Row],[Interest Rate ( Annual %)]]/12,FutureLoans[[#This Row],[Loan Duration (yr)]]*12,FutureLoans[[#This Row],[CIP Cost]])*12 -> 11407.27757 | AA12: =-PMT(FutureLoans[[#This Row],[Interest Rate ( Annual %)]]/12,FutureLoans[[#This Row],[Loan Duration (yr)]]*12,FutureLoans[[#This Row],[CIP Cost]])*12 -> 11407.27757 | AB12: =-PMT(FutureLoans[[#This Row],[Interest Rate ( Annual %)]]/12,FutureLoans[[#This Row],[Loan Duration (yr)]]*12,FutureLoans[[#This Row],[CIP Cost]])*12 -> 11407.27757
A13: CIP Year 5 | B13: 168826.3215 | C13: 0.035 | D13: 20 | J13: =-PMT(FutureLoans[[#This Row],[Interest Rate ( Annual %)]]/12,FutureLoans[[#This Row],[Loan Duration (yr)]]*12,FutureLoans[[#This Row],[CIP Cost]])*12 -> 11749.4959 | K13: =FutureLoans[[#This Row],[Y5]] -> 11749.4959 | L13: =FutureLoans[[#This Row],[Y6]] -> 11749.4959 | M13: =FutureLoans[[#This Row],[Y7]] -> 11749.4959 | N13: =FutureLoans[[#This Row],[Y8]] -> 11749.4959 | O13: =FutureLoans[[#This Row],[Y9]] -> 11749.4959 | P13: =FutureLoans[[#This Row],[Y10]] -> 11749.4959 | Q13: =FutureLoans[[#This Row],[Y11]] -> 11749.4959 | R13: =FutureLoans[[#This Row],[Y12]] -> 11749.4959 | S13: =FutureLoans[[#This Row],[Y13]] -> 11749.4959 | T13: =FutureLoans[[#This Row],[Y14]] -> 11749.4959 | U13: =FutureLoans[[#This Row],[Y15]] -> 11749.4959 | V13: =FutureLoans[[#This Row],[Y16]] -> 11749.4959 | W13: =FutureLoans[[#This Row],[Y17]] -> 11749.4959 | X13: =FutureLoans[[#This Row],[Y18]] -> 11749.4959 | Y13: =FutureLoans[[#This Row],[Y19]] -> 11749.4959 | Z13: =-PMT(FutureLoans[[#This Row],[Interest Rate ( Annual %)]]/12,FutureLoans[[#This Row],[Loan Duration (yr)]]*12,FutureLoans[[#This Row],[CIP Cost]])*12 -> 11749.4959 | AA13: =-PMT(FutureLoans[[#This Row],[Interest Rate ( Annual %)]]/12,FutureLoans[[#This Row],[Loan Duration (yr)]]*12,FutureLoans[[#This Row],[CIP Cost]])*12 -> 11749.4959 | AB13: =-PMT(FutureLoans[[#This Row],[Interest Rate ( Annual %)]]/12,FutureLoans[[#This Row],[Loan Duration (yr)]]*12,FutureLoans[[#This Row],[CIP Cost]])*12 -> 11749.4959 | AC13: =FutureLoans[[#This Row],[Y23]] -> 11749.4959
A14: CIP Year 6 | B14: 173891.1111 | C14: 0.035 | D14: 20 | K14: =-PMT(FutureLoans[[#This Row],[Interest Rate ( Annual %)]]/12,FutureLoans[[#This Row],[Loan Duration (yr)]]*12,FutureLoans[[#This Row],[CIP Cost]])*12 -> 12101.98077 | L14: =FutureLoans[[#This Row],[Y6]] -> 12101.98077 | M14: =FutureLoans[[#This Row],[Y7]] -> 12101.98077 | N14: =FutureLoans[[#This Row],[Y8]] -> 12101.98077 | O14: =FutureLoans[[#This Row],[Y9]] -> 12101.98077 | P14: =FutureLoans[[#This Row],[Y10]] -> 12101.98077 | Q14: =FutureLoans[[#This Row],[Y11]] -> 12101.98077 | R14: =FutureLoans[[#This Row],[Y12]] -> 12101.98077 | S14: =FutureLoans[[#This Row],[Y13]] -> 12101.98077 | T14: =FutureLoans[[#This Row],[Y14]] -> 12101.98077 | U14: =FutureLoans[[#This Row],[Y15]] -> 12101.98077 | V14: =FutureLoans[[#This Row],[Y16]] -> 12101.98077 | W14: =FutureLoans[[#This Row],[Y17]] -> 12101.98077 | X14: =FutureLoans[[#This Row],[Y18]] -> 12101.98077 | Y14: =FutureLoans[[#This Row],[Y19]] -> 12101.98077 | Z14: =-PMT(FutureLoans[[#This Row],[Interest Rate ( Annual %)]]/12,FutureLoans[[#This Row],[Loan Duration (yr)]]*12,FutureLoans[[#This Row],[CIP Cost]])*12 -> 12101.98077 | AA14: =-PMT(FutureLoans[[#This Row],[Interest Rate ( Annual %)]]/12,FutureLoans[[#This Row],[Loan Duration (yr)]]*12,FutureLoans[[#This Row],[CIP Cost]])*12 -> 12101.98077 | AB14: =-PMT(FutureLoans[[#This Row],[Interest Rate ( Annual %)]]/12,FutureLoans[[#This Row],[Loan Duration (yr)]]*12,FutureLoans[[#This Row],[CIP Cost]])*12 -> 12101.98077 | AC14: =FutureLoans[[#This Row],[Y23]] -> 12101.98077 | AD14: =FutureLoans[[#This Row],[Y24]] -> 12101.98077
A15: CIP Year 7 | B15: 179107.8445 | C15: 0.035 | D15: 20 | L15: =-PMT(FutureLoans[[#This Row],[Interest Rate ( Annual %)]]/12,FutureLoans[[#This Row],[Loan Duration (yr)]]*12,FutureLoans[[#This Row],[CIP Cost]])*12 -> 12465.0402 | M15: =FutureLoans[[#This Row],[Y7]] -> 12465.0402 | N15: =FutureLoans[[#This Row],[Y8]] -> 12465.0402 | O15: =FutureLoans[[#This Row],[Y9]] -> 12465.0402 | P15: =FutureLoans[[#This Row],[Y10]] -> 12465.0402 | Q15: =FutureLoans[[#This Row],[Y11]] -> 12465.0402 | R15: =FutureLoans[[#This Row],[Y12]] -> 12465.0402 | S15: =FutureLoans[[#This Row],[Y13]] -> 12465.0402 | T15: =FutureLoans[[#This Row],[Y14]] -> 12465.0402 | U15: =FutureLoans[[#This Row],[Y15]] -> 12465.0402 | V15: =FutureLoans[[#This Row],[Y16]] -> 12465.0402 | W15: =FutureLoans[[#This Row],[Y17]] -> 12465.0402 | X15: =FutureLoans[[#This Row],[Y18]] -> 12465.0402 | Y15: =FutureLoans[[#This Row],[Y19]] -> 12465.0402 | Z15: =-PMT(FutureLoans[[#This Row],[Interest Rate ( Annual %)]]/12,FutureLoans[[#This Row],[Loan Duration (yr)]]*12,FutureLoans[[#This Row],[CIP Cost]])*12 -> 12465.0402 | AA15: =-PMT(FutureLoans[[#This Row],[Interest Rate ( Annual %)]]/12,FutureLoans[[#This Row],[Loan Duration (yr)]]*12,FutureLoans[[#This Row],[CIP Cost]])*12 -> 12465.0402 | AB15: =-PMT(FutureLoans[[#This Row],[Interest Rate ( Annual %)]]/12,FutureLoans[[#This Row],[Loan Duration (yr)]]*12,FutureLoans[[#This Row],[CIP Cost]])*12 -> 12465.0402 | AC15: =FutureLoans[[#This Row],[Y23]] -> 12465.0402 | AD15: =FutureLoans[[#This Row],[Y24]] -> 12465.0402
A16: CIP Year 8 | B16: 184481.0798 | C16: 0.035 | D16: 20 | M16: =-PMT(FutureLoans[[#This Row],[Interest Rate ( Annual %)]]/12,FutureLoans[[#This Row],[Loan Duration (yr)]]*12,FutureLoans[[#This Row],[CIP Cost]])*12 -> 12838.9914 | N16: =FutureLoans[[#This Row],[Y8]] -> 12838.9914 | O16: =FutureLoans[[#This Row],[Y9]] -> 12838.9914 | P16: =FutureLoans[[#This Row],[Y10]] -> 12838.9914 | Q16: =FutureLoans[[#This Row],[Y11]] -> 12838.9914 | R16: =FutureLoans[[#This Row],[Y12]] -> 12838.9914 | S16: =FutureLoans[[#This Row],[Y13]] -> 12838.9914 | T16: =FutureLoans[[#This Row],[Y14]] -> 12838.9914 | U16: =FutureLoans[[#This Row],[Y15]] -> 12838.9914 | V16: =FutureLoans[[#This Row],[Y16]] -> 12838.9914 | W16: =FutureLoans[[#This Row],[Y17]] -> 12838.9914 | X16: =FutureLoans[[#This Row],[Y18]] -> 12838.9914 | Y16: =FutureLoans[[#This Row],[Y19]] -> 12838.9914 | Z16: =-PMT(FutureLoans[[#This Row],[Interest Rate ( Annual %)]]/12,FutureLoans[[#This Row],[Loan Duration (yr)]]*12,FutureLoans[[#This Row],[CIP Cost]])*12 -> 12838.9914 | AA16: =-PMT(FutureLoans[[#This Row],[Interest Rate ( Annual %)]]/12,FutureLoans[[#This Row],[Loan Duration (yr)]]*12,FutureLoans[[#This Row],[CIP Cost]])*12 -> 12838.9914 | AB16: =-PMT(FutureLoans[[#This Row],[Interest Rate ( Annual %)]]/12,FutureLoans[[#This Row],[Loan Duration (yr)]]*12,FutureLoans[[#This Row],[CIP Cost]])*12 -> 12838.9914 | AC16: =FutureLoans[[#This Row],[Y23]] -> 12838.9914 | AD16: =FutureLoans[[#This Row],[Y24]] -> 12838.9914
A17: CIP Year 9 | B17: 190015.5122 | C17: 0.035 | D17: 20 | N17: =-PMT(FutureLoans[[#This Row],[Interest Rate ( Annual %)]]/12,FutureLoans[[#This Row],[Loan Duration (yr)]]*12,FutureLoans[[#This Row],[CIP Cost]])*12 -> 13224.16114 | O17: =FutureLoans[[#This Row],[Y9]] -> 13224.16114 | P17: =FutureLoans[[#This Row],[Y10]] -> 13224.16114 | Q17: =FutureLoans[[#This Row],[Y11]] -> 13224.16114 | R17: =FutureLoans[[#This Row],[Y12]] -> 13224.16114 | S17: =FutureLoans[[#This Row],[Y13]] -> 13224.16114 | T17: =FutureLoans[[#This Row],[Y14]] -> 13224.16114 | U17: =FutureLoans[[#This Row],[Y15]] -> 13224.16114 | V17: =FutureLoans[[#This Row],[Y16]] -> 13224.16114 | W17: =FutureLoans[[#This Row],[Y17]] -> 13224.16114 | X17: =FutureLoans[[#This Row],[Y18]] -> 13224.16114 | Y17: =FutureLoans[[#This Row],[Y19]] -> 13224.16114 | Z17: =-PMT(FutureLoans[[#This Row],[Interest Rate ( Annual %)]]/12,FutureLoans[[#This Row],[Loan Duration (yr)]]*12,FutureLoans[[#This Row],[CIP Cost]])*12 -> 13224.16114 | AA17: =-PMT(FutureLoans[[#This Row],[Interest Rate ( Annual %)]]/12,FutureLoans[[#This Row],[Loan Duration (yr)]]*12,FutureLoans[[#This Row],[CIP Cost]])*12 -> 13224.16114 | AB17: =-PMT(FutureLoans[[#This Row],[Interest Rate ( Annual %)]]/12,FutureLoans[[#This Row],[Loan Duration (yr)]]*12,FutureLoans[[#This Row],[CIP Cost]])*12 -> 13224.16114 | AC17: =FutureLoans[[#This Row],[Y23]] -> 13224.16114 | AD17: =FutureLoans[[#This Row],[Y24]] -> 13224.16114
A18: CIP Year 10 | B18: 195715.9776 | C18: 0.035 | D18: 20 | O18: =-PMT(FutureLoans[[#This Row],[Interest Rate ( Annual %)]]/12,FutureLoans[[#This Row],[Loan Duration (yr)]]*12,FutureLoans[[#This Row],[CIP Cost]])*12 -> 13620.88598 | P18: =FutureLoans[[#This Row],[Y10]] -> 13620.88598 | Q18: =FutureLoans[[#This Row],[Y11]] -> 13620.88598 | R18: =FutureLoans[[#This Row],[Y12]] -> 13620.88598 | S18: =FutureLoans[[#This Row],[Y13]] -> 13620.88598 | T18: =FutureLoans[[#This Row],[Y14]] -> 13620.88598 | U18: =FutureLoans[[#This Row],[Y15]] -> 13620.88598 | V18: =FutureLoans[[#This Row],[Y16]] -> 13620.88598 | W18: =FutureLoans[[#This Row],[Y17]] -> 13620.88598 | X18: =FutureLoans[[#This Row],[Y18]] -> 13620.88598 | Y18: =FutureLoans[[#This Row],[Y19]] -> 13620.88598 | Z18: =-PMT(FutureLoans[[#This Row],[Interest Rate ( Annual %)]]/12,FutureLoans[[#This Row],[Loan Duration (yr)]]*12,FutureLoans[[#This Row],[CIP Cost]])*12 -> 13620.88598 | AA18: =-PMT(FutureLoans[[#This Row],[Interest Rate ( Annual %)]]/12,FutureLoans[[#This Row],[Loan Duration (yr)]]*12,FutureLoans[[#This Row],[CIP Cost]])*12 -> 13620.88598 | AB18: =-PMT(FutureLoans[[#This Row],[Interest Rate ( Annual %)]]/12,FutureLoans[[#This Row],[Loan Duration (yr)]]*12,FutureLoans[[#This Row],[CIP Cost]])*12 -> 13620.88598 | AC18: =FutureLoans[[#This Row],[Y23]] -> 13620.88598 | AD18: =FutureLoans[[#This Row],[Y24]] -> 13620.88598
A19: CIP Year 11 | B19: 201587.4569 | C19: 0.035 | D19: 20 | P19: =-PMT(FutureLoans[[#This Row],[Interest Rate ( Annual %)]]/12,FutureLoans[[#This Row],[Loan Duration (yr)]]*12,FutureLoans[[#This Row],[CIP Cost]])*12 -> 14029.51256 | Q19: =FutureLoans[[#This Row],[Y11]] -> 14029.51256 | R19: =FutureLoans[[#This Row],[Y12]] -> 14029.51256 | S19: =FutureLoans[[#This Row],[Y13]] -> 14029.51256 | T19: =FutureLoans[[#This Row],[Y14]] -> 14029.51256 | U19: =FutureLoans[[#This Row],[Y15]] -> 14029.51256 | V19: =FutureLoans[[#This Row],[Y16]] -> 14029.51256 | W19: =FutureLoans[[#This Row],[Y17]] -> 14029.51256 | X19: =FutureLoans[[#This Row],[Y18]] -> 14029.51256 | Y19: =FutureLoans[[#This Row],[Y19]] -> 14029.51256 | Z19: =-PMT(FutureLoans[[#This Row],[Interest Rate ( Annual %)]]/12,FutureLoans[[#This Row],[Loan Duration (yr)]]*12,FutureLoans[[#This Row],[CIP Cost]])*12 -> 14029.51256 | AA19: =-PMT(FutureLoans[[#This Row],[Interest Rate ( Annual %)]]/12,FutureLoans[[#This Row],[Loan Duration (yr)]]*12,FutureLoans[[#This Row],[CIP Cost]])*12 -> 14029.51256 | AB19: =-PMT(FutureLoans[[#This Row],[Interest Rate ( Annual %)]]/12,FutureLoans[[#This Row],[Loan Duration (yr)]]*12,FutureLoans[[#This Row],[CIP Cost]])*12 -> 14029.51256 | AC19: =FutureLoans[[#This Row],[Y23]] -> 14029.51256 | AD19: =FutureLoans[[#This Row],[Y24]] -> 14029.51256
A20: CIP Year 12 | B20: 207635.0806 | C20: 0.035 | D20: 20 | Q20: =-PMT(FutureLoans[[#This Row],[Interest Rate ( Annual %)]]/12,FutureLoans[[#This Row],[Loan Duration (yr)]]*12,FutureLoans[[#This Row],[CIP Cost]])*12 -> 14450.39794 | R20: =FutureLoans[[#This Row],[Y12]] -> 14450.39794 | S20: =FutureLoans[[#This Row],[Y13]] -> 14450.39794 | T20: =FutureLoans[[#This Row],[Y14]] -> 14450.39794 | U20: =FutureLoans[[#This Row],[Y15]] -> 14450.39794 | V20: =FutureLoans[[#This Row],[Y16]] -> 14450.39794 | W20: =FutureLoans[[#This Row],[Y17]] -> 14450.39794 | X20: =FutureLoans[[#This Row],[Y18]] -> 14450.39794 | Y20: =FutureLoans[[#This Row],[Y19]] -> 14450.39794 | Z20: =-PMT(FutureLoans[[#This Row],[Interest Rate ( Annual %)]]/12,FutureLoans[[#This Row],[Loan Duration (yr)]]*12,FutureLoans[[#This Row],[CIP Cost]])*12 -> 14450.39794 | AA20: =-PMT(FutureLoans[[#This Row],[Interest Rate ( Annual %)]]/12,FutureLoans[[#This Row],[Loan Duration (yr)]]*12,FutureLoans[[#This Row],[CIP Cost]])*12 -> 14450.39794 | AB20: =-PMT(FutureLoans[[#This Row],[Interest Rate ( Annual %)]]/12,FutureLoans[[#This Row],[Loan Duration (yr)]]*12,FutureLoans[[#This Row],[CIP Cost]])*12 -> 14450.39794 | AC20: =FutureLoans[[#This Row],[Y23]] -> 14450.39794 | AD20: =FutureLoans[[#This Row],[Y24]] -> 14450.39794
A21: CIP Year 13 | B21: 213864.133 | C21: 0.035 | D21: 20 | R21: =-PMT(FutureLoans[[#This Row],[Interest Rate ( Annual %)]]/12,FutureLoans[[#This Row],[Loan Duration (yr)]]*12,FutureLoans[[#This Row],[CIP Cost]])*12 -> 14883.90987 | S21: =FutureLoans[[#This Row],[Y13]] -> 14883.90987 | T21: =FutureLoans[[#This Row],[Y14]] -> 14883.90987 | U21: =FutureLoans[[#This Row],[Y15]] -> 14883.90987 | V21: =FutureLoans[[#This Row],[Y16]] -> 14883.90987 | W21: =FutureLoans[[#This Row],[Y17]] -> 14883.90987 | X21: =FutureLoans[[#This Row],[Y18]] -> 14883.90987 | Y21: =FutureLoans[[#This Row],[Y19]] -> 14883.90987 | Z21: =-PMT(FutureLoans[[#This Row],[Interest Rate ( Annual %)]]/12,FutureLoans[[#This Row],[Loan Duration (yr)]]*12,FutureLoans[[#This Row],[CIP Cost]])*12 -> 14883.90987 | AA21: =-PMT(FutureLoans[[#This Row],[Interest Rate ( Annual %)]]/12,FutureLoans[[#This Row],[Loan Duration (yr)]]*12,FutureLoans[[#This Row],[CIP Cost]])*12 -> 14883.90987 | AB21: =-PMT(FutureLoans[[#This Row],[Interest Rate ( Annual %)]]/12,FutureLoans[[#This Row],[Loan Duration (yr)]]*12,FutureLoans[[#This Row],[CIP Cost]])*12 -> 14883.90987 | AC21: =FutureLoans[[#This Row],[Y23]] -> 14883.90987 | AD21: =FutureLoans[[#This Row],[Y24]] -> 14883.90987
A22: CIP Year 14 | B22: 220280.057 | C22: 0.035 | D22: 20 | S22: =-PMT(FutureLoans[[#This Row],[Interest Rate ( Annual %)]]/12,FutureLoans[[#This Row],[Loan Duration (yr)]]*12,FutureLoans[[#This Row],[CIP Cost]])*12 -> 15330.42717 | T22: =FutureLoans[[#This Row],[Y14]] -> 15330.42717 | U22: =FutureLoans[[#This Row],[Y15]] -> 15330.42717 | V22: =FutureLoans[[#This Row],[Y16]] -> 15330.42717 | W22: =FutureLoans[[#This Row],[Y17]] -> 15330.42717 | X22: =FutureLoans[[#This Row],[Y18]] -> 15330.42717 | Y22: =FutureLoans[[#This Row],[Y19]] -> 15330.42717 | Z22: =-PMT(FutureLoans[[#This Row],[Interest Rate ( Annual %)]]/12,FutureLoans[[#This Row],[Loan Duration (yr)]]*12,FutureLoans[[#This Row],[CIP Cost]])*12 -> 15330.42717 | AA22: =-PMT(FutureLoans[[#This Row],[Interest Rate ( Annual %)]]/12,FutureLoans[[#This Row],[Loan Duration (yr)]]*12,FutureLoans[[#This Row],[CIP Cost]])*12 -> 15330.42717 | AB22: =-PMT(FutureLoans[[#This Row],[Interest Rate ( Annual %)]]/12,FutureLoans[[#This Row],[Loan Duration (yr)]]*12,FutureLoans[[#This Row],[CIP Cost]])*12 -> 15330.42717 | AC22: =FutureLoans[[#This Row],[Y23]] -> 15330.42717 | AD22: =FutureLoans[[#This Row],[Y24]] -> 15330.42717
A23: CIP Year 15 | B23: 226888.4587 | C23: 0.035 | D23: 20 | T23: =-PMT(FutureLoans[[#This Row],[Interest Rate ( Annual %)]]/12,FutureLoans[[#This Row],[Loan Duration (yr)]]*12,FutureLoans[[#This Row],[CIP Cost]])*12 -> 15790.33998 | U23: =FutureLoans[[#This Row],[Y15]] -> 15790.33998 | V23: =FutureLoans[[#This Row],[Y16]] -> 15790.33998 | W23: =FutureLoans[[#This Row],[Y17]] -> 15790.33998 | X23: =FutureLoans[[#This Row],[Y18]] -> 15790.33998 | Y23: =FutureLoans[[#This Row],[Y19]] -> 15790.33998 | Z23: =-PMT(FutureLoans[[#This Row],[Interest Rate ( Annual %)]]/12,FutureLoans[[#This Row],[Loan Duration (yr)]]*12,FutureLoans[[#This Row],[CIP Cost]])*12 -> 15790.33998 | AA23: =-PMT(FutureLoans[[#This Row],[Interest Rate ( Annual %)]]/12,FutureLoans[[#This Row],[Loan Duration (yr)]]*12,FutureLoans[[#This Row],[CIP Cost]])*12 -> 15790.33998 | AB23: =-PMT(FutureLoans[[#This Row],[Interest Rate ( Annual %)]]/12,FutureLoans[[#This Row],[Loan Duration (yr)]]*12,FutureLoans[[#This Row],[CIP Cost]])*12 -> 15790.33998 | AC23: =FutureLoans[[#This Row],[Y23]] -> 15790.33998 | AD23: =FutureLoans[[#This Row],[Y24]] -> 15790.33998
A24: CIP Year 16 | B24: 233695.1125 | C24: 0.035 | D24: 20 | U24: =-PMT(FutureLoans[[#This Row],[Interest Rate ( Annual %)]]/12,FutureLoans[[#This Row],[Loan Duration (yr)]]*12,FutureLoans[[#This Row],[CIP Cost]])*12 -> 16264.05018 | V24: =FutureLoans[[#This Row],[Y16]] -> 16264.05018 | W24: =FutureLoans[[#This Row],[Y17]] -> 16264.05018 | X24: =FutureLoans[[#This Row],[Y18]] -> 16264.05018 | Y24: =FutureLoans[[#This Row],[Y19]] -> 16264.05018 | Z24: =-PMT(FutureLoans[[#This Row],[Interest Rate ( Annual %)]]/12,FutureLoans[[#This Row],[Loan Duration (yr)]]*12,FutureLoans[[#This Row],[CIP Cost]])*12 -> 16264.05018 | AA24: =-PMT(FutureLoans[[#This Row],[Interest Rate ( Annual %)]]/12,FutureLoans[[#This Row],[Loan Duration (yr)]]*12,FutureLoans[[#This Row],[CIP Cost]])*12 -> 16264.05018 | AB24: =-PMT(FutureLoans[[#This Row],[Interest Rate ( Annual %)]]/12,FutureLoans[[#This Row],[Loan Duration (yr)]]*12,FutureLoans[[#This Row],[CIP Cost]])*12 -> 16264.05018 | AC24: =FutureLoans[[#This Row],[Y23]] -> 16264.05018 | AD24: =FutureLoans[[#This Row],[Y24]] -> 16264.05018
A25: CIP Year 17 | B25: 240705.9659 | C25: 0.035 | D25: 20 | V25: =-PMT(FutureLoans[[#This Row],[Interest Rate ( Annual %)]]/12,FutureLoans[[#This Row],[Loan Duration (yr)]]*12,FutureLoans[[#This Row],[CIP Cost]])*12 -> 16751.97169 | W25: =FutureLoans[[#This Row],[Y17]] -> 16751.97169 | X25: =FutureLoans[[#This Row],[Y18]] -> 16751.97169 | Y25: =FutureLoans[[#This Row],[Y19]] -> 16751.97169 | Z25: =-PMT(FutureLoans[[#This Row],[Interest Rate ( Annual %)]]/12,FutureLoans[[#This Row],[Loan Duration (yr)]]*12,FutureLoans[[#This Row],[CIP Cost]])*12 -> 16751.97169 | AA25: =-PMT(FutureLoans[[#This Row],[Interest Rate ( Annual %)]]/12,FutureLoans[[#This Row],[Loan Duration (yr)]]*12,FutureLoans[[#This Row],[CIP Cost]])*12 -> 16751.97169 | AB25: =-PMT(FutureLoans[[#This Row],[Interest Rate ( Annual %)]]/12,FutureLoans[[#This Row],[Loan Duration (yr)]]*12,FutureLoans[[#This Row],[CIP Cost]])*12 -> 16751.97169 | AC25: =FutureLoans[[#This Row],[Y23]] -> 16751.97169 | AD25: =FutureLoans[[#This Row],[Y24]] -> 16751.97169
A26: CIP Year 18 | B26: 247927.1448 | C26: 0.035 | D26: 20 | W26: =-PMT(FutureLoans[[#This Row],[Interest Rate ( Annual %)]]/12,FutureLoans[[#This Row],[Loan Duration (yr)]]*12,FutureLoans[[#This Row],[CIP Cost]])*12 -> 17254.53084 | X26: =FutureLoans[[#This Row],[Y18]] -> 17254.53084 | Y26: =FutureLoans[[#This Row],[Y19]] -> 17254.53084 | Z26: =-PMT(FutureLoans[[#This Row],[Interest Rate ( Annual %)]]/12,FutureLoans[[#This Row],[Loan Duration (yr)]]*12,FutureLoans[[#This Row],[CIP Cost]])*12 -> 17254.53084 | AA26: =-PMT(FutureLoans[[#This Row],[Interest Rate ( Annual %)]]/12,FutureLoans[[#This Row],[Loan Duration (yr)]]*12,FutureLoans[[#This Row],[CIP Cost]])*12 -> 17254.53084 | AB26: =-PMT(FutureLoans[[#This Row],[Interest Rate ( Annual %)]]/12,FutureLoans[[#This Row],[Loan Duration (yr)]]*12,FutureLoans[[#This Row],[CIP Cost]])*12 -> 17254.53084 | AC26: =FutureLoans[[#This Row],[Y23]] -> 17254.53084 | AD26: =FutureLoans[[#This Row],[Y24]] -> 17254.53084
A27: CIP Year 19 | B27: 255364.9592 | C27: 0.035 | D27: 20 | X27: =-PMT(FutureLoans[[#This Row],[Interest Rate ( Annual %)]]/12,FutureLoans[[#This Row],[Loan Duration (yr)]]*12,FutureLoans[[#This Row],[CIP Cost]])*12 -> 17772.16677 | Y27: =FutureLoans[[#This Row],[Y19]] -> 17772.16677 | Z27: =-PMT(FutureLoans[[#This Row],[Interest Rate ( Annual %)]]/12,FutureLoans[[#This Row],[Loan Duration (yr)]]*12,FutureLoans[[#This Row],[CIP Cost]])*12 -> 17772.16677 | AA27: =-PMT(FutureLoans[[#This Row],[Interest Rate ( Annual %)]]/12,FutureLoans[[#This Row],[Loan Duration (yr)]]*12,FutureLoans[[#This Row],[CIP Cost]])*12 -> 17772.16677 | AB27: =-PMT(FutureLoans[[#This Row],[Interest Rate ( Annual %)]]/12,FutureLoans[[#This Row],[Loan Duration (yr)]]*12,FutureLoans[[#This Row],[CIP Cost]])*12 -> 17772.16677 | AC27: =FutureLoans[[#This Row],[Y23]] -> 17772.16677 | AD27: =FutureLoans[[#This Row],[Y24]] -> 17772.16677
A28: CIP Year 20 | B28: 263025.908 | C28: 0.035 | D28: 20 | Y28: =-PMT(FutureLoans[[#This Row],[Interest Rate ( Annual %)]]/12,FutureLoans[[#This Row],[Loan Duration (yr)]]*12,FutureLoans[[#This Row],[CIP Cost]])*12 -> 18305.33177 | Z28: =-PMT(FutureLoans[[#This Row],[Interest Rate ( Annual %)]]/12,FutureLoans[[#This Row],[Loan Duration (yr)]]*12,FutureLoans[[#This Row],[CIP Cost]])*12 -> 18305.33177 | AA28: =-PMT(FutureLoans[[#This Row],[Interest Rate ( Annual %)]]/12,FutureLoans[[#This Row],[Loan Duration (yr)]]*12,FutureLoans[[#This Row],[CIP Cost]])*12 -> 18305.33177 | AB28: =-PMT(FutureLoans[[#This Row],[Interest Rate ( Annual %)]]/12,FutureLoans[[#This Row],[Loan Duration (yr)]]*12,FutureLoans[[#This Row],[CIP Cost]])*12 -> 18305.33177 | AC28: =FutureLoans[[#This Row],[Y23]] -> 18305.33177 | AD28: =FutureLoans[[#This Row],[Y24]] -> 18305.33177
A29: CIP Year 21 | B29: 270916.6852 | C29: 0.035 | D29: 20 | Z29: =-PMT(FutureLoans[[#This Row],[Interest Rate ( Annual %)]]/12,FutureLoans[[#This Row],[Loan Duration (yr)]]*12,FutureLoans[[#This Row],[CIP Cost]])*12 -> 18854.49172 | AA29: =-PMT(FutureLoans[[#This Row],[Interest Rate ( Annual %)]]/12,FutureLoans[[#This Row],[Loan Duration (yr)]]*12,FutureLoans[[#This Row],[CIP Cost]])*12 -> 18854.49172 | AB29: =-PMT(FutureLoans[[#This Row],[Interest Rate ( Annual %)]]/12,FutureLoans[[#This Row],[Loan Duration (yr)]]*12,FutureLoans[[#This Row],[CIP Cost]])*12 -> 18854.49172 | AC29: =FutureLoans[[#This Row],[Y23]] -> 18854.49172 | AD29: =FutureLoans[[#This Row],[Y24]] -> 18854.49172
A30: CIP Year 22 | B30: 279044.1858 | C30: 0.035 | D30: 20 | AA30: =-PMT(FutureLoans[[#This Row],[Interest Rate ( Annual %)]]/12,FutureLoans[[#This Row],[Loan Duration (yr)]]*12,FutureLoans[[#This Row],[CIP Cost]])*12 -> 19420.12647 | AB30: =-PMT(FutureLoans[[#This Row],[Interest Rate ( Annual %)]]/12,FutureLoans[[#This Row],[Loan Duration (yr)]]*12,FutureLoans[[#This Row],[CIP Cost]])*12 -> 19420.12647 | AC30: =FutureLoans[[#This Row],[Y23]] -> 19420.12647 | AD30: =FutureLoans[[#This Row],[Y24]] -> 19420.12647
A31: CIP Year 23 | B31: 287415.5113 | C31: 0.035 | D31: 20 | AB31: =-PMT(FutureLoans[[#This Row],[Interest Rate ( Annual %)]]/12,FutureLoans[[#This Row],[Loan Duration (yr)]]*12,FutureLoans[[#This Row],[CIP Cost]])*12 -> 20002.73027 | AC31: =FutureLoans[[#This Row],[Y23]] -> 20002.73027 | AD31: =FutureLoans[[#This Row],[Y24]] -> 20002.73027
A32: CIP Year 24 | B32: 296037.9767 | C32: 0.035 | D32: 20 | AC32: =-PMT(FutureLoans[[#This Row],[Interest Rate ( Annual %)]]/12,FutureLoans[[#This Row],[Loan Duration (yr)]]*12,FutureLoans[[#This Row],[CIP Cost]])*12 -> 20602.81218 | AD32: =FutureLoans[[#This Row],[Y24]] -> 20602.81218
A33: CIP Year 25 | B33: 304919.116 | C33: 0.035 | D33: 20 | AD33: =-PMT(FutureLoans[[#This Row],[Interest Rate ( Annual %)]]/12,FutureLoans[[#This Row],[Loan Duration (yr)]]*12,FutureLoans[[#This Row],[CIP Cost]])*12 -> 21220.89654

Sheet Future Connections
A1: Notes/Assumptions: No decrease in usage applied if no rate increased applied that year. 0% used per client. Add table rows as needed to include additional projects.
C3: =ReadMe!M6 -> 2018 | D3: =C3+1 -> 2019 | E3: =D3+1 -> 2020 | F3: 2021 | G3: 2022 | H3: 2023 | I3: 2024 | J3: 2025 | K3: 2026 | L3: 2027 | M3: 2028 | N3: 2029 | O3: 2030 | P3: 2031 | Q3: =P3+1 -> 2032 | R3: =Q3+1 -> 2033 | S3: =R3+1 -> 2034 | T3: =S3+1 -> 2035 | U3: =T3+1 -> 2036 | V3: =U3+1 -> 2037 | W3: =V3+1 -> 2038 | X3: =W3+1 -> 2039 | Y3: =X3+1 -> 2040 | Z3: =Y3+1 -> 2041 | AA3: =Z3+1 -> 2042 | AB3: 2043
A4: Description | B4: Uniform | C4: Y0 | D4: Y1 | E4: Y2 | F4: Y3 | G4: Y4 | H4: Y5 | I4: Y6 | J4: Y7 | K4: Y8 | L4: Y9 | M4: Y10 | N4: Y11 | O4: Y12 | P4: Y13 | Q4: Y14 | R4: Y15 | S4: Y16 | T4: Y17 | U4: Y18 | V4: Y19 | W4: Y20 | X4: Y21 | Y4: Y22 | Z4: Y23 | AA4: Y24 | AB4: Y25
A5: Decrease in Usage with rate Increase | B5: 0 | D5: =IF('Y1 Rate'!B10=FALSE,0,UseDecreaseFactor) -> 0
A6: Phase 2 Apartment Complex | B6: 4 units 16 apartments 1 clubhouse

Sheet Y0 Nonmetered Data
A1: Notes/Assumptions: Billing is Annual. SEWERUSAGEINFO.XLSX
A3: Non-metered Users and Rates
A4: Account Name/Number | B4: Number of Accounts | C4: Annual Rate | D4: Calculated Yearly Revenue
A5: CSD | B5: 150.93 | C5: 330 | D5: =Nonmeter[[#This Row],[Number of Accounts]]*Nonmeter[[#This Row],[Annual Rate]] -> 49806.9
A6: DDSO | B6: 12 | C6: 330 | D6: =Nonmeter[[#This Row],[Number of Accounts]]*Nonmeter[[#This Row],[Annual Rate]] -> 3960
A7: Town of X | B7: 1 | C7: 330 | D7: =Nonmeter[[#This Row],[Number of Accounts]]*Nonmeter[[#This Row],[Annual Rate]] -> 330
A8: Town of X | B8: 1 | C8: 330 | D8: =Nonmeter[[#This Row],[Number of Accounts]]*Nonmeter[[#This Row],[Annual Rate]] -> 330
A9: X Public Library | B9: 1 | C9: 330 | D9: =Nonmeter[[#This Row],[Number of Accounts]]*Nonmeter[[#This Row],[Annual Rate]] -> 330
A10: St Johns Episcipol | B10: 4 | C10: 330 | D10: =Nonmeter[[#This Row],[Number of Accounts]]*Nonmeter[[#This Row],[Annual Rate]] -> 1320
A11: United Meth Church | B11: 1 | C11: 330 | D11: =Nonmeter[[#This Row],[Number of Accounts]]*Nonmeter[[#This Row],[Annual Rate]] -> 330
A12: United Meth Church | B12: 1 | C12: 330 | D12: =Nonmeter[[#This Row],[Number of Accounts]]*Nonmeter[[#This Row],[Annual Rate]] -> 330
A13: First Presbytarian | B13: 1 | C13: 330 | D13: =Nonmeter[[#This Row],[Number of Accounts]]*Nonmeter[[#This Row],[Annual Rate]] -> 330
A14: First Presbytarian | B14: 1 | C14: 330 | D14: =Nonmeter[[#This Row],[Number of Accounts]]*Nonmeter[[#This Row],[Annual Rate]] -> 330
A15: St Pauls Catholic | B15: 0 | C15: 330 | D15: =Nonmeter[[#This Row],[Number of Accounts]]*Nonmeter[[#This Row],[Annual Rate]] -> 0
A16: St Pauls Catholic | B16: 1 | C16: 330 | D16: =Nonmeter[[#This Row],[Number of Accounts]]*Nonmeter[[#This Row],[Annual Rate]] -> 330
A17: USPO | B17: 1 | C17: 330 | D17: =Nonmeter[[#This Row],[Number of Accounts]]*Nonmeter[[#This Row],[Annual Rate]] -> 330
A18: Town of Y | B18: 32 | C18: 330 | D18: =Nonmeter[[#This Row],[Number of Accounts]]*Nonmeter[[#This Row],[Annual Rate]] -> 10560
A19: Village | B19: 71 | C19: 330 | D19: =Nonmeter[[#This Row],[Number of Accounts]]*Nonmeter[[#This Row],[Annual Rate]] -> 23430
A20: Residential | B20: 1220 | C20: 330 | D20: =Nonmeter[[#This Row],[Number of Accounts]]*Nonmeter[[#This Row],[Annual Rate]] -> 402600

Sheet Y0 Metered Data
A1: Notes/Assumptions: Data is in gal (multiplied raw unit data by 15,000) Billing is Quarterly. SEWERUSAGEINFO.xlsx. User must input billing data starting in cell A8. Data should not be entered in columns after N. | O1: Rate Block Statistics Calculations (should not be modified)
P3: =P7 -> Total Annual Usage (gal) | R3: =SUM(R8:R60000) -> 660000 | S3: =SUM(S8:S60000) -> 658350 | T3: 2011800 | U3: 610350 | V3: 527400 | W3: 5623650 | X3: 4450200 | Y3: =O7 -> Average Bill Period Usage (gal) | Z3: =AVERAGEIF(Z8:Z60000,">0",Z8:Z60000) -> 15000 | AA3: =AVERAGEIF(AA8:AA60000,">0",AA8:AA60000) -> 23512.5 | AB3: 41912.5 | AC3: 76293.75 | AD3: 131850 | AE3: 468637.5 | AF3: 1112550
P4: Lower Limit | R4: 0 | S4: =R5+0.001 -> 15000.001 | T4: 30000.001 | U4: 60000.001 | V4: 100000.001 | W4: 180000.001 | X4: =W5+0.001 -> 1000000.001 | Y4: Lower Limit | Z4: =R4 -> 0 | AA4: =S4 -> 15000.001 | AB4: 30000.001 | AC4: 60000.001 | AD4: 100000.001 | AE4: 180000.001 | AF4: 1000000.001
P5: Upper Limit | R5: ='Rate Block Statistics'!$A7 -> 15000 | S5: ='Rate Block Statistics'!$A8 -> 30000 | T5: ='Rate Block Statistics'!$A9 -> 60000 | U5: ='Rate Block Statistics'!$A10 -> 100000 | V5: ='Rate Block Statistics'!$A11 -> 180000 | W5: ='Rate Block Statistics'!$A12 -> 1000000 | X5: =MAX(O:O) -> 1112550 | Y5: Upper Limit | Z5: =R5 -> 15000 | AA5: 30000 | AB5: 60000 | AC5: 100000 | AD5: 180000 | AE5: 1000000 | AF5: 1112550
R6: Usage Bins | Z6: Usage Bins
A7: Account | B7: Rate Class | C7: =CONCATENATE(ReadMe!M7, ReadMe!M6-1) -> June2017 | D7: =C7+30 -> 2017-07-01 | E7: =D7+31 -> 2017-08-01 | F7: =E7+31 -> 2017-09-01 | G7: 2017-10-02 | H7: 2017-11-02 | I7: 2017-12-03 | J7: 2018-01-03 | K7: 2018-02-03 | L7: 2018-03-06 | M7: 2018-04-06 | N7: 2018-05-07 | O7: Average Bill Period Usage (gal) | P7: Total Annual Usage (gal) | Q7: =UOM -> gal | R7: =CONCATENATE(R4," - ",R5) -> 0 - 15000 | S7: =CONCATENATE(S4," - ",S5) -> 15000.001 - 30000 | T7: 30000.001 - 60000 | U7: 60000.001 - 100000 | V7: 100000.001 - 180000 | W7: 180000.001 - 1000000 | X7: =CONCATENATE(" >", W5) -> >1000000 | Y7: =UOM -> gal | Z7: =CONCATENATE(Z4," - ",Z5) -> 0 - 15000 | AA7: =CONCATENATE(AA4," - ",AA5) -> 15000.001 - 30000 | AB7: 30000.001 - 60000 | AC7: 60000.001 - 100000 | AD7: 100000.001 - 180000 | AE7: 180000.001 - 1000000 | AF7: =CONCATENATE(" >", AF4) -> >1000000.001
A8: Commercial 1 | B8: Commercial | C8: 15000 | F8: 15000 | I8: 15000 | L8: 15000 | O8: =IFERROR(IF(AVERAGE(C8:N8)<0,0,AVERAGE(C8:N8)),"") -> 15000 | P8: =IF(O8<>"",SUM(C8:N8),"") -> 60000 | R8: =IF(AND($O8<=R$5,$O8>=R$4),$P8,"") -> 60000 | S8: =IF(AND($O8<=S$5,$O8>=S$4),$P8,"") ->  | Z8: =IF(AND($O8<=Z$5,$O8>=Z$4),$O8,"") -> 15000 | AA8: =IF(AND($O8<=AA$5,$O8>=AA$4),$O8,"") -> 
A9: Commercial 2 | B9: Commercial | C9: 15000 | F9: 15000 | I9: 15000 | L9: 15000 | O9: =IFERROR(IF(AVERAGE(C9:N9)<0,0,AVERAGE(C9:N9)),"") -> 15000 | P9: =IF(O9<>"",SUM(C9:N9),"") -> 60000 | R9: =IF(AND($O9<=R$5,$O9>=R$4),$P9,"") -> 60000 | Z9: =IF(AND($O9<=Z$5,$O9>=Z$4),$O9,"") -> 15000 | AB9: =IF(AND($O9<=AB$5,$O9>=AB$4),$O9,"") -> 
A10: Commercial 3 | B10: Commercial | C10: 739800 | F10: 706500 | I10: 833100 | L10: 1042650 | O10: 830512.5 | P10: 3322050 | W10: 3322050 | AE10: 830512.5
A11: Commercial 4 | B11: Commercial | C11: 26550 | F11: 42450 | I11: 29850 | L11: 44100 | O11: =IFERROR(IF(AVERAGE(C11:N11)<0,0,AVERAGE(C11:N11)),"") -> 35737.5 | P11: 142950 | T11: 142950 | AB11: 35737.5
A12: Commercial 5 | B12: Commercial | C12: 15600 | F12: 18450 | I12: 15000 | L12: 15000 | O12: 16012.5 | P12: 64050 | S12: 64050 | AA12: 16012.5
A13: Commercial 6 | B13: Commercial | C13: 15000 | F13: 15000 | I13: 15000 | L13: 15000 | O13: 15000 | P13: 60000 | R13: 60000 | Z13: 15000
A14: Commercial 7 | B14: Commercial | C14: 27600 | F14: 25500 | I14: 24150 | L14: 24750 | O14: 25500 | P14: 102000 | S14: 102000 | AA14: 25500
A15: Commercial 8 | B15: Commercial | C15: 52800 | F15: 15000 | I15: 15000 | L15: 15000 | O15: =IFERROR(IF(AVERAGE(C15:N15)<0,0,AVERAGE(C15:N15)),"") -> 24450 | P15: 97800 | S15: 97800 | AA15: 24450
A16: Commercial 9 | B16: Commercial | C16: 51150 | F16: 68400 | I16: 60750 | L16: 36900 | O16: 54300 | P16: 217200 | T16: 217200 | AB16: 54300
A17: Commercial 10 | B17: Commercial | C17: 26850 | F17: 25650 | I17: 35700 | L17: 25950 | O17: 28537.5 | P17: 114150 | S17: 114150 | AA17: 28537.5
A18: Commercial 11 | B18: Commercial | C18: 21300 | F18: 19950 | I18: 17550 | L18: 19650 | O18: 19612.5 | P18: 78450 | S18: 78450 | AA18: 19612.5
A19: Commercial 12 | B19: Commercial | C19: 152700 | F19: 135300 | I19: 107550 | L19: 131850 | O19: 131850 | P19: 527400 | V19: 527400 | AD19: 131850
A20: Commercial 13 | B20: Commercial | C20: 74100 | F20: 52800 | I20: 36300 | L20: 40800 | O20: 51000 | P20: 204000 | T20: 204000 | AB20: 51000
A21: Commercial 14 | B21: Commercial | C21: 34350 | F21: 32250 | I21: 31050 | L21: 29850 | O21: 31875 | P21: 127500 | T21: 127500 | AB21: 31875
A22: Commercial 15 | B22: Commercial | C22: 83550 | F22: 87150 | I22: 64800 | L22: 63600 | O22: 74775 | P22: 299100 | U22: 299100 | AC22: 74775
A23: Commercial 16 | B23: Commercial | C23: 1091250 | F23: 1161000 | I23: 1028400 | L23: 1169550 | O23: 1112550 | P23: 4450200 | X23: 4450200 | AF23: 1112550
A24: Commercial 17 | B24: Commercial | C24: 30900 | F24: 28200 | I24: 38700 | L24: 47250 | O24: 36262.5 | P24: 145050 | T24: 145050 | AB24: 36262.5
A25: Commercial 18 | B25: Commercial | C25: 55650 | F25: 48600 | I25: 40950 | L25: 80250 | O25: 56362.5 | P25: 225450 | T25: 225450 | AB25: 56362.5
A26: Commercial 19 | B26: Commercial | C26: 19200 | F26: 37800 | I26: 17400 | L26: 15000 | O26: 22350 | P26: 89400 | S26: 89400 | AA26: 22350
A27: Commercial 20 | B27: Commercial | C27: 15000 | F27: 15000 | I27: 15000 | L27: 15000 | O27: 15000 | P27: 60000 | R27: 60000 | Z27: 15000
A28: Commercial 21 | B28: Commercial | C28: 84900 | F28: 84300 | I28: 72750 | L28: 69300 | O28: 77812.5 | P28: 311250 | U28: 311250 | AC28: 77812.5
A29: Commercial 22 | B29: Commercial | C29: 15000 | F29: 15000 | I29: 15000 | L29: 15000 | O29: 15000 | P29: 60000 | R29: 60000 | Z29: 15000
A30: Commercial 23 | B30: Commercial | C30: 30600 | F30: 28800 | I30: 26100 | L30: 27000 | O30: 28125 | P30: 112500 | S30: 112500 | AA30: 28125
A31: Commercial 24 | B31: Commercial | C31: 60000 | F31: 72450 | I31: 54900 | L31: 46500 | O31: 58462.5 | P31: 233850 | T31: 233850 | AB31: 58462.5
A32: Commercial 25 | B32: Commercial | C32: 15000 | F32: 15000 | I32: 15000 | L32: 15000 | O32: 15000 | P32: 60000 | R32: 60000 | Z32: 15000
A33: Commercial 26 | B33: Commercial | C33: 235650 | F33: 409950 | I33: 400650 | L33: 444600 | O33: 372712.5 | P33: 1490850 | W33: 1490850 | AE33: 372712.5
A34: Commercial 27 | B34: Commercial | C34: 32550 | F34: 28200 | I34: 31200 | L34: 43800 | O34: 33937.5 | P34: 135750 | T34: 135750 | AB34: 33937.5
A35: Commercial 28 | B35: Commercial | C35: 15000 | F35: 15000 | I35: 15000 | L35: 15000 | O35: 15000 | P35: 60000 | R35: 60000 | Z35: 15000
A36: Commercial 29 | B36: Commercial | C36: 15000 | F36: 15000 | I36: 15000 | L36: 15000 | O36: 15000 | P36: 60000 | R36: 60000 | Z36: 15000
A37: Commercial 30 | B37: Commercial | C37: 15000 | F37: 15000 | I37: 15000 | L37: 15000 | O37: 15000 | P37: 60000 | R37: 60000 | Z37: 15000
A38: Commercial 31 | B38: Commercial | C38: 15000 | F38: 15000 | I38: 15000 | L38: 15000 | O38: 15000 | P38: 60000 | R38: 60000 | Z38: 15000
A39: Commercial 32 | B39: Commercial | C39: 226500 | F39: 215700 | I39: 170250 | L39: 198300 | O39: 202687.5 | P39: 810750 | W39: 810750 | AE39: 202687.5
A40: Commercial 33 | B40: Commercial | C40: 15000 | F40: 15000 | I40: 15000 | L40: 15000 | O40: 15000 | P40: 60000 | R40: 60000 | Z40: 15000
A41: Commercial 34 | B41: Commercial | C41: 34800 | F41: 34500 | I41: 29850 | L41: 31650 | O41: 32700 | P41: 130800 | T41: 130800 | AB41: 32700
A42: Commercial 35 | B42: Commercial | C42: 42750 | F42: 25950 | I42: 34950 | L42: 33450 | O42: 34275 | P42: 137100 | T42: 137100 | AB42: 34275
A43: Commercial 36 | B43: Commercial | C43: 60450 | F43: 48600 | I43: 39450 | L43: 36750 | O43: 46312.5 | P43: 185250 | T43: 185250 | AB43: 46312.5
A44: Commercial 37 | B44: Commercial | C44: 15000 | F44: 42150 | I44: 33150 | L44: 36600 | O44: 31725 | P44: 126900 | T44: 126900 | AB44: 31725
AF50: =IF(AND($O50<=AF$5,$O50>=AF$4),$O50,"") -> 
Z51: =IF(AND($O51<=Z$5,$O51>=Z$4),$O51,"") -> 
T58: =IF(AND($O58<=T$5,$O58>=T$4),$P58,"") -> 
R59: =IF(AND($O59<=R$5,$O59>=R$4),$P59,"") -> 
O73: =IFERROR(IF(AVERAGE(C73:N73)<0,0,AVERAGE(C73:N73)),"") ->  | P73: =IF(O73<>"",SUM(C73:N73),"") -> 
AE82: =IF(AND($O82<=AE$5,$O82>=AE$4),$O82,"") -> 
O94: =IFERROR(IF(AVERAGE(C94:N94)<0,0,AVERAGE(C94:N94)),"") -> 
W100: =IF(AND($O100<=W$5,$O100>=W$4),$P100,"") -> 
AD114: =IF(AND($O114<=AD$5,$O114>=AD$4),$O114,"") -> 
Z115: =IF(AND($O115<=Z$5,$O115>=Z$4),$O115,"") -> 
R123: =IF(AND($O123<=R$5,$O123>=R$4),$P123,"") -> 
O137: =IFERROR(IF(AVERAGE(C137:N137)<0,0,AVERAGE(C137:N137)),"") ->  | P137: =IF(O137<>"",SUM(C137:N137),"") -> 
T143: =IF(AND($O143<=T$5,$O143>=T$4),$P143,"") -> 
AC146: =IF(AND($O146<=AC$5,$O146>=AC$4),$O146,"") -> 
AB178: =IF(AND($O178<=AB$5,$O178>=AB$4),$O178,"") -> 
Z179: =IF(AND($O179<=Z$5,$O179>=Z$4),$O179,"") -> 
W185: =IF(AND($O185<=W$5,$O185>=W$4),$P185,"") -> 
R187: =IF(AND($O187<=R$5,$O187>=R$4),$P187,"") -> 
O201: =IFERROR(IF(AVERAGE(C201:N201)<0,0,AVERAGE(C201:N201)),"") ->  | P201: =IF(O201<>"",SUM(C201:N201),"") -> 
T228: =IF(AND($O228<=T$5,$O228>=T$4),$P228,"") -> 
AF234: =IF(AND($O234<=AF$5,$O234>=AF$4),$O234,"") -> 
Z235: =IF(AND($O235<=Z$5,$O235>=Z$4),$O235,"") -> 
R251: =IF(AND($O251<=R$5,$O251>=R$4),$P251,"") -> 
O265: =IFERROR(IF(AVERAGE(C265:N265)<0,0,AVERAGE(C265:N265)),"") ->  | P265: =IF(O265<>"",SUM(C265:N265),"") -> 
AF266: =IF(AND($O266<=AF$5,$O266>=AF$4),$O266,"") -> 
W270: =IF(AND($O270<=W$5,$O270>=W$4),$P270,"") -> 
AF298: =IF(AND($O298<=AF$5,$O298>=AF$4),$O298,"") -> 
Z299: =IF(AND($O299<=Z$5,$O299>=Z$4),$O299,"") -> 
T313: =IF(AND($O313<=T$5,$O313>=T$4),$P313,"") -> 
R315: =IF(AND($O315<=R$5,$O315>=R$4),$P315,"") -> 
O329: =IFERROR(IF(AVERAGE(C329:N329)<0,0,AVERAGE(C329:N329)),"") ->  | P329: =IF(O329<>"",SUM(C329:N329),"") -> 
AE330: =IF(AND($O330<=AE$5,$O330>=AE$4),$O330,"") -> 
W355: =IF(AND($O355<=W$5,$O355>=W$4),$P355,"") -> 
AD362: =IF(AND($O362<=AD$5,$O362>=AD$4),$O362,"") -> 
Z363: =IF(AND($O363<=Z$5,$O363>=Z$4),$O363,"") -> 
R379: =IF(AND($O379<=R$5,$O379>=R$4),$P379,"") -> 
O393: =IFERROR(IF(AVERAGE(C393:N393)<0,0,AVERAGE(C393:N393)),"") ->  | P393: =IF(O393<>"",SUM(C393:N393),"") -> 
AC394: =IF(AND($O394<=AC$5,$O394>=AC$4),$O394,"") -> 
T398: =IF(AND($O398<=T$5,$O398>=T$4),$P398,"") -> 
AB426: =IF(AND($O426<=AB$5,$O426>=AB$4),$O426,"") -> 
Z427: =IF(AND($O427<=Z$5,$O427>=Z$4),$O427,"") -> 
W440: =IF(AND($O440<=W$5,$O440>=W$4),$P440,"") -> 
R443: =IF(AND($O443<=R$5,$O443>=R$4),$P443,"") -> 
O457: =IFERROR(IF(AVERAGE(C457:N457)<0,0,AVERAGE(C457:N457)),"") ->  | P457: =IF(O457<>"",SUM(C457:N457),"") -> 
AF482: =IF(AND($O482<=AF$5,$O482>=AF$4),$O482,"") -> 
T483: =IF(AND($O483<=T$5,$O483>=T$4),$P483,"") ->  | Z483: =IF(AND($O483<=Z$5,$O483>=Z$4),$O483,"") -> 
R507: =IF(AND($O507<=R$5,$O507>=R$4),$P507,"") -> 
AF514: =IF(AND($O514<=AF$5,$O514>=AF$4),$O514,"") -> 
O521: =IFERROR(IF(AVERAGE(C521:N521)<0,0,AVERAGE(C521:N521)),"") ->  | P521: =IF(O521<>"",SUM(C521:N521),"") -> 
W525: =IF(AND($O525<=W$5,$O525>=W$4),$P525,"") -> 
AF546: =IF(AND($O546<=AF$5,$O546>=AF$4),$O546,"") -> 
Z547: =IF(AND($O547<=Z$5,$O547>=Z$4),$O547,"") -> 
T568: =IF(AND($O568<=T$5,$O568>=T$4),$P568,"") -> 
R571: =IF(AND($O571<=R$5,$O571>=R$4),$P571,"") -> 
AE578: =IF(AND($O578<=AE$5,$O578>=AE$4),$O578,"") -> 
O585: =IFERROR(IF(AVERAGE(C585:N585)<0,0,AVERAGE(C585:N585)),"") ->  | P585: =IF(O585<>"",SUM(C585:N585),"") -> 
W610: =IF(AND($O610<=W$5,$O610>=W$4),$P610,"") ->  | AD610: =IF(AND($O610<=AD$5,$O610>=AD$4),$O610,"") -> 
Z611: =IF(AND($O611<=Z$5,$O611>=Z$4),$O611,"") -> 
R635: =IF(AND($O635<=R$5,$O635>=R$4),$P635,"") -> 
AC642: =IF(AND($O642<=AC$5,$O642>=AC$4),$O642,"") -> 
O649: =IFERROR(IF(AVERAGE(C649:N649)<0,0,AVERAGE(C649:N649)),"") ->  | P649: =IF(O649<>"",SUM(C649:N649),"") -> 
T653: =IF(AND($O653<=T$5,$O653>=T$4),$P653,"") -> 
AB674: =IF(AND($O674<=AB$5,$O674>=AB$4),$O674,"") -> 
Z675: =IF(AND($O675<=Z$5,$O675>=Z$4),$O675,"") -> 
W695: =IF(AND($O695<=W$5,$O695>=W$4),$P695,"") -> 
R699: =IF(AND($O699<=R$5,$O699>=R$4),$P699,"") -> 
O713: =IFERROR(IF(AVERAGE(C713:N713)<0,0,AVERAGE(C713:N713)),"") ->  | P713: =IF(O713<>"",SUM(C713:N713),"") -> 
AF730: =IF(AND($O730<=AF$5,$O730>=AF$4),$O730,"") -> 
Z731: =IF(AND($O731<=Z$5,$O731>=Z$4),$O731,"") -> 
T738: =IF(AND($O738<=T$5,$O738>=T$4),$P738,"") -> 
AF762: =IF(AND($O762<=AF$5,$O762>=AF$4),$O762,"") -> 
R763: =IF(AND($O763<=R$5,$O763>=R$4),$P763,"") -> 
O777: =IFERROR(IF(AVERAGE(C777:N777)<0,0,AVERAGE(C777:N777)),"") ->  | P777: =IF(O777<>"",SUM(C777:N777),"") -> 
W780: =IF(AND($O780<=W$5,$O780>=W$4),$P780,"") -> 
AF794: =IF(AND($O794<=AF$5,$O794>=AF$4),$O794,"") -> 
Z795: =IF(AND($O795<=Z$5,$O795>=Z$4),$O795,"") -> 
T823: =IF(AND($O823<=T$5,$O823>=T$4),$P823,"") -> 
AE826: =IF(AND($O826<=AE$5,$O826>=AE$4),$O826,"") -> 
R827: =IF(AND($O827<=R$5,$O827>=R$4),$P827,"") -> 
O841: =IFERROR(IF(AVERAGE(C841:N841)<0,0,AVERAGE(C841:N841)),"") ->  | P841: =IF(O841<>"",SUM(C841:N841),"") -> 
AD858: =IF(AND($O858<=AD$5,$O858>=AD$4),$O858,"") -> 
Z859: =IF(AND($O859<=Z$5,$O859>=Z$4),$O859,"") -> 
W865: =IF(AND($O865<=W$5,$O865>=W$4),$P865,"") -> 
AC890: =IF(AND($O890<=AC$5,$O890>=AC$4),$O890,"") -> 
R891: =IF(AND($O891<=R$5,$O891>=R$4),$P891,"") -> 
O905: =IFERROR(IF(AVERAGE(C905:N905)<0,0,AVERAGE(C905:N905)),"") ->  | P905: =IF(O905<>"",SUM(C905:N905),"") -> 
T908: =IF(AND($O908<=T$5,$O908>=T$4),$P908,"") -> 
AB922: =IF(AND($O922<=AB$5,$O922>=AB$4),$O922,"") -> 
Z923: =IF(AND($O923<=Z$5,$O923>=Z$4),$O923,"") -> 
W950: =IF(AND($O950<=W$5,$O950>=W$4),$P950,"") -> 
R955: =IF(AND($O955<=R$5,$O955>=R$4),$P955,"") -> 
O969: =IFERROR(IF(AVERAGE(C969:N969)<0,0,AVERAGE(C969:N969)),"") ->  | P969: =IF(O969<>"",SUM(C969:N969),"") -> 
AF978: =IF(AND($O978<=AF$5,$O978>=AF$4),$O978,"") -> 
Z979: =IF(AND($O979<=Z$5,$O979>=Z$4),$O979,"") -> 
T993: =IF(AND($O993<=T$5,$O993>=T$4),$P993,"") -> 
... 139 more rows

Sheet Y0 Rate
A1: Notes/Assumptions: Data from General Code.pdf. Municipality, NY - Archive 2017-10-25. Actual Y0 revenue is calculated on the Y0 Calculated Revenue tab (hidden). If metered data or rates are changed, Press the 'Update Y0 Calculations' button below to recalculate Y0 revenue.
A3: Rate Classifications
A4: How many rate classifications are used? | C4: 1
A5: Rate Class1: | B5: Commercial
A6: Rate Class2:
A7: Rate Class3:
A8: Rate Class4:
A12: Rate Structure | C12: =IF($C$4>0,B5,"Standard Rate") -> Commercial | F12: =IF($C$4>1,$B6,"") -> 
A13: Fee Description | B13: In Use? | C13: Usage Cutoff | D13: Rate | E13: Unit | F13: Usage Cutoff2
A14: Fixed Charge | B14: FALSE
A15: Min Charge | B15: FALSE
A16: Usage Charges | B16: TRUE | D16: 82.5 | E16: 15000 | F16: gal

Sheet Y1 Rate
A1: Notes/Assumptions: Use the dropdown to change rate changed proposed from FALSE to TRUE if rate increase planned.Projected Y1 revenue is calculated on the Y1 Calculated Revenue tab (hidden). If metered data or rates are changed, Press the 'Update Y1 Calculations' button below to recalculate Y1 revenue.
A3: Rate Classifications
A4: How many rate classifications are used? | C4: 1
A5: Rate Class1: | B5: Commercial
A6: Rate Class2:
A7: Rate Class3:
A8: Rate Class4:
A10: Rate changed proposed? | B10: TRUE
A11: Flat rate increase (Optional)
A14: Rate Structure | C14: =IF($C$4>0,B5,"Standard Rate") -> Commercial | F14: =IF($C$4>1,$B6,"") -> 
A15: Fee Description | B15: In Use? | C15: Usage Cutoff | D15: Rate | E15: Unit | F15: Usage Cutoff2
A16: Fixed Charge | B16: FALSE
A17: Min Charge | B17: FALSE
A18: Usage Charges | B18: TRUE | D18: =Y0_Rate*(1.03) -> 84.975 | E18: 15000 | F18: gal

Sheet Y0 Calculated Revenue
A1: Notes/Assumptions: Billing is completed quarterly. 1 unit = 15,000 gal. Formulas in this tab should not be modified. | AA1: Rate Block Statistics Calculations (should not be modified)
Z2: Total Bin Revenue | AA2: =SUM(AA7:AA60000) -> 3630 | AB2: =SUM(AB7:AB60000) -> 3620.925 | AC2: 11064.9 | AD2: 3356.925 | AE2: 2900.7 | AF2: 30930.075 | AG2: 24476.1
Z3: Average Bill | AI3: =IFERROR(AVERAGE(AI7:AI60000),"-") -> 82.5 | AJ3: =IFERROR(AVERAGE(AJ7:AJ60000),"-") -> 129.31875 | AK3: 230.51875 | AL3: 419.615625 | AM3: 725.175 | AN3: 2577.50625 | AO3: 6119.025
A4: Total Calculated Y0 Revenue: | D4: =SUM(O7:Z13413) -> 79979.625 | Z4: Lower Limit | AA4: ='Y0 Metered Data'!R4 -> 0 | AB4: ='Y0 Metered Data'!S4 -> 15000.001 | AC4: ='Y0 Metered Data'!T4 -> 30000.001 | AD4: ='Y0 Metered Data'!U4 -> 60000.001 | AE4: ='Y0 Metered Data'!V4 -> 100000.001 | AF4: ='Y0 Metered Data'!W4 -> 180000.001 | AG4: ='Y0 Metered Data'!X4 -> 1000000.001 | AI4: =AA4 -> 0 | AJ4: =AB4 -> 15000.001 | AK4: 30000.001 | AL4: 60000.001 | AM4: 100000.001 | AN4: 180000.001 | AO4: 1000000.001
Z5: Upper Limit | AA5: ='Y0 Metered Data'!R5 -> 15000 | AB5: ='Y0 Metered Data'!S5 -> 30000 | AC5: ='Y0 Metered Data'!T5 -> 60000 | AD5: ='Y0 Metered Data'!U5 -> 100000 | AE5: ='Y0 Metered Data'!V5 -> 180000 | AF5: ='Y0 Metered Data'!W5 -> 1000000 | AG5: ='Y0 Metered Data'!X5 -> 1112550 | AI5: =AA5 -> 15000 | AJ5: =AB5 -> 30000 | AK5: =AC5 -> 60000 | AL5: =AD5 -> 100000 | AM5: =AE5 -> 180000 | AN5: =AF5 -> 1000000 | AO5: =AG5 -> 1112550
A6: ='Y0 Metered Data'!A7 -> Account | B6: Rate Class | C6: ='Y0 Metered Data'!C7 -> June2017 | D6: ='Y0 Metered Data'!D7 -> 2017-07-01 | E6: ='Y0 Metered Data'!E7 -> 2017-08-01 | F6: ='Y0 Metered Data'!F7 -> 2017-09-01 | G6: ='Y0 Metered Data'!G7 -> 2017-10-02 | H6: ='Y0 Metered Data'!H7 -> 2017-11-02 | I6: ='Y0 Metered Data'!I7 -> 2017-12-03 | J6: ='Y0 Metered Data'!J7 -> 2018-01-03 | K6: ='Y0 Metered Data'!K7 -> 2018-02-03 | L6: ='Y0 Metered Data'!L7 -> 2018-03-06 | M6: ='Y0 Metered Data'!M7 -> 2018-04-06 | N6: ='Y0 Metered Data'!N7 -> 2018-05-07 | O6: =C6 -> June2017 | P6: 2017-07-01 | Q6: 2017-08-01 | R6: 2017-09-01 | S6: 2017-10-02 | T6: 2017-11-02 | U6: 2017-12-03 | V6: 2018-01-03 | W6: 2018-02-03 | X6: 2018-03-06 | Y6: 2018-04-06 | Z6: 2018-05-07 | AA6: ='Rate Block Statistics'!$B$7 -> 0 - 15000 | AB6: ='Rate Block Statistics'!$B$8 -> 15000 - 30000 | AC6: ='Rate Block Statistics'!$B$9 -> 30000 - 60000 | AD6: ='Rate Block Statistics'!$B$10 -> 60000 - 100000 | AE6: ='Rate Block Statistics'!$B$11 -> 100000 - 180000 | AF6: ='Rate Block Statistics'!$B$12 -> 180000 - 1000000 | AG6: ='Rate Block Statistics'!$B$13 -> > 1000000 | AI6: ='Rate Block Statistics'!$B$7 -> 0 - 15000 | AJ6: ='Rate Block Statistics'!B8 -> 15000 - 30000 | AK6: ='Rate Block Statistics'!B9 -> 30000 - 60000 | AL6: ='Rate Block Statistics'!B10 -> 60000 - 100000 | AM6: ='Rate Block Statistics'!B11 -> 100000 - 180000 | AN6: ='Rate Block Statistics'!B12 -> 180000 - 1000000 | AO6: ='Rate Block Statistics'!B13 -> > 1000000
A7: =IF('Y0 Metered Data'!A8<>0,'Y0 Metered Data'!A8,0) -> Commercial 1 | B7: =IF('Y0 Metered Data'!B8<>0,'Y0 Metered Data'!B8,0) -> Commercial | C7: =IF('Y0 Metered Data'!C8<>0,'Y0 Metered Data'!C8,"") -> 15000 | D7: =IF('Y0 Metered Data'!D8<>0,'Y0 Metered Data'!D8,"") ->  | E7: =IF('Y0 Metered Data'!E8<>0,'Y0 Metered Data'!E8,"") ->  | F7: =IF('Y0 Metered Data'!F8<>0,'Y0 Metered Data'!F8,"") -> 15000 | G7: =IF('Y0 Metered Data'!G8<>0,'Y0 Metered Data'!G8,"") ->  | H7: =IF('Y0 Metered Data'!H8<>0,'Y0 Metered Data'!H8,"") ->  | I7: =IF('Y0 Metered Data'!I8<>0,'Y0 Metered Data'!I8,"") -> 15000 | J7: =IF('Y0 Metered Data'!J8<>0,'Y0 Metered Data'!J8,"") ->  | K7: =IF('Y0 Metered Data'!K8<>0,'Y0 Metered Data'!K8,"") ->  | L7: =IF('Y0 Metered Data'!L8<>0,'Y0 Metered Data'!L8,"") -> 15000 | M7: =IF('Y0 Metered Data'!M8<>0,'Y0 Metered Data'!M8,"") ->  | N7: =IF('Y0 Metered Data'!N8<>0,'Y0 Metered Data'!N8,"") ->  | O7: =IF(C7<>"",Yr0_Fixed+(C7/Y0_BillUnit*Y0_Rate),"") -> 82.5 | P7: =IF(D7<>"",Yr0_Fixed+(D7/Y0_BillUnit*Y0_Rate),"") ->  | Q7: =IF(E7<>"",Yr0_Fixed+(E7/Y0_BillUnit*Y0_Rate),"") ->  | R7: =IF(F7<>"",Yr0_Fixed+(F7/Y0_BillUnit*Y0_Rate),"") -> 82.5 | S7: =IF(G7<>"",Yr0_Fixed+(G7/Y0_BillUnit*Y0_Rate),"") ->  | T7: =IF(H7<>"",Yr0_Fixed+(H7/Y0_BillUnit*Y0_Rate),"") ->  | U7: =IF(I7<>"",Yr0_Fixed+(I7/Y0_BillUnit*Y0_Rate),"") -> 82.5 | V7: =IF(J7<>"",Yr0_Fixed+(J7/Y0_BillUnit*Y0_Rate),"") ->  | W7: =IF(K7<>"",Yr0_Fixed+(K7/Y0_BillUnit*Y0_Rate),"") ->  | X7: =IF(L7<>"",Yr0_Fixed+(L7/Y0_BillUnit*Y0_Rate),"") -> 82.5 | Y7: =IF(M7<>"",Yr0_Fixed+(M7/Y0_BillUnit*Y0_Rate),"") ->  | Z7: =IF(N7<>"",Yr0_Fixed+(N7/Y0_BillUnit*Y0_Rate),"") ->  | AA7: =IFERROR(IF(AND(AVERAGE($C7:$N7)<=AA$5,AVERAGE($C7:$N7)>AA$4),SUM($O7:$Z7),""),"") -> 330 | AB7: =IFERROR(IF(AND(AVERAGE($C7:$N7)<=AB$5,AVERAGE($C7:$N7)>AB$4),SUM($O7:$Z7),""),"") ->  | AI7: =IFERROR(IF(AND(AVERAGE($C7:$N7)<=AI$5,AVERAGE($C7:$N7)>AI$4),AVERAGE($O7:$Z7),""),"") -> 82.5 | AJ7: =IFERROR(IF(AND(AVERAGE($C7:$N7)<=AJ$5,AVERAGE($C7:$N7)>AJ$4),AVERAGE($O7:$Z7),""),"") -> 
A8: =IF('Y0 Metered Data'!A9<>0,'Y0 Metered Data'!A9,0) -> Commercial 2 | B8: =IF('Y0 Metered Data'!B9<>0,'Y0 Metered Data'!B9,0) -> Commercial | C8: =IF('Y0 Metered Data'!C9<>0,'Y0 Metered Data'!C9,"") -> 15000 | D8: =IF('Y0 Metered Data'!D9<>0,'Y0 Metered Data'!D9,"") ->  | E8: =IF('Y0 Metered Data'!E9<>0,'Y0 Metered Data'!E9,"") ->  | F8: =IF('Y0 Metered Data'!F9<>0,'Y0 Metered Data'!F9,"") -> 15000 | G8: =IF('Y0 Metered Data'!G9<>0,'Y0 Metered Data'!G9,"") ->  | H8: =IF('Y0 Metered Data'!H9<>0,'Y0 Metered Data'!H9,"") ->  | I8: =IF('Y0 Metered Data'!I9<>0,'Y0 Metered Data'!I9,"") -> 15000 | J8: =IF('Y0 Metered Data'!J9<>0,'Y0 Metered Data'!J9,"") ->  | K8: =IF('Y0 Metered Data'!K9<>0,'Y0 Metered Data'!K9,"") ->  | L8: =IF('Y0 Metered Data'!L9<>0,'Y0 Metered Data'!L9,"") -> 15000 | M8: =IF('Y0 Metered Data'!M9<>0,'Y0 Metered Data'!M9,"") ->  | N8: =IF('Y0 Metered Data'!N9<>0,'Y0 Metered Data'!N9,"") ->  | O8: 82.5 | R8: 82.5 | U8: 82.5 | X8: 82.5 | AA8: =IFERROR(IF(AND(AVERAGE($C8:$N8)<=AA$5,AVERAGE($C8:$N8)>AA$4),SUM($O8:$Z8),""),"") -> 330 | AI8: =IFERROR(IF(AND(AVERAGE($C8:$N8)<=AI$5,AVERAGE($C8:$N8)>AI$4),AVERAGE($O8:$Z8),""),"") -> 82.5
A9: =IF('Y0 Metered Data'!A10<>0,'Y0 Metered Data'!A10,0) -> Commercial 3 | B9: =IF('Y0 Metered Data'!B10<>0,'Y0 Metered Data'!B10,0) -> Commercial | C9: =IF('Y0 Metered Data'!C10<>0,'Y0 Metered Data'!C10,"") -> 739800 | D9: =IF('Y0 Metered Data'!D10<>0,'Y0 Metered Data'!D10,"") ->  | E9: =IF('Y0 Metered Data'!E10<>0,'Y0 Metered Data'!E10,"") ->  | F9: =IF('Y0 Metered Data'!F10<>0,'Y0 Metered Data'!F10,"") -> 706500 | G9: =IF('Y0 Metered Data'!G10<>0,'Y0 Metered Data'!G10,"") ->  | H9: =IF('Y0 Metered Data'!H10<>0,'Y0 Metered Data'!H10,"") ->  | I9: =IF('Y0 Metered Data'!I10<>0,'Y0 Metered Data'!I10,"") -> 833100 | J9: =IF('Y0 Metered Data'!J10<>0,'Y0 Metered Data'!J10,"") ->  | K9: =IF('Y0 Metered Data'!K10<>0,'Y0 Metered Data'!K10,"") ->  | L9: =IF('Y0 Metered Data'!L10<>0,'Y0 Metered Data'!L10,"") -> 1042650 | M9: =IF('Y0 Metered Data'!M10<>0,'Y0 Metered Data'!M10,"") ->  | N9: =IF('Y0 Metered Data'!N10<>0,'Y0 Metered Data'!N10,"") ->  | O9: 4068.9 | R9: 3885.75 | U9: 4582.05 | X9: 5734.575 | AF9: 18271.275 | AN9: 4567.81875
A10: =IF('Y0 Metered Data'!A11<>0,'Y0 Metered Data'!A11,0) -> Commercial 4 | B10: =IF('Y0 Metered Data'!B11<>0,'Y0 Metered Data'!B11,0) -> Commercial | C10: =IF('Y0 Metered Data'!C11<>0,'Y0 Metered Data'!C11,"") -> 26550 | D10: =IF('Y0 Metered Data'!D11<>0,'Y0 Metered Data'!D11,"") ->  | E10: =IF('Y0 Metered Data'!E11<>0,'Y0 Metered Data'!E11,"") ->  | F10: =IF('Y0 Metered Data'!F11<>0,'Y0 Metered Data'!F11,"") -> 42450 | G10: =IF('Y0 Metered Data'!G11<>0,'Y0 Metered Data'!G11,"") ->  | H10: =IF('Y0 Metered Data'!H11<>0,'Y0 Metered Data'!H11,"") ->  | I10: =IF('Y0 Metered Data'!I11<>0,'Y0 Metered Data'!I11,"") -> 29850 | J10: =IF('Y0 Metered Data'!J11<>0,'Y0 Metered Data'!J11,"") ->  | K10: =IF('Y0 Metered Data'!K11<>0,'Y0 Metered Data'!K11,"") ->  | L10: =IF('Y0 Metered Data'!L11<>0,'Y0 Metered Data'!L11,"") -> 44100 | M10: =IF('Y0 Metered Data'!M11<>0,'Y0 Metered Data'!M11,"") ->  | N10: =IF('Y0 Metered Data'!N11<>0,'Y0 Metered Data'!N11,"") ->  | O10: 146.025 | R10: 233.475 | U10: 164.175 | X10: 242.55 | AC10: 786.225 | AK10: 196.55625
A11: =IF('Y0 Metered Data'!A12<>0,'Y0 Metered Data'!A12,0) -> Commercial 5 | B11: =IF('Y0 Metered Data'!B12<>0,'Y0 Metered Data'!B12,0) -> Commercial | C11: =IF('Y0 Metered Data'!C12<>0,'Y0 Metered Data'!C12,"") -> 15600 | D11: =IF('Y0 Metered Data'!D12<>0,'Y0 Metered Data'!D12,"") ->  | E11: =IF('Y0 Metered Data'!E12<>0,'Y0 Metered Data'!E12,"") ->  | F11: =IF('Y0 Metered Data'!F12<>0,'Y0 Metered Data'!F12,"") -> 18450 | G11: =IF('Y0 Metered Data'!G12<>0,'Y0 Metered Data'!G12,"") ->  | H11: =IF('Y0 Metered Data'!H12<>0,'Y0 Metered Data'!H12,"") ->  | I11: =IF('Y0 Metered Data'!I12<>0,'Y0 Metered Data'!I12,"") -> 15000 | J11: =IF('Y0 Metered Data'!J12<>0,'Y0 Metered Data'!J12,"") ->  | K11: =IF('Y0 Metered Data'!K12<>0,'Y0 Metered Data'!K12,"") ->  | L11: =IF('Y0 Metered Data'!L12<>0,'Y0 Metered Data'!L12,"") -> 15000 | M11: =IF('Y0 Metered Data'!M12<>0,'Y0 Metered Data'!M12,"") ->  | N11: =IF('Y0 Metered Data'!N12<>0,'Y0 Metered Data'!N12,"") ->  | O11: 85.8 | R11: 101.475 | U11: 82.5 | X11: 82.5 | AB11: 352.275 | AJ11: 88.06875
A12: =IF('Y0 Metered Data'!A13<>0,'Y0 Metered Data'!A13,0) -> Commercial 6 | B12: =IF('Y0 Metered Data'!B13<>0,'Y0 Metered Data'!B13,0) -> Commercial | C12: =IF('Y0 Metered Data'!C13<>0,'Y0 Metered Data'!C13,"") -> 15000 | D12: =IF('Y0 Metered Data'!D13<>0,'Y0 Metered Data'!D13,"") ->  | E12: =IF('Y0 Metered Data'!E13<>0,'Y0 Metered Data'!E13,"") ->  | F12: =IF('Y0 Metered Data'!F13<>0,'Y0 Metered Data'!F13,"") -> 15000 | G12: =IF('Y0 Metered Data'!G13<>0,'Y0 Metered Data'!G13,"") ->  | H12: =IF('Y0 Metered Data'!H13<>0,'Y0 Metered Data'!H13,"") ->  | I12: =IF('Y0 Metered Data'!I13<>0,'Y0 Metered Data'!I13,"") -> 15000 | J12: =IF('Y0 Metered Data'!J13<>0,'Y0 Metered Data'!J13,"") ->  | K12: =IF('Y0 Metered Data'!K13<>0,'Y0 Metered Data'!K13,"") ->  | L12: =IF('Y0 Metered Data'!L13<>0,'Y0 Metered Data'!L13,"") -> 15000 | M12: =IF('Y0 Metered Data'!M13<>0,'Y0 Metered Data'!M13,"") ->  | N12: =IF('Y0 Metered Data'!N13<>0,'Y0 Metered Data'!N13,"") ->  | O12: 82.5 | R12: 82.5 | U12: 82.5 | X12: 82.5 | AA12: 330 | AI12: 82.5
A13: =IF('Y0 Metered Data'!A14<>0,'Y0 Metered Data'!A14,0) -> Commercial 7 | B13: =IF('Y0 Metered Data'!B14<>0,'Y0 Metered Data'!B14,0) -> Commercial | C13: =IF('Y0 Metered Data'!C14<>0,'Y0 Metered Data'!C14,"") -> 27600 | D13: =IF('Y0 Metered Data'!D14<>0,'Y0 Metered Data'!D14,"") ->  | E13: =IF('Y0 Metered Data'!E14<>0,'Y0 Metered Data'!E14,"") ->  | F13: =IF('Y0 Metered Data'!F14<>0,'Y0 Metered Data'!F14,"") -> 25500 | G13: =IF('Y0 Metered Data'!G14<>0,'Y0 Metered Data'!G14,"") ->  | H13: =IF('Y0 Metered Data'!H14<>0,'Y0 Metered Data'!H14,"") ->  | I13: =IF('Y0 Metered Data'!I14<>0,'Y0 Metered Data'!I14,"") -> 24150 | J13: =IF('Y0 Metered Data'!J14<>0,'Y0 Metered Data'!J14,"") ->  | K13: =IF('Y0 Metered Data'!K14<>0,'Y0 Metered Data'!K14,"") ->  | L13: =IF('Y0 Metered Data'!L14<>0,'Y0 Metered Data'!L14,"") -> 24750 | M13: =IF('Y0 Metered Data'!M14<>0,'Y0 Metered Data'!M14,"") ->  | N13: =IF('Y0 Metered Data'!N14<>0,'Y0 Metered Data'!N14,"") ->  | O13: 151.8 | R13: 140.25 | U13: 132.825 | X13: 136.125 | AB13: 561 | AJ13: 140.25
A14: =IF('Y0 Metered Data'!A15<>0,'Y0 Metered Data'!A15,0) -> Commercial 8 | B14: =IF('Y0 Metered Data'!B15<>0,'Y0 Metered Data'!B15,0) -> Commercial | C14: =IF('Y0 Metered Data'!C15<>0,'Y0 Metered Data'!C15,"") -> 52800 | D14: =IF('Y0 Metered Data'!D15<>0,'Y0 Metered Data'!D15,"") ->  | E14: =IF('Y0 Metered Data'!E15<>0,'Y0 Metered Data'!E15,"") ->  | F14: =IF('Y0 Metered Data'!F15<>0,'Y0 Metered Data'!F15,"") -> 15000 | G14: =IF('Y0 Metered Data'!G15<>0,'Y0 Metered Data'!G15,"") ->  | H14: =IF('Y0 Metered Data'!H15<>0,'Y0 Metered Data'!H15,"") ->  | I14: =IF('Y0 Metered Data'!I15<>0,'Y0 Metered Data'!I15,"") -> 15000 | J14: =IF('Y0 Metered Data'!J15<>0,'Y0 Metered Data'!J15,"") ->  | K14: =IF('Y0 Metered Data'!K15<>0,'Y0 Metered Data'!K15,"") ->  | L14: =IF('Y0 Metered Data'!L15<>0,'Y0 Metered Data'!L15,"") -> 15000 | M14: =IF('Y0 Metered Data'!M15<>0,'Y0 Metered Data'!M15,"") ->  | N14: =IF('Y0 Metered Data'!N15<>0,'Y0 Metered Data'!N15,"") ->  | O14: 290.4 | R14: 82.5 | U14: 82.5 | X14: 82.5 | AB14: 537.9 | AJ14: 134.475
A15: =IF('Y0 Metered Data'!A16<>0,'Y0 Metered Data'!A16,0) -> Commercial 9 | B15: =IF('Y0 Metered Data'!B16<>0,'Y0 Metered Data'!B16,0) -> Commercial | C15: =IF('Y0 Metered Data'!C16<>0,'Y0 Metered Data'!C16,"") -> 51150 | D15: =IF('Y0 Metered Data'!D16<>0,'Y0 Metered Data'!D16,"") ->  | E15: =IF('Y0 Metered Data'!E16<>0,'Y0 Metered Data'!E16,"") ->  | F15: =IF('Y0 Metered Data'!F16<>0,'Y0 Metered Data'!F16,"") -> 68400 | G15: =IF('Y0 Metered Data'!G16<>0,'Y0 Metered Data'!G16,"") ->  | H15: =IF('Y0 Metered Data'!H16<>0,'Y0 Metered Data'!H16,"") ->  | I15: =IF('Y0 Metered Data'!I16<>0,'Y0 Metered Data'!I16,"") -> 60750 | J15: =IF('Y0 Metered Data'!J16<>0,'Y0 Metered Data'!J16,"") ->  | K15: =IF('Y0 Metered Data'!K16<>0,'Y0 Metered Data'!K16,"") ->  | L15: =IF('Y0 Metered Data'!L16<>0,'Y0 Metered Data'!L16,"") -> 36900 | M15: =IF('Y0 Metered Data'!M16<>0,'Y0 Metered Data'!M16,"") ->  | N15: =IF('Y0 Metered Data'!N16<>0,'Y0 Metered Data'!N16,"") ->  | O15: 281.325 | R15: 376.2 | U15: 334.125 | X15: 202.95 | AC15: 1194.6 | AK15: 298.65
A16: =IF('Y0 Metered Data'!A17<>0,'Y0 Metered Data'!A17,0) -> Commercial 10 | B16: =IF('Y0 Metered Data'!B17<>0,'Y0 Metered Data'!B17,0) -> Commercial | C16: =IF('Y0 Metered Data'!C17<>0,'Y0 Metered Data'!C17,"") -> 26850 | D16: =IF('Y0 Metered Data'!D17<>0,'Y0 Metered Data'!D17,"") ->  | E16: =IF('Y0 Metered Data'!E17<>0,'Y0 Metered Data'!E17,"") ->  | F16: =IF('Y0 Metered Data'!F17<>0,'Y0 Metered Data'!F17,"") -> 25650 | G16: =IF('Y0 Metered Data'!G17<>0,'Y0 Metered Data'!G17,"") ->  | H16: =IF('Y0 Metered Data'!H17<>0,'Y0 Metered Data'!H17,"") ->  | I16: =IF('Y0 Metered Data'!I17<>0,'Y0 Metered Data'!I17,"") -> 35700 | J16: =IF('Y0 Metered Data'!J17<>0,'Y0 Metered Data'!J17,"") ->  | K16: =IF('Y0 Metered Data'!K17<>0,'Y0 Metered Data'!K17,"") ->  | L16: =IF('Y0 Metered Data'!L17<>0,'Y0 Metered Data'!L17,"") -> 25950 | M16: =IF('Y0 Metered Data'!M17<>0,'Y0 Metered Data'!M17,"") ->  | N16: =IF('Y0 Metered Data'!N17<>0,'Y0 Metered Data'!N17,"") ->  | O16: 147.675 | R16: 141.075 | U16: 196.35 | X16: 142.725 | AB16: 627.825 | AJ16: 156.95625
A17: =IF('Y0 Metered Data'!A18<>0,'Y0 Metered Data'!A18,0) -> Commercial 11 | B17: =IF('Y0 Metered Data'!B18<>0,'Y0 Metered Data'!B18,0) -> Commercial | C17: =IF('Y0 Metered Data'!C18<>0,'Y0 Metered Data'!C18,"") -> 21300 | D17: =IF('Y0 Metered Data'!D18<>0,'Y0 Metered Data'!D18,"") ->  | E17: =IF('Y0 Metered Data'!E18<>0,'Y0 Metered Data'!E18,"") ->  | F17: =IF('Y0 Metered Data'!F18<>0,'Y0 Metered Data'!F18,"") -> 19950 | G17: =IF('Y0 Metered Data'!G18<>0,'Y0 Metered Data'!G18,"") ->  | H17: =IF('Y0 Metered Data'!H18<>0,'Y0 Metered Data'!H18,"") ->  | I17: =IF('Y0 Metered Data'!I18<>0,'Y0 Metered Data'!I18,"") -> 17550 | J17: =IF('Y0 Metered Data'!J18<>0,'Y0 Metered Data'!J18,"") ->  | K17: =IF('Y0 Metered Data'!K18<>0,'Y0 Metered Data'!K18,"") ->  | L17: =IF('Y0 Metered Data'!L18<>0,'Y0 Metered Data'!L18,"") -> 19650 | M17: =IF('Y0 Metered Data'!M18<>0,'Y0 Metered Data'!M18,"") ->  | N17: =IF('Y0 Metered Data'!N18<>0,'Y0 Metered Data'!N18,"") ->  | O17: 117.15 | R17: 109.725 | U17: 96.525 | X17: 108.075 | AB17: 431.475 | AJ17: 107.86875
A18: =IF('Y0 Metered Data'!A19<>0,'Y0 Metered Data'!A19,0) -> Commercial 12 | B18: =IF('Y0 Metered Data'!B19<>0,'Y0 Metered Data'!B19,0) -> Commercial | C18: =IF('Y0 Metered Data'!C19<>0,'Y0 Metered Data'!C19,"") -> 152700 | D18: =IF('Y0 Metered Data'!D19<>0,'Y0 Metered Data'!D19,"") ->  | E18: =IF('Y0 Metered Data'!E19<>0,'Y0 Metered Data'!E19,"") ->  | F18: =IF('Y0 Metered Data'!F19<>0,'Y0 Metered Data'!F19,"") -> 135300 | G18: =IF('Y0 Metered Data'!G19<>0,'Y0 Metered Data'!G19,"") ->  | H18: =IF('Y0 Metered Data'!H19<>0,'Y0 Metered Data'!H19,"") ->  | I18: =IF('Y0 Metered Data'!I19<>0,'Y0 Metered Data'!I19,"") -> 107550 | J18: =IF('Y0 Metered Data'!J19<>0,'Y0 Metered Data'!J19,"") ->  | K18: =IF('Y0 Metered Data'!K19<>0,'Y0 Metered Data'!K19,"") ->  | L18: =IF('Y0 Metered Data'!L19<>0,'Y0 Metered Data'!L19,"") -> 131850 | M18: =IF('Y0 Metered Data'!M19<>0,'Y0 Metered Data'!M19,"") ->  | N18: =IF('Y0 Metered Data'!N19<>0,'Y0 Metered Data'!N19,"") ->  | O18: 839.85 | R18: 744.15 | U18: 591.525 | X18: 725.175 | AE18: 2900.7 | AM18: 725.175
A19: =IF('Y0 Metered Data'!A20<>0,'Y0 Metered Data'!A20,0) -> Commercial 13 | B19: =IF('Y0 Metered Data'!B20<>0,'Y0 Metered Data'!B20,0) -> Commercial | C19: =IF('Y0 Metered Data'!C20<>0,'Y0 Metered Data'!C20,"") -> 74100 | D19: =IF('Y0 Metered Data'!D20<>0,'Y0 Metered Data'!D20,"") ->  | E19: =IF('Y0 Metered Data'!E20<>0,'Y0 Metered Data'!E20,"") ->  | F19: =IF('Y0 Metered Data'!F20<>0,'Y0 Metered Data'!F20,"") -> 52800 | G19: =IF('Y0 Metered Data'!G20<>0,'Y0 Metered Data'!G20,"") ->  | H19: =IF('Y0 Metered Data'!H20<>0,'Y0 Metered Data'!H20,"") ->  | I19: =IF('Y0 Metered Data'!I20<>0,'Y0 Metered Data'!I20,"") -> 36300 | J19: =IF('Y0 Metered Data'!J20<>0,'Y0 Metered Data'!J20,"") ->  | K19: =IF('Y0 Metered Data'!K20<>0,'Y0 Metered Data'!K20,"") ->  | L19: =IF('Y0 Metered Data'!L20<>0,'Y0 Metered Data'!L20,"") -> 40800 | M19: =IF('Y0 Metered Data'!M20<>0,'Y0 Metered Data'!M20,"") ->  | N19: =IF('Y0 Metered Data'!N20<>0,'Y0 Metered Data'!N20,"") ->  | O19: 407.55 | R19: 290.4 | U19: 199.65 | X19: 224.4 | AC19: 1122 | AK19: 280.5
A20: =IF('Y0 Metered Data'!A21<>0,'Y0 Metered Data'!A21,0) -> Commercial 14 | B20: =IF('Y0 Metered Data'!B21<>0,'Y0 Metered Data'!B21,0) -> Commercial | C20: =IF('Y0 Metered Data'!C21<>0,'Y0 Metered Data'!C21,"") -> 34350 | D20: =IF('Y0 Metered Data'!D21<>0,'Y0 Metered Data'!D21,"") ->  | E20: =IF('Y0 Metered Data'!E21<>0,'Y0 Metered Data'!E21,"") ->  | F20: =IF('Y0 Metered Data'!F21<>0,'Y0 Metered Data'!F21,"") -> 32250 | G20: =IF('Y0 Metered Data'!G21<>0,'Y0 Metered Data'!G21,"") ->  | H20: =IF('Y0 Metered Data'!H21<>0,'Y0 Metered Data'!H21,"") ->  | I20: =IF('Y0 Metered Data'!I21<>0,'Y0 Metered Data'!I21,"") -> 31050 | J20: =IF('Y0 Metered Data'!J21<>0,'Y0 Metered Data'!J21,"") ->  | K20: =IF('Y0 Metered Data'!K21<>0,'Y0 Metered Data'!K21,"") ->  | L20: =IF('Y0 Metered Data'!L21<>0,'Y0 Metered Data'!L21,"") -> 29850 | M20: =IF('Y0 Metered Data'!M21<>0,'Y0 Metered Data'!M21,"") ->  | N20: =IF('Y0 Metered Data'!N21<>0,'Y0 Metered Data'!N21,"") ->  | O20: 188.925 | R20: 177.375 | U20: 170.775 | X20: 164.175 | AC20: 701.25 | AK20: 175.3125
A21: =IF('Y0 Metered Data'!A22<>0,'Y0 Metered Data'!A22,0) -> Commercial 15 | B21: =IF('Y0 Metered Data'!B22<>0,'Y0 Metered Data'!B22,0) -> Commercial | C21: =IF('Y0 Metered Data'!C22<>0,'Y0 Metered Data'!C22,"") -> 83550 | D21: =IF('Y0 Metered Data'!D22<>0,'Y0 Metered Data'!D22,"") ->  | E21: =IF('Y0 Metered Data'!E22<>0,'Y0 Metered Data'!E22,"") ->  | F21: =IF('Y0 Metered Data'!F22<>0,'Y0 Metered Data'!F22,"") -> 87150 | G21: =IF('Y0 Metered Data'!G22<>0,'Y0 Metered Data'!G22,"") ->  | H21: =IF('Y0 Metered Data'!H22<>0,'Y0 Metered Data'!H22,"") ->  | I21: =IF('Y0 Metered Data'!I22<>0,'Y0 Metered Data'!I22,"") -> 64800 | J21: =IF('Y0 Metered Data'!J22<>0,'Y0 Metered Data'!J22,"") ->  | K21: =IF('Y0 Metered Data'!K22<>0,'Y0 Metered Data'!K22,"") ->  | L21: =IF('Y0 Metered Data'!L22<>0,'Y0 Metered Data'!L22,"") -> 63600 | M21: =IF('Y0 Metered Data'!M22<>0,'Y0 Metered Data'!M22,"") ->  | N21: =IF('Y0 Metered Data'!N22<>0,'Y0 Metered Data'!N22,"") ->  | O21: 459.525 | R21: 479.325 | U21: 356.4 | X21: 349.8 | AD21: 1645.05 | AL21: 411.2625
A22: =IF('Y0 Metered Data'!A23<>0,'Y0 Metered Data'!A23,0) -> Commercial 16 | B22: =IF('Y0 Metered Data'!B23<>0,'Y0 Metered Data'!B23,0) -> Commercial | C22: =IF('Y0 Metered Data'!C23<>0,'Y0 Metered Data'!C23,"") -> 1091250 | D22: =IF('Y0 Metered Data'!D23<>0,'Y0 Metered Data'!D23,"") ->  | E22: =IF('Y0 Metered Data'!E23<>0,'Y0 Metered Data'!E23,"") ->  | F22: =IF('Y0 Metered Data'!F23<>0,'Y0 Metered Data'!F23,"") -> 1161000 | G22: =IF('Y0 Metered Data'!G23<>0,'Y0 Metered Data'!G23,"") ->  | H22: =IF('Y0 Metered Data'!H23<>0,'Y0 Metered Data'!H23,"") ->  | I22: =IF('Y0 Metered Data'!I23<>0,'Y0 Metered Data'!I23,"") -> 1028400 | J22: =IF('Y0 Metered Data'!J23<>0,'Y0 Metered Data'!J23,"") ->  | K22: =IF('Y0 Metered Data'!K23<>0,'Y0 Metered Data'!K23,"") ->  | L22: =IF('Y0 Metered Data'!L23<>0,'Y0 Metered Data'!L23,"") -> 1169550 | M22: =IF('Y0 Metered Data'!M23<>0,'Y0 Metered Data'!M23,"") ->  | N22: =IF('Y0 Metered Data'!N23<>0,'Y0 Metered Data'!N23,"") ->  | O22: 6001.875 | R22: 6385.5 | U22: 5656.2 | X22: 6432.525 | AG22: 24476.1 | AO22: 6119.025
A23: =IF('Y0 Metered Data'!A24<>0,'Y0 Metered Data'!A24,0) -> Commercial 17 | B23: =IF('Y0 Metered Data'!B24<>0,'Y0 Metered Data'!B24,0) -> Commercial | C23: =IF('Y0 Metered Data'!C24<>0,'Y0 Metered Data'!C24,"") -> 30900 | D23: =IF('Y0 Metered Data'!D24<>0,'Y0 Metered Data'!D24,"") ->  | E23: =IF('Y0 Metered Data'!E24<>0,'Y0 Metered Data'!E24,"") ->  | F23: =IF('Y0 Metered Data'!F24<>0,'Y0 Metered Data'!F24,"") -> 28200 | G23: =IF('Y0 Metered Data'!G24<>0,'Y0 Metered Data'!G24,"") ->  | H23: =IF('Y0 Metered Data'!H24<>0,'Y0 Metered Data'!H24,"") ->  | I23: =IF('Y0 Metered Data'!I24<>0,'Y0 Metered Data'!I24,"") -> 38700 | J23: =IF('Y0 Metered Data'!J24<>0,'Y0 Metered Data'!J24,"") ->  | K23: =IF('Y0 Metered Data'!K24<>0,'Y0 Metered Data'!K24,"") ->  | L23: =IF('Y0 Metered Data'!L24<>0,'Y0 Metered Data'!L24,"") -> 47250 | M23: =IF('Y0 Metered Data'!M24<>0,'Y0 Metered Data'!M24,"") ->  | N23: =IF('Y0 Metered Data'!N24<>0,'Y0 Metered Data'!N24,"") ->  | O23: 169.95 | R23: 155.1 | U23: 212.85 | X23: 259.875 | AC23: 797.775 | AK23: 199.44375
A24: =IF('Y0 Metered Data'!A25<>0,'Y0 Metered Data'!A25,0) -> Commercial 18 | B24: =IF('Y0 Metered Data'!B25<>0,'Y0 Metered Data'!B25,0) -> Commercial | C24: =IF('Y0 Metered Data'!C25<>0,'Y0 Metered Data'!C25,"") -> 55650 | D24: =IF('Y0 Metered Data'!D25<>0,'Y0 Metered Data'!D25,"") ->  | E24: =IF('Y0 Metered Data'!E25<>0,'Y0 Metered Data'!E25,"") ->  | F24: =IF('Y0 Metered Data'!F25<>0,'Y0 Metered Data'!F25,"") -> 48600 | G24: =IF('Y0 Metered Data'!G25<>0,'Y0 Metered Data'!G25,"") ->  | H24: =IF('Y0 Metered Data'!H25<>0,'Y0 Metered Data'!H25,"") ->  | I24: =IF('Y0 Metered Data'!I25<>0,'Y0 Metered Data'!I25,"") -> 40950 | J24: =IF('Y0 Metered Data'!J25<>0,'Y0 Metered Data'!J25,"") ->  | K24: =IF('Y0 Metered Data'!K25<>0,'Y0 Metered Data'!K25,"") ->  | L24: =IF('Y0 Metered Data'!L25<>0,'Y0 Metered Data'!L25,"") -> 80250 | M24: =IF('Y0 Metered Data'!M25<>0,'Y0 Metered Data'!M25,"") ->  | N24: =IF('Y0 Metered Data'!N25<>0,'Y0 Metered Data'!N25,"") ->  | O24: 306.075 | R24: 267.3 | U24: 225.225 | X24: 441.375 | AC24: 1239.975 | AK24: 309.99375
A25: =IF('Y0 Metered Data'!A26<>0,'Y0 Metered Data'!A26,0) -> Commercial 19 | B25: =IF('Y0 Metered Data'!B26<>0,'Y0 Metered Data'!B26,0) -> Commercial | C25: =IF('Y0 Metered Data'!C26<>0,'Y0 Metered Data'!C26,"") -> 19200 | D25: =IF('Y0 Metered Data'!D26<>0,'Y0 Metered Data'!D26,"") ->  | E25: =IF('Y0 Metered Data'!E26<>0,'Y0 Metered Data'!E26,"") ->  | F25: =IF('Y0 Metered Data'!F26<>0,'Y0 Metered Data'!F26,"") -> 37800 | G25: =IF('Y0 Metered Data'!G26<>0,'Y0 Metered Data'!G26,"") ->  | H25: =IF('Y0 Metered Data'!H26<>0,'Y0 Metered Data'!H26,"") ->  | I25: =IF('Y0 Metered Data'!I26<>0,'Y0 Metered Data'!I26,"") -> 17400 | J25: =IF('Y0 Metered Data'!J26<>0,'Y0 Metered Data'!J26,"") ->  | K25: =IF('Y0 Metered Data'!K26<>0,'Y0 Metered Data'!K26,"") ->  | L25: =IF('Y0 Metered Data'!L26<>0,'Y0 Metered Data'!L26,"") -> 15000 | M25: =IF('Y0 Metered Data'!M26<>0,'Y0 Metered Data'!M26,"") ->  | N25: =IF('Y0 Metered Data'!N26<>0,'Y0 Metered Data'!N26,"") ->  | O25: 105.6 | R25: 207.9 | U25: 95.7 | X25: 82.5 | AB25: 491.7 | AJ25: 122.925
A26: =IF('Y0 Metered Data'!A27<>0,'Y0 Metered Data'!A27,0) -> Commercial 20 | B26: =IF('Y0 Metered Data'!B27<>0,'Y0 Metered Data'!B27,0) -> Commercial | C26: =IF('Y0 Metered Data'!C27<>0,'Y0 Metered Data'!C27,"") -> 15000 | D26: =IF('Y0 Metered Data'!D27<>0,'Y0 Metered Data'!D27,"") ->  | E26: =IF('Y0 Metered Data'!E27<>0,'Y0 Metered Data'!E27,"") ->  | F26: =IF('Y0 Metered Data'!F27<>0,'Y0 Metered Data'!F27,"") -> 15000 | G26: =IF('Y0 Metered Data'!G27<>0,'Y0 Metered Data'!G27,"") ->  | H26: =IF('Y0 Metered Data'!H27<>0,'Y0 Metered Data'!H27,"") ->  | I26: =IF('Y0 Metered Data'!I27<>0,'Y0 Metered Data'!I27,"") -> 15000 | J26: =IF('Y0 Metered Data'!J27<>0,'Y0 Metered Data'!J27,"") ->  | K26: =IF('Y0 Metered Data'!K27<>0,'Y0 Metered Data'!K27,"") ->  | L26: =IF('Y0 Metered Data'!L27<>0,'Y0 Metered Data'!L27,"") -> 15000 | M26: =IF('Y0 Metered Data'!M27<>0,'Y0 Metered Data'!M27,"") ->  | N26: =IF('Y0 Metered Data'!N27<>0,'Y0 Metered Data'!N27,"") ->  | O26: 82.5 | R26: 82.5 | U26: 82.5 | X26: 82.5 | AA26: 330 | AI26: 82.5
A27: =IF('Y0 Metered Data'!A28<>0,'Y0 Metered Data'!A28,0) -> Commercial 21 | B27: =IF('Y0 Metered Data'!B28<>0,'Y0 Metered Data'!B28,0) -> Commercial | C27: =IF('Y0 Metered Data'!C28<>0,'Y0 Metered Data'!C28,"") -> 84900 | D27: =IF('Y0 Metered Data'!D28<>0,'Y0 Metered Data'!D28,"") ->  | E27: =IF('Y0 Metered Data'!E28<>0,'Y0 Metered Data'!E28,"") ->  | F27: =IF('Y0 Metered Data'!F28<>0,'Y0 Metered Data'!F28,"") -> 84300 | G27: =IF('Y0 Metered Data'!G28<>0,'Y0 Metered Data'!G28,"") ->  | H27: =IF('Y0 Metered Data'!H28<>0,'Y0 Metered Data'!H28,"") ->  | I27: =IF('Y0 Metered Data'!I28<>0,'Y0 Metered Data'!I28,"") -> 72750 | J27: =IF('Y0 Metered Data'!J28<>0,'Y0 Metered Data'!J28,"") ->  | K27: =IF('Y0 Metered Data'!K28<>0,'Y0 Metered Data'!K28,"") ->  | L27: =IF('Y0 Metered Data'!L28<>0,'Y0 Metered Data'!L28,"") -> 69300 | M27: =IF('Y0 Metered Data'!M28<>0,'Y0 Metered Data'!M28,"") ->  | N27: =IF('Y0 Metered Data'!N28<>0,'Y0 Metered Data'!N28,"") ->  | O27: 466.95 | R27: 463.65 | U27: 400.125 | X27: 381.15 | AD27: 1711.875 | AL27: 427.96875
A28: =IF('Y0 Metered Data'!A29<>0,'Y0 Metered Data'!A29,0) -> Commercial 22 | B28: =IF('Y0 Metered Data'!B29<>0,'Y0 Metered Data'!B29,0) -> Commercial | C28: =IF('Y0 Metered Data'!C29<>0,'Y0 Metered Data'!C29,"") -> 15000 | D28: =IF('Y0 Metered Data'!D29<>0,'Y0 Metered Data'!D29,"") ->  | E28: =IF('Y0 Metered Data'!E29<>0,'Y0 Metered Data'!E29,"") ->  | F28: =IF('Y0 Metered Data'!F29<>0,'Y0 Metered Data'!F29,"") -> 15000 | G28: =IF('Y0 Metered Data'!G29<>0,'Y0 Metered Data'!G29,"") ->  | H28: =IF('Y0 Metered Data'!H29<>0,'Y0 Metered Data'!H29,"") ->  | I28: =IF('Y0 Metered Data'!I29<>0,'Y0 Metered Data'!I29,"") -> 15000 | J28: =IF('Y0 Metered Data'!J29<>0,'Y0 Metered Data'!J29,"") ->  | K28: =IF('Y0 Metered Data'!K29<>0,'Y0 Metered Data'!K29,"") ->  | L28: =IF('Y0 Metered Data'!L29<>0,'Y0 Metered Data'!L29,"") -> 15000 | M28: =IF('Y0 Metered Data'!M29<>0,'Y0 Metered Data'!M29,"") ->  | N28: =IF('Y0 Metered Data'!N29<>0,'Y0 Metered Data'!N29,"") ->  | O28: 82.5 | R28: 82.5 | U28: 82.5 | X28: 82.5 | AA28: 330 | AI28: 82.5
A29: =IF('Y0 Metered Data'!A30<>0,'Y0 Metered Data'!A30,0) -> Commercial 23 | B29: =IF('Y0 Metered Data'!B30<>0,'Y0 Metered Data'!B30,0) -> Commercial | C29: =IF('Y0 Metered Data'!C30<>0,'Y0 Metered Data'!C30,"") -> 30600 | D29: =IF('Y0 Metered Data'!D30<>0,'Y0 Metered Data'!D30,"") ->  | E29: =IF('Y0 Metered Data'!E30<>0,'Y0 Metered Data'!E30,"") ->  | F29: =IF('Y0 Metered Data'!F30<>0,'Y0 Metered Data'!F30,"") -> 28800 | G29: =IF('Y0 Metered Data'!G30<>0,'Y0 Metered Data'!G30,"") ->  | H29: =IF('Y0 Metered Data'!H30<>0,'Y0 Metered Data'!H30,"") ->  | I29: =IF('Y0 Metered Data'!I30<>0,'Y0 Metered Data'!I30,"") -> 26100 | J29: =IF('Y0 Metered Data'!J30<>0,'Y0 Metered Data'!J30,"") ->  | K29: =IF('Y0 Metered Data'!K30<>0,'Y0 Metered Data'!K30,"") ->  | L29: =IF('Y0 Metered Data'!L30<>0,'Y0 Metered Data'!L30,"") -> 27000 | M29: =IF('Y0 Metered Data'!M30<>0,'Y0 Metered Data'!M30,"") ->  | N29: =IF('Y0 Metered Data'!N30<>0,'Y0 Metered Data'!N30,"") ->  | O29: 168.3 | R29: 158.4 | U29: 143.55 | X29: 148.5 | AB29: 618.75 | AJ29: 154.6875
A30: =IF('Y0 Metered Data'!A31<>0,'Y0 Metered Data'!A31,0) -> Commercial 24 | B30: =IF('Y0 Metered Data'!B31<>0,'Y0 Metered Data'!B31,0) -> Commercial | C30: =IF('Y0 Metered Data'!C31<>0,'Y0 Metered Data'!C31,"") -> 60000 | D30: =IF('Y0 Metered Data'!D31<>0,'Y0 Metered Data'!D31,"") ->  | E30: =IF('Y0 Metered Data'!E31<>0,'Y0 Metered Data'!E31,"") ->  | F30: =IF('Y0 Metered Data'!F31<>0,'Y0 Metered Data'!F31,"") -> 72450 | G30: =IF('Y0 Metered Data'!G31<>0,'Y0 Metered Data'!G31,"") ->  | H30: =IF('Y0 Metered Data'!H31<>0,'Y0 Metered Data'!H31,"") ->  | I30: =IF('Y0 Metered Data'!I31<>0,'Y0 Metered Data'!I31,"") -> 54900 | J30: =IF('Y0 Metered Data'!J31<>0,'Y0 Metered Data'!J31,"") ->  | K30: =IF('Y0 Metered Data'!K31<>0,'Y0 Metered Data'!K31,"") ->  | L30: =IF('Y0 Metered Data'!L31<>0,'Y0 Metered Data'!L31,"") -> 46500 | M30: =IF('Y0 Metered Data'!M31<>0,'Y0 Metered Data'!M31,"") ->  | N30: =IF('Y0 Metered Data'!N31<>0,'Y0 Metered Data'!N31,"") ->  | O30: 330 | R30: 398.475 | U30: 301.95 | X30: 255.75 | AC30: 1286.175 | AK30: 321.54375
A31: =IF('Y0 Metered Data'!A32<>0,'Y0 Metered Data'!A32,0) -> Commercial 25 | B31: =IF('Y0 Metered Data'!B32<>0,'Y0 Metered Data'!B32,0) -> Commercial | C31: =IF('Y0 Metered Data'!C32<>0,'Y0 Metered Data'!C32,"") -> 15000 | D31: =IF('Y0 Metered Data'!D32<>0,'Y0 Metered Data'!D32,"") ->  | E31: =IF('Y0 Metered Data'!E32<>0,'Y0 Metered Data'!E32,"") ->  | F31: =IF('Y0 Metered Data'!F32<>0,'Y0 Metered Data'!F32,"") -> 15000 | G31: =IF('Y0 Metered Data'!G32<>0,'Y0 Metered Data'!G32,"") ->  | H31: =IF('Y0 Metered Data'!H32<>0,'Y0 Metered Data'!H32,"") ->  | I31: =IF('Y0 Metered Data'!I32<>0,'Y0 Metered Data'!I32,"") -> 15000 | J31: =IF('Y0 Metered Data'!J32<>0,'Y0 Metered Data'!J32,"") ->  | K31: =IF('Y0 Metered Data'!K32<>0,'Y0 Metered Data'!K32,"") ->  | L31: =IF('Y0 Metered Data'!L32<>0,'Y0 Metered Data'!L32,"") -> 15000 | M31: =IF('Y0 Metered Data'!M32<>0,'Y0 Metered Data'!M32,"") ->  | N31: =IF('Y0 Metered Data'!N32<>0,'Y0 Metered Data'!N32,"") ->  | O31: 82.5 | R31: 82.5 | U31: 82.5 | X31: 82.5 | AA31: 330 | AI31: 82.5
A32: =IF('Y0 Metered Data'!A33<>0,'Y0 Metered Data'!A33,0) -> Commercial 26 | B32: =IF('Y0 Metered Data'!B33<>0,'Y0 Metered Data'!B33,0) -> Commercial | C32: =IF('Y0 Metered Data'!C33<>0,'Y0 Metered Data'!C33,"") -> 235650 | D32: =IF('Y0 Metered Data'!D33<>0,'Y0 Metered Data'!D33,"") ->  | E32: =IF('Y0 Metered Data'!E33<>0,'Y0 Metered Data'!E33,"") ->  | F32: =IF('Y0 Metered Data'!F33<>0,'Y0 Metered Data'!F33,"") -> 409950 | G32: =IF('Y0 Metered Data'!G33<>0,'Y0 Metered Data'!G33,"") ->  | H32: =IF('Y0 Metered Data'!H33<>0,'Y0 Metered Data'!H33,"") ->  | I32: =IF('Y0 Metered Data'!I33<>0,'Y0 Metered Data'!I33,"") -> 400650 | J32: =IF('Y0 Metered Data'!J33<>0,'Y0 Metered Data'!J33,"") ->  | K32: =IF('Y0 Metered Data'!K33<>0,'Y0 Metered Data'!K33,"") ->  | L32: =IF('Y0 Metered Data'!L33<>0,'Y0 Metered Data'!L33,"") -> 444600 | M32: =IF('Y0 Metered Data'!M33<>0,'Y0 Metered Data'!M33,"") ->  | N32: =IF('Y0 Metered Data'!N33<>0,'Y0 Metered Data'!N33,"") ->  | O32: 1296.075 | R32: 2254.725 | U32: 2203.575 | X32: 2445.3 | AF32: 8199.675 | AN32: 2049.91875
A33: =IF('Y0 Metered Data'!A34<>0,'Y0 Metered Data'!A34,0) -> Commercial 27 | B33: =IF('Y0 Metered Data'!B34<>0,'Y0 Metered Data'!B34,0) -> Commercial | C33: =IF('Y0 Metered Data'!C34<>0,'Y0 Metered Data'!C34,"") -> 32550 | D33: =IF('Y0 Metered Data'!D34<>0,'Y0 Metered Data'!D34,"") ->  | E33: =IF('Y0 Metered Data'!E34<>0,'Y0 Metered Data'!E34,"") ->  | F33: =IF('Y0 Metered Data'!F34<>0,'Y0 Metered Data'!F34,"") -> 28200 | G33: =IF('Y0 Metered Data'!G34<>0,'Y0 Metered Data'!G34,"") ->  | H33: =IF('Y0 Metered Data'!H34<>0,'Y0 Metered Data'!H34,"") ->  | I33: =IF('Y0 Metered Data'!I34<>0,'Y0 Metered Data'!I34,"") -> 31200 | J33: =IF('Y0 Metered Data'!J34<>0,'Y0 Metered Data'!J34,"") ->  | K33: =IF('Y0 Metered Data'!K34<>0,'Y0 Metered Data'!K34,"") ->  | L33: =IF('Y0 Metered Data'!L34<>0,'Y0 Metered Data'!L34,"") -> 43800 | M33: =IF('Y0 Metered Data'!M34<>0,'Y0 Metered Data'!M34,"") ->  | N33: =IF('Y0 Metered Data'!N34<>0,'Y0 Metered Data'!N34,"") ->  | O33: 179.025 | R33: 155.1 | U33: 171.6 | X33: 240.9 | AC33: 746.625 | AK33: 186.65625
A34: =IF('Y0 Metered Data'!A35<>0,'Y0 Metered Data'!A35,0) -> Commercial 28 | B34: =IF('Y0 Metered Data'!B35<>0,'Y0 Metered Data'!B35,0) -> Commercial | C34: =IF('Y0 Metered Data'!C35<>0,'Y0 Metered Data'!C35,"") -> 15000 | D34: =IF('Y0 Metered Data'!D35<>0,'Y0 Metered Data'!D35,"") ->  | E34: =IF('Y0 Metered Data'!E35<>0,'Y0 Metered Data'!E35,"") ->  | F34: =IF('Y0 Metered Data'!F35<>0,'Y0 Metered Data'!F35,"") -> 15000 | G34: =IF('Y0 Metered Data'!G35<>0,'Y0 Metered Data'!G35,"") ->  | H34: =IF('Y0 Metered Data'!H35<>0,'Y0 Metered Data'!H35,"") ->  | I34: =IF('Y0 Metered Data'!I35<>0,'Y0 Metered Data'!I35,"") -> 15000 | J34: =IF('Y0 Metered Data'!J35<>0,'Y0 Metered Data'!J35,"") ->  | K34: =IF('Y0 Metered Data'!K35<>0,'Y0 Metered Data'!K35,"") ->  | L34: =IF('Y0 Metered Data'!L35<>0,'Y0 Metered Data'!L35,"") -> 15000 | M34: =IF('Y0 Metered Data'!M35<>0,'Y0 Metered Data'!M35,"") ->  | N34: =IF('Y0 Metered Data'!N35<>0,'Y0 Metered Data'!N35,"") ->  | O34: 82.5 | R34: 82.5 | U34: 82.5 | X34: 82.5 | AA34: 330 | AI34: 82.5
A35: =IF('Y0 Metered Data'!A36<>0,'Y0 Metered Data'!A36,0) -> Commercial 29 | B35: =IF('Y0 Metered Data'!B36<>0,'Y0 Metered Data'!B36,0) -> Commercial | C35: =IF('Y0 Metered Data'!C36<>0,'Y0 Metered Data'!C36,"") -> 15000 | D35: =IF('Y0 Metered Data'!D36<>0,'Y0 Metered Data'!D36,"") ->  | E35: =IF('Y0 Metered Data'!E36<>0,'Y0 Metered Data'!E36,"") ->  | F35: =IF('Y0 Metered Data'!F36<>0,'Y0 Metered Data'!F36,"") -> 15000 | G35: =IF('Y0 Metered Data'!G36<>0,'Y0 Metered Data'!G36,"") ->  | H35: =IF('Y0 Metered Data'!H36<>0,'Y0 Metered Data'!H36,"") ->  | I35: =IF('Y0 Metered Data'!I36<>0,'Y0 Metered Data'!I36,"") -> 15000 | J35: =IF('Y0 Metered Data'!J36<>0,'Y0 Metered Data'!J36,"") ->  | K35: =IF('Y0 Metered Data'!K36<>0,'Y0 Metered Data'!K36,"") ->  | L35: =IF('Y0 Metered Data'!L36<>0,'Y0 Metered Data'!L36,"") -> 15000 | M35: =IF('Y0 Metered Data'!M36<>0,'Y0 Metered Data'!M36,"") ->  | N35: =IF('Y0 Metered Data'!N36<>0,'Y0 Metered Data'!N36,"") ->  | O35: 82.5 | R35: 82.5 | U35: 82.5 | X35: 82.5 | AA35: 330 | AI35: 82.5
A36: =IF('Y0 Metered Data'!A37<>0,'Y0 Metered Data'!A37,0) -> Commercial 30 | B36: =IF('Y0 Metered Data'!B37<>0,'Y0 Metered Data'!B37,0) -> Commercial | C36: =IF('Y0 Metered Data'!C37<>0,'Y0 Metered Data'!C37,"") -> 15000 | D36: =IF('Y0 Metered Data'!D37<>0,'Y0 Metered Data'!D37,"") ->  | E36: =IF('Y0 Metered Data'!E37<>0,'Y0 Metered Data'!E37,"") ->  | F36: =IF('Y0 Metered Data'!F37<>0,'Y0 Metered Data'!F37,"") -> 15000 | G36: =IF('Y0 Metered Data'!G37<>0,'Y0 Metered Data'!G37,"") ->  | H36: =IF('Y0 Metered Data'!H37<>0,'Y0 Metered Data'!H37,"") ->  | I36: =IF('Y0 Metered Data'!I37<>0,'Y0 Metered Data'!I37,"") -> 15000 | J36: =IF('Y0 Metered Data'!J37<>0,'Y0 Metered Data'!J37,"") ->  | K36: =IF('Y0 Metered Data'!K37<>0,'Y0 Metered Data'!K37,"") ->  | L36: =IF('Y0 Metered Data'!L37<>0,'Y0 Metered Data'!L37,"") -> 15000 | M36: =IF('Y0 Metered Data'!M37<>0,'Y0 Metered Data'!M37,"") ->  | N36: =IF('Y0 Metered Data'!N37<>0,'Y0 Metered Data'!N37,"") ->  | O36: 82.5 | R36: 82.5 | U36: 82.5 | X36: 82.5 | AA36: 330 | AI36: 82.5
A37: =IF('Y0 Metered Data'!A38<>0,'Y0 Metered Data'!A38,0) -> Commercial 31 | B37: =IF('Y0 Metered Data'!B38<>0,'Y0 Metered Data'!B38,0) -> Commercial | C37: =IF('Y0 Metered Data'!C38<>0,'Y0 Metered Data'!C38,"") -> 15000 | D37: =IF('Y0 Metered Data'!D38<>0,'Y0 Metered Data'!D38,"") ->  | E37: =IF('Y0 Metered Data'!E38<>0,'Y0 Metered Data'!E38,"") ->  | F37: =IF('Y0 Metered Data'!F38<>0,'Y0 Metered Data'!F38,"") -> 15000 | G37: =IF('Y0 Metered Data'!G38<>0,'Y0 Metered Data'!G38,"") ->  | H37: =IF('Y0 Metered Data'!H38<>0,'Y0 Metered Data'!H38,"") ->  | I37: =IF('Y0 Metered Data'!I38<>0,'Y0 Metered Data'!I38,"") -> 15000 | J37: =IF('Y0 Metered Data'!J38<>0,'Y0 Metered Data'!J38,"") ->  | K37: =IF('Y0 Metered Data'!K38<>0,'Y0 Metered Data'!K38,"") ->  | L37: =IF('Y0 Metered Data'!L38<>0,'Y0 Metered Data'!L38,"") -> 15000 | M37: =IF('Y0 Metered Data'!M38<>0,'Y0 Metered Data'!M38,"") ->  | N37: =IF('Y0 Metered Data'!N38<>0,'Y0 Metered Data'!N38,"") ->  | O37: 82.5 | R37: 82.5 | U37: 82.5 | X37: 82.5 | AA37: 330 | AI37: 82.5
A38: =IF('Y0 Metered Data'!A39<>0,'Y0 Metered Data'!A39,0) -> Commercial 32 | B38: =IF('Y0 Metered Data'!B39<>0,'Y0 Metered Data'!B39,0) -> Commercial | C38: =IF('Y0 Metered Data'!C39<>0,'Y0 Metered Data'!C39,"") -> 226500 | D38: =IF('Y0 Metered Data'!D39<>0,'Y0 Metered Data'!D39,"") ->  | E38: =IF('Y0 Metered Data'!E39<>0,'Y0 Metered Data'!E39,"") ->  | F38: =IF('Y0 Metered Data'!F39<>0,'Y0 Metered Data'!F39,"") -> 215700 | G38: =IF('Y0 Metered Data'!G39<>0,'Y0 Metered Data'!G39,"") ->  | H38: =IF('Y0 Metered Data'!H39<>0,'Y0 Metered Data'!H39,"") ->  | I38: =IF('Y0 Metered Data'!I39<>0,'Y0 Metered Data'!I39,"") -> 170250 | J38: =IF('Y0 Metered Data'!J39<>0,'Y0 Metered Data'!J39,"") ->  | K38: =IF('Y0 Metered Data'!K39<>0,'Y0 Metered Data'!K39,"") ->  | L38: =IF('Y0 Metered Data'!L39<>0,'Y0 Metered Data'!L39,"") -> 198300 | M38: =IF('Y0 Metered Data'!M39<>0,'Y0 Metered Data'!M39,"") ->  | N38: =IF('Y0 Metered Data'!N39<>0,'Y0 Metered Data'!N39,"") ->  | O38: 1245.75 | R38: 1186.35 | U38: 936.375 | X38: 1090.65 | AF38: 4459.125 | AN38: 1114.78125
A39: =IF('Y0 Metered Data'!A40<>0,'Y0 Metered Data'!A40,0) -> Commercial 33 | B39: =IF('Y0 Metered Data'!B40<>0,'Y0 Metered Data'!B40,0) -> Commercial | C39: =IF('Y0 Metered Data'!C40<>0,'Y0 Metered Data'!C40,"") -> 15000 | D39: =IF('Y0 Metered Data'!D40<>0,'Y0 Metered Data'!D40,"") ->  | E39: =IF('Y0 Metered Data'!E40<>0,'Y0 Metered Data'!E40,"") ->  | F39: =IF('Y0 Metered Data'!F40<>0,'Y0 Metered Data'!F40,"") -> 15000 | G39: =IF('Y0 Metered Data'!G40<>0,'Y0 Metered Data'!G40,"") ->  | H39: =IF('Y0 Metered Data'!H40<>0,'Y0 Metered Data'!H40,"") ->  | I39: =IF('Y0 Metered Data'!I40<>0,'Y0 Metered Data'!I40,"") -> 15000 | J39: =IF('Y0 Metered Data'!J40<>0,'Y0 Metered Data'!J40,"") ->  | K39: =IF('Y0 Metered Data'!K40<>0,'Y0 Metered Data'!K40,"") ->  | L39: =IF('Y0 Metered Data'!L40<>0,'Y0 Metered Data'!L40,"") -> 15000 | M39: =IF('Y0 Metered Data'!M40<>0,'Y0 Metered Data'!M40,"") ->  | N39: =IF('Y0 Metered Data'!N40<>0,'Y0 Metered Data'!N40,"") ->  | O39: 82.5 | R39: 82.5 | U39: 82.5 | X39: 82.5 | AA39: 330 | AI39: 82.5
A40: =IF('Y0 Metered Data'!A41<>0,'Y0 Metered Data'!A41,0) -> Commercial 34 | B40: =IF('Y0 Metered Data'!B41<>0,'Y0 Metered Data'!B41,0) -> Commercial | C40: =IF('Y0 Metered Data'!C41<>0,'Y0 Metered Data'!C41,"") -> 34800 | D40: =IF('Y0 Metered Data'!D41<>0,'Y0 Metered Data'!D41,"") ->  | E40: =IF('Y0 Metered Data'!E41<>0,'Y0 Metered Data'!E41,"") ->  | F40: =IF('Y0 Metered Data'!F41<>0,'Y0 Metered Data'!F41,"") -> 34500 | G40: =IF('Y0 Metered Data'!G41<>0,'Y0 Metered Data'!G41,"") ->  | H40: =IF('Y0 Metered Data'!H41<>0,'Y0 Metered Data'!H41,"") ->  | I40: =IF('Y0 Metered Data'!I41<>0,'Y0 Metered Data'!I41,"") -> 29850 | J40: =IF('Y0 Metered Data'!J41<>0,'Y0 Metered Data'!J41,"") ->  | K40: =IF('Y0 Metered Data'!K41<>0,'Y0 Metered Data'!K41,"") ->  | L40: =IF('Y0 Metered Data'!L41<>0,'Y0 Metered Data'!L41,"") -> 31650 | M40: =IF('Y0 Metered Data'!M41<>0,'Y0 Metered Data'!M41,"") ->  | N40: =IF('Y0 Metered Data'!N41<>0,'Y0 Metered Data'!N41,"") ->  | O40: 191.4 | R40: 189.75 | U40: 164.175 | X40: 174.075 | AC40: 719.4 | AK40: 179.85
A41: =IF('Y0 Metered Data'!A42<>0,'Y0 Metered Data'!A42,0) -> Commercial 35 | B41: =IF('Y0 Metered Data'!B42<>0,'Y0 Metered Data'!B42,0) -> Commercial | C41: =IF('Y0 Metered Data'!C42<>0,'Y0 Metered Data'!C42,"") -> 42750 | D41: =IF('Y0 Metered Data'!D42<>0,'Y0 Metered Data'!D42,"") ->  | E41: =IF('Y0 Metered Data'!E42<>0,'Y0 Metered Data'!E42,"") ->  | F41: =IF('Y0 Metered Data'!F42<>0,'Y0 Metered Data'!F42,"") -> 25950 | G41: =IF('Y0 Metered Data'!G42<>0,'Y0 Metered Data'!G42,"") ->  | H41: =IF('Y0 Metered Data'!H42<>0,'Y0 Metered Data'!H42,"") ->  | I41: =IF('Y0 Metered Data'!I42<>0,'Y0 Metered Data'!I42,"") -> 34950 | J41: =IF('Y0 Metered Data'!J42<>0,'Y0 Metered Data'!J42,"") ->  | K41: =IF('Y0 Metered Data'!K42<>0,'Y0 Metered Data'!K42,"") ->  | L41: =IF('Y0 Metered Data'!L42<>0,'Y0 Metered Data'!L42,"") -> 33450 | M41: =IF('Y0 Metered Data'!M42<>0,'Y0 Metered Data'!M42,"") ->  | N41: =IF('Y0 Metered Data'!N42<>0,'Y0 Metered Data'!N42,"") ->  | O41: 235.125 | R41: 142.725 | U41: 192.225 | X41: 183.975 | AC41: 754.05 | AK41: 188.5125
A42: =IF('Y0 Metered Data'!A43<>0,'Y0 Metered Data'!A43,0) -> Commercial 36 | B42: =IF('Y0 Metered Data'!B43<>0,'Y0 Metered Data'!B43,0) -> Commercial | C42: =IF('Y0 Metered Data'!C43<>0,'Y0 Metered Data'!C43,"") -> 60450 | D42: =IF('Y0 Metered Data'!D43<>0,'Y0 Metered Data'!D43,"") ->  | E42: =IF('Y0 Metered Data'!E43<>0,'Y0 Metered Data'!E43,"") ->  | F42: =IF('Y0 Metered Data'!F43<>0,'Y0 Metered Data'!F43,"") -> 48600 | G42: =IF('Y0 Metered Data'!G43<>0,'Y0 Metered Data'!G43,"") ->  | H42: =IF('Y0 Metered Data'!H43<>0,'Y0 Metered Data'!H43,"") ->  | I42: =IF('Y0 Metered Data'!I43<>0,'Y0 Metered Data'!I43,"") -> 39450 | J42: =IF('Y0 Metered Data'!J43<>0,'Y0 Metered Data'!J43,"") ->  | K42: =IF('Y0 Metered Data'!K43<>0,'Y0 Metered Data'!K43,"") ->  | L42: =IF('Y0 Metered Data'!L43<>0,'Y0 Metered Data'!L43,"") -> 36750 | M42: =IF('Y0 Metered Data'!M43<>0,'Y0 Metered Data'!M43,"") ->  | N42: =IF('Y0 Metered Data'!N43<>0,'Y0 Metered Data'!N43,"") ->  | O42: 332.475 | R42: 267.3 | U42: 216.975 | X42: 202.125 | AC42: 1018.875 | AK42: 254.71875
A43: =IF('Y0 Metered Data'!A44<>0,'Y0 Metered Data'!A44,0) -> Commercial 37 | B43: =IF('Y0 Metered Data'!B44<>0,'Y0 Metered Data'!B44,0) -> Commercial | C43: =IF('Y0 Metered Data'!C44<>0,'Y0 Metered Data'!C44,"") -> 15000 | D43: =IF('Y0 Metered Data'!D44<>0,'Y0 Metered Data'!D44,"") ->  | E43: =IF('Y0 Metered Data'!E44<>0,'Y0 Metered Data'!E44,"") ->  | F43: =IF('Y0 Metered Data'!F44<>0,'Y0 Metered Data'!F44,"") -> 42150 | G43: =IF('Y0 Metered Data'!G44<>0,'Y0 Metered Data'!G44,"") ->  | H43: =IF('Y0 Metered Data'!H44<>0,'Y0 Metered Data'!H44,"") ->  | I43: =IF('Y0 Metered Data'!I44<>0,'Y0 Metered Data'!I44,"") -> 33150 | J43: =IF('Y0 Metered Data'!J44<>0,'Y0 Metered Data'!J44,"") ->  | K43: =IF('Y0 Metered Data'!K44<>0,'Y0 Metered Data'!K44,"") ->  | L43: =IF('Y0 Metered Data'!L44<>0,'Y0 Metered Data'!L44,"") -> 36600 | M43: =IF('Y0 Metered Data'!M44<>0,'Y0 Metered Data'!M44,"") ->  | N43: =IF('Y0 Metered Data'!N44<>0,'Y0 Metered Data'!N44,"") ->  | O43: 82.5 | R43: 231.825 | U43: 182.325 | X43: 201.3 | AC43: 697.95 | AK43: 174.4875

Sheet Y1 Calculated Revenue
A1: Total Calculated Y1 Revenue: | D1: =SUM(N$7:Y$1048576) -> 82379.01375 | AA1: Rate Block Statistics Calculations (should not be modified)
A2: Notes/Assumptions: Billing is completed quarterly. 1 unit = 15,000 gal. Formulas in this tab should not be modified. | Z2: Total Usage | AA2: =SUM(AA7:AA1048576) -> 660000 | AB2: 658350 | AC2: 2011800 | AD2: 610350 | AE2: 527400 | AF2: 5623650 | AG2: 4450200
Z3: Total Revenue | AI3: =SUM(AI7:AI13412) -> 3738.9 | AJ3: =SUM(AJ7:AJ13412) -> 3729.55275 | AK3: 11396.847 | AL3: 3457.63275 | AM3: 2987.721 | AN3: 31857.97725 | AO3: 25210.383
Z4: Lower Limit | AA4: 0 | AB4: =AA5+0.001 -> 15000.001 | AC4: 30000.001 | AD4: 60000.001 | AE4: 100000.001 | AF4: 180000.001 | AG4: =AF5+0.001 -> 1000000.001 | AI4: 0 | AJ4: =AI5 + 0.001 -> 15000.001 | AK4: 30000.001 | AL4: 60000.001 | AM4: 100000.001 | AN4: 180000.001 | AO4: =AN5 + 0.001 -> 1000000.001
A5: Usage Volume | O5: Bill Calculation | Z5: Upper Limit | AA5: ='Rate Block Statistics'!A7 -> 15000 | AB5: ='Rate Block Statistics'!A8 -> 30000 | AC5: ='Rate Block Statistics'!A9 -> 60000 | AD5: ='Rate Block Statistics'!A10 -> 100000 | AE5: ='Rate Block Statistics'!A11 -> 180000 | AF5: ='Rate Block Statistics'!A12 -> 1000000 | AG5: 10000000 | AI5: =AA5 -> 15000 | AJ5: =AB5 -> 30000 | AK5: 60000 | AL5: 100000 | AM5: 180000 | AN5: 1000000 | AO5: 10000000
A6: ='Y0 Calculated Revenue'!A6 -> Account | C6: ='Y0 Calculated Revenue'!C6 -> June2017 | D6: ='Y0 Calculated Revenue'!D6 -> 2017-07-01 | E6: ='Y0 Calculated Revenue'!E6 -> 2017-08-01 | F6: ='Y0 Calculated Revenue'!F6 -> 2017-09-01 | G6: ='Y0 Calculated Revenue'!G6 -> 2017-10-02 | H6: ='Y0 Calculated Revenue'!H6 -> 2017-11-02 | I6: ='Y0 Calculated Revenue'!I6 -> 2017-12-03 | J6: ='Y0 Calculated Revenue'!J6 -> 2018-01-03 | K6: ='Y0 Calculated Revenue'!K6 -> 2018-02-03 | L6: ='Y0 Calculated Revenue'!L6 -> 2018-03-06 | M6: ='Y0 Calculated Revenue'!M6 -> 2018-04-06 | N6: ='Y0 Calculated Revenue'!N6 -> 2018-05-07 | O6: ='Y0 Calculated Revenue'!O6 -> June2017 | P6: ='Y0 Calculated Revenue'!P6 -> 2017-07-01 | Q6: ='Y0 Calculated Revenue'!Q6 -> 2017-08-01 | R6: ='Y0 Calculated Revenue'!R6 -> 2017-09-01 | S6: ='Y0 Calculated Revenue'!S6 -> 2017-10-02 | T6: ='Y0 Calculated Revenue'!T6 -> 2017-11-02 | U6: ='Y0 Calculated Revenue'!U6 -> 2017-12-03 | V6: ='Y0 Calculated Revenue'!V6 -> 2018-01-03 | W6: ='Y0 Calculated Revenue'!W6 -> 2018-02-03 | X6: ='Y0 Calculated Revenue'!X6 -> 2018-03-06 | Y6: ='Y0 Calculated Revenue'!Y6 -> 2018-04-06 | Z6: ='Y0 Calculated Revenue'!Z6 -> 2018-05-07 | AA6: ='Y0 Calculated Revenue'!AA6 -> 0 - 15000 | AB6: ='Y0 Calculated Revenue'!AB6 -> 15000 - 30000 | AC6: ='Y0 Calculated Revenue'!AC6 -> 30000 - 60000 | AD6: ='Y0 Calculated Revenue'!AD6 -> 60000 - 100000 | AE6: ='Y0 Calculated Revenue'!AE6 -> 100000 - 180000 | AF6: ='Y0 Calculated Revenue'!AF6 -> 180000 - 1000000 | AG6: ='Y0 Calculated Revenue'!AG6 -> > 1000000 | AH6: ='Y0 Calculated Revenue'!AH6 -> 0 | AI6: ='Y0 Calculated Revenue'!AI6 -> 0 - 15000 | AJ6: ='Y0 Calculated Revenue'!AJ6 -> 15000 - 30000 | AK6: ='Y0 Calculated Revenue'!AK6 -> 30000 - 60000 | AL6: ='Y0 Calculated Revenue'!AL6 -> 60000 - 100000 | AM6: ='Y0 Calculated Revenue'!AM6 -> 100000 - 180000 | AN6: ='Y0 Calculated Revenue'!AN6 -> 180000 - 1000000 | AO6: ='Y0 Calculated Revenue'!AO6 -> > 1000000
A7: =IF('Y0 Metered Data'!A8<>0,'Y0 Metered Data'!A8,0) -> Commercial 1 | B7: =IF('Y0 Metered Data'!B8<>0,'Y0 Metered Data'!B8,0) -> Commercial | C7: =IF('Y0 Calculated Revenue'!C7="","",'Y0 Calculated Revenue'!C7*(1-UseDecreaseFactorY1)) -> 15000 | D7: =IF('Y0 Calculated Revenue'!D7="","",'Y0 Calculated Revenue'!D7*(1-UseDecreaseFactorY1)) ->  | E7: =IF('Y0 Calculated Revenue'!E7="","",'Y0 Calculated Revenue'!E7*(1-UseDecreaseFactorY1)) ->  | F7: =IF('Y0 Calculated Revenue'!F7="","",'Y0 Calculated Revenue'!F7*(1-UseDecreaseFactorY1)) -> 15000 | G7: =IF('Y0 Calculated Revenue'!G7="","",'Y0 Calculated Revenue'!G7*(1-UseDecreaseFactorY1)) ->  | H7: =IF('Y0 Calculated Revenue'!H7="","",'Y0 Calculated Revenue'!H7*(1-UseDecreaseFactorY1)) ->  | I7: =IF('Y0 Calculated Revenue'!I7="","",'Y0 Calculated Revenue'!I7*(1-UseDecreaseFactorY1)) -> 15000 | J7: =IF('Y0 Calculated Revenue'!J7="","",'Y0 Calculated Revenue'!J7*(1-UseDecreaseFactorY1)) ->  | K7: =IF('Y0 Calculated Revenue'!K7="","",'Y0 Calculated Revenue'!K7*(1-UseDecreaseFactorY1)) ->  | L7: =IF('Y0 Calculated Revenue'!L7="","",'Y0 Calculated Revenue'!L7*(1-UseDecreaseFactorY1)) -> 15000 | M7: =IF('Y0 Calculated Revenue'!M7="","",'Y0 Calculated Revenue'!M7*(1-UseDecreaseFactorY1)) ->  | N7: =IF('Y0 Calculated Revenue'!N7="","",'Y0 Calculated Revenue'!N7*(1-UseDecreaseFactorY1)) ->  | O7: =IF(""=(C7),"",(C7/Y1_billunit*Y1_Rate)) -> 84.975 | P7: =IF(""=(D7),"",(D7/Y1_billunit*Y1_Rate)) ->  | Q7: =IF(""=(E7),"",(E7/Y1_billunit*Y1_Rate)) ->  | R7: =IF(""=(F7),"",(F7/Y1_billunit*Y1_Rate)) -> 84.975 | S7: =IF(""=(G7),"",(G7/Y1_billunit*Y1_Rate)) ->  | T7: =IF(""=(H7),"",(H7/Y1_billunit*Y1_Rate)) ->  | U7: =IF(""=(I7),"",(I7/Y1_billunit*Y1_Rate)) -> 84.975 | V7: =IF(""=(J7),"",(J7/Y1_billunit*Y1_Rate)) ->  | W7: =IF(""=(K7),"",(K7/Y1_billunit*Y1_Rate)) ->  | X7: =IF(""=(L7),"",(L7/Y1_billunit*Y1_Rate)) -> 84.975 | Y7: =IF(""=(M7),"",(M7/Y1_billunit*Y1_Rate)) ->  | Z7: =IF(""=(N7),"",(N7/Y1_billunit*Y1_Rate)) ->  | AA7: =IF(AND(AVERAGE($C7:$N7)<=AA$5,AVERAGE($C7:$N7)>=AA$4),SUM($C7:$N7),"") -> 60000 | AB7: =IF(AND(AVERAGE($C7:$N7)<=AB$5,AVERAGE($C7:$N7)>=AB$4),SUM($C7:$N7),"") ->  | AI7: =IF(AND(AVERAGE($C7:$N7)<=AI$5,AVERAGE($C7:$N7)>=AI$4),SUM($O7:$Z7),"") -> 339.9 | AJ7: =IF(AND(AVERAGE($C7:$N7)<=AJ$5,AVERAGE($C7:$N7)>=AJ$4),SUM($O7:$Z7),"") ->  | AP7: =IFERROR(IF(AND(#REF!<=AP$5,#REF!>AP$4),SUM($N7:$Y7),""),"") -> 
A8: =IF('Y0 Metered Data'!A9<>0,'Y0 Metered Data'!A9,0) -> Commercial 2 | B8: =IF('Y0 Metered Data'!B9<>0,'Y0 Metered Data'!B9,0) -> Commercial | C8: =IF('Y0 Calculated Revenue'!C8="","",'Y0 Calculated Revenue'!C8*(1-UseDecreaseFactorY1)) -> 15000 | D8: =IF('Y0 Calculated Revenue'!D8="","",'Y0 Calculated Revenue'!D8*(1-UseDecreaseFactorY1)) ->  | E8: =IF('Y0 Calculated Revenue'!E8="","",'Y0 Calculated Revenue'!E8*(1-UseDecreaseFactorY1)) ->  | F8: =IF('Y0 Calculated Revenue'!F8="","",'Y0 Calculated Revenue'!F8*(1-UseDecreaseFactorY1)) -> 15000 | G8: =IF('Y0 Calculated Revenue'!G8="","",'Y0 Calculated Revenue'!G8*(1-UseDecreaseFactorY1)) ->  | H8: =IF('Y0 Calculated Revenue'!H8="","",'Y0 Calculated Revenue'!H8*(1-UseDecreaseFactorY1)) ->  | I8: =IF('Y0 Calculated Revenue'!I8="","",'Y0 Calculated Revenue'!I8*(1-UseDecreaseFactorY1)) -> 15000 | J8: =IF('Y0 Calculated Revenue'!J8="","",'Y0 Calculated Revenue'!J8*(1-UseDecreaseFactorY1)) ->  | K8: =IF('Y0 Calculated Revenue'!K8="","",'Y0 Calculated Revenue'!K8*(1-UseDecreaseFactorY1)) ->  | L8: =IF('Y0 Calculated Revenue'!L8="","",'Y0 Calculated Revenue'!L8*(1-UseDecreaseFactorY1)) -> 15000 | M8: =IF('Y0 Calculated Revenue'!M8="","",'Y0 Calculated Revenue'!M8*(1-UseDecreaseFactorY1)) ->  | N8: =IF('Y0 Calculated Revenue'!N8="","",'Y0 Calculated Revenue'!N8*(1-UseDecreaseFactorY1)) ->  | O8: 84.975 | R8: 84.975 | U8: 84.975 | X8: 84.975 | AA8: =IF(AND(AVERAGE($C8:$N8)<=AA$5,AVERAGE($C8:$N8)>=AA$4),SUM($C8:$N8),"") -> 60000 | AI8: =IF(AND(AVERAGE($C8:$N8)<=AI$5,AVERAGE($C8:$N8)>=AI$4),SUM($O8:$Z8),"") -> 339.9 | AP8: =IFERROR(IF(AND(#REF!<=AP$5,#REF!>AP$4),SUM($N8:$Y8),""),"") -> 
A9: =IF('Y0 Metered Data'!A10<>0,'Y0 Metered Data'!A10,0) -> Commercial 3 | B9: =IF('Y0 Metered Data'!B10<>0,'Y0 Metered Data'!B10,0) -> Commercial | C9: =IF('Y0 Calculated Revenue'!C9="","",'Y0 Calculated Revenue'!C9*(1-UseDecreaseFactorY1)) -> 739800 | D9: =IF('Y0 Calculated Revenue'!D9="","",'Y0 Calculated Revenue'!D9*(1-UseDecreaseFactorY1)) ->  | E9: =IF('Y0 Calculated Revenue'!E9="","",'Y0 Calculated Revenue'!E9*(1-UseDecreaseFactorY1)) ->  | F9: =IF('Y0 Calculated Revenue'!F9="","",'Y0 Calculated Revenue'!F9*(1-UseDecreaseFactorY1)) -> 706500 | G9: =IF('Y0 Calculated Revenue'!G9="","",'Y0 Calculated Revenue'!G9*(1-UseDecreaseFactorY1)) ->  | H9: =IF('Y0 Calculated Revenue'!H9="","",'Y0 Calculated Revenue'!H9*(1-UseDecreaseFactorY1)) ->  | I9: =IF('Y0 Calculated Revenue'!I9="","",'Y0 Calculated Revenue'!I9*(1-UseDecreaseFactorY1)) -> 833100 | J9: =IF('Y0 Calculated Revenue'!J9="","",'Y0 Calculated Revenue'!J9*(1-UseDecreaseFactorY1)) ->  | K9: =IF('Y0 Calculated Revenue'!K9="","",'Y0 Calculated Revenue'!K9*(1-UseDecreaseFactorY1)) ->  | L9: =IF('Y0 Calculated Revenue'!L9="","",'Y0 Calculated Revenue'!L9*(1-UseDecreaseFactorY1)) -> 1042650 | M9: =IF('Y0 Calculated Revenue'!M9="","",'Y0 Calculated Revenue'!M9*(1-UseDecreaseFactorY1)) ->  | N9: =IF('Y0 Calculated Revenue'!N9="","",'Y0 Calculated Revenue'!N9*(1-UseDecreaseFactorY1)) ->  | O9: 4190.967 | R9: 4002.3225 | U9: 4719.5115 | X9: 5906.61225 | AF9: 3322050 | AN9: 18819.41325 | AP9: =IFERROR(IF(AND(#REF!<=AP$5,#REF!>AP$4),SUM($N9:$Y9),""),"") -> 
A10: =IF('Y0 Metered Data'!A11<>0,'Y0 Metered Data'!A11,0) -> Commercial 4 | B10: =IF('Y0 Metered Data'!B11<>0,'Y0 Metered Data'!B11,0) -> Commercial | C10: =IF('Y0 Calculated Revenue'!C10="","",'Y0 Calculated Revenue'!C10*(1-UseDecreaseFactorY1)) -> 26550 | D10: =IF('Y0 Calculated Revenue'!D10="","",'Y0 Calculated Revenue'!D10*(1-UseDecreaseFactorY1)) ->  | E10: =IF('Y0 Calculated Revenue'!E10="","",'Y0 Calculated Revenue'!E10*(1-UseDecreaseFactorY1)) ->  | F10: =IF('Y0 Calculated Revenue'!F10="","",'Y0 Calculated Revenue'!F10*(1-UseDecreaseFactorY1)) -> 42450 | G10: =IF('Y0 Calculated Revenue'!G10="","",'Y0 Calculated Revenue'!G10*(1-UseDecreaseFactorY1)) ->  | H10: =IF('Y0 Calculated Revenue'!H10="","",'Y0 Calculated Revenue'!H10*(1-UseDecreaseFactorY1)) ->  | I10: =IF('Y0 Calculated Revenue'!I10="","",'Y0 Calculated Revenue'!I10*(1-UseDecreaseFactorY1)) -> 29850 | J10: =IF('Y0 Calculated Revenue'!J10="","",'Y0 Calculated Revenue'!J10*(1-UseDecreaseFactorY1)) ->  | K10: =IF('Y0 Calculated Revenue'!K10="","",'Y0 Calculated Revenue'!K10*(1-UseDecreaseFactorY1)) ->  | L10: =IF('Y0 Calculated Revenue'!L10="","",'Y0 Calculated Revenue'!L10*(1-UseDecreaseFactorY1)) -> 44100 | M10: =IF('Y0 Calculated Revenue'!M10="","",'Y0 Calculated Revenue'!M10*(1-UseDecreaseFactorY1)) ->  | N10: =IF('Y0 Calculated Revenue'!N10="","",'Y0 Calculated Revenue'!N10*(1-UseDecreaseFactorY1)) ->  | O10: 150.40575 | R10: 240.47925 | U10: 169.10025 | X10: 249.8265 | AC10: 142950 | AK10: 809.81175 | AP10: =IFERROR(IF(AND(#REF!<=AP$5,#REF!>AP$4),SUM($N10:$Y10),""),"") -> 
A11: =IF('Y0 Metered Data'!A12<>0,'Y0 Metered Data'!A12,0) -> Commercial 5 | B11: =IF('Y0 Metered Data'!B12<>0,'Y0 Metered Data'!B12,0) -> Commercial | C11: =IF('Y0 Calculated Revenue'!C11="","",'Y0 Calculated Revenue'!C11*(1-UseDecreaseFactorY1)) -> 15600 | D11: =IF('Y0 Calculated Revenue'!D11="","",'Y0 Calculated Revenue'!D11*(1-UseDecreaseFactorY1)) ->  | E11: =IF('Y0 Calculated Revenue'!E11="","",'Y0 Calculated Revenue'!E11*(1-UseDecreaseFactorY1)) ->  | F11: =IF('Y0 Calculated Revenue'!F11="","",'Y0 Calculated Revenue'!F11*(1-UseDecreaseFactorY1)) -> 18450 | G11: =IF('Y0 Calculated Revenue'!G11="","",'Y0 Calculated Revenue'!G11*(1-UseDecreaseFactorY1)) ->  | H11: =IF('Y0 Calculated Revenue'!H11="","",'Y0 Calculated Revenue'!H11*(1-UseDecreaseFactorY1)) ->  | I11: =IF('Y0 Calculated Revenue'!I11="","",'Y0 Calculated Revenue'!I11*(1-UseDecreaseFactorY1)) -> 15000 | J11: =IF('Y0 Calculated Revenue'!J11="","",'Y0 Calculated Revenue'!J11*(1-UseDecreaseFactorY1)) ->  | K11: =IF('Y0 Calculated Revenue'!K11="","",'Y0 Calculated Revenue'!K11*(1-UseDecreaseFactorY1)) ->  | L11: =IF('Y0 Calculated Revenue'!L11="","",'Y0 Calculated Revenue'!L11*(1-UseDecreaseFactorY1)) -> 15000 | M11: =IF('Y0 Calculated Revenue'!M11="","",'Y0 Calculated Revenue'!M11*(1-UseDecreaseFactorY1)) ->  | N11: =IF('Y0 Calculated Revenue'!N11="","",'Y0 Calculated Revenue'!N11*(1-UseDecreaseFactorY1)) ->  | O11: 88.374 | R11: 104.51925 | U11: 84.975 | X11: 84.975 | AB11: 64050 | AJ11: 362.84325 | AP11: =IFERROR(IF(AND(#REF!<=AP$5,#REF!>AP$4),SUM($N11:$Y11),""),"") -> 
A12: =IF('Y0 Metered Data'!A13<>0,'Y0 Metered Data'!A13,0) -> Commercial 6 | B12: =IF('Y0 Metered Data'!B13<>0,'Y0 Metered Data'!B13,0) -> Commercial | C12: =IF('Y0 Calculated Revenue'!C12="","",'Y0 Calculated Revenue'!C12*(1-UseDecreaseFactorY1)) -> 15000 | D12: =IF('Y0 Calculated Revenue'!D12="","",'Y0 Calculated Revenue'!D12*(1-UseDecreaseFactorY1)) ->  | E12: =IF('Y0 Calculated Revenue'!E12="","",'Y0 Calculated Revenue'!E12*(1-UseDecreaseFactorY1)) ->  | F12: =IF('Y0 Calculated Revenue'!F12="","",'Y0 Calculated Revenue'!F12*(1-UseDecreaseFactorY1)) -> 15000 | G12: =IF('Y0 Calculated Revenue'!G12="","",'Y0 Calculated Revenue'!G12*(1-UseDecreaseFactorY1)) ->  | H12: =IF('Y0 Calculated Revenue'!H12="","",'Y0 Calculated Revenue'!H12*(1-UseDecreaseFactorY1)) ->  | I12: =IF('Y0 Calculated Revenue'!I12="","",'Y0 Calculated Revenue'!I12*(1-UseDecreaseFactorY1)) -> 15000 | J12: =IF('Y0 Calculated Revenue'!J12="","",'Y0 Calculated Revenue'!J12*(1-UseDecreaseFactorY1)) ->  | K12: =IF('Y0 Calculated Revenue'!K12="","",'Y0 Calculated Revenue'!K12*(1-UseDecreaseFactorY1)) ->  | L12: =IF('Y0 Calculated Revenue'!L12="","",'Y0 Calculated Revenue'!L12*(1-UseDecreaseFactorY1)) -> 15000 | M12: =IF('Y0 Calculated Revenue'!M12="","",'Y0 Calculated Revenue'!M12*(1-UseDecreaseFactorY1)) ->  | N12: =IF('Y0 Calculated Revenue'!N12="","",'Y0 Calculated Revenue'!N12*(1-UseDecreaseFactorY1)) ->  | O12: 84.975 | R12: 84.975 | U12: 84.975 | X12: 84.975 | AA12: 60000 | AI12: 339.9 | AP12: =IFERROR(IF(AND(#REF!<=AP$5,#REF!>AP$4),SUM($N12:$Y12),""),"") -> 
A13: =IF('Y0 Metered Data'!A14<>0,'Y0 Metered Data'!A14,0) -> Commercial 7 | B13: =IF('Y0 Metered Data'!B14<>0,'Y0 Metered Data'!B14,0) -> Commercial | C13: =IF('Y0 Calculated Revenue'!C13="","",'Y0 Calculated Revenue'!C13*(1-UseDecreaseFactorY1)) -> 27600 | D13: =IF('Y0 Calculated Revenue'!D13="","",'Y0 Calculated Revenue'!D13*(1-UseDecreaseFactorY1)) ->  | E13: =IF('Y0 Calculated Revenue'!E13="","",'Y0 Calculated Revenue'!E13*(1-UseDecreaseFactorY1)) ->  | F13: =IF('Y0 Calculated Revenue'!F13="","",'Y0 Calculated Revenue'!F13*(1-UseDecreaseFactorY1)) -> 25500 | G13: =IF('Y0 Calculated Revenue'!G13="","",'Y0 Calculated Revenue'!G13*(1-UseDecreaseFactorY1)) ->  | H13: =IF('Y0 Calculated Revenue'!H13="","",'Y0 Calculated Revenue'!H13*(1-UseDecreaseFactorY1)) ->  | I13: =IF('Y0 Calculated Revenue'!I13="","",'Y0 Calculated Revenue'!I13*(1-UseDecreaseFactorY1)) -> 24150 | J13: =IF('Y0 Calculated Revenue'!J13="","",'Y0 Calculated Revenue'!J13*(1-UseDecreaseFactorY1)) ->  | K13: =IF('Y0 Calculated Revenue'!K13="","",'Y0 Calculated Revenue'!K13*(1-UseDecreaseFactorY1)) ->  | L13: =IF('Y0 Calculated Revenue'!L13="","",'Y0 Calculated Revenue'!L13*(1-UseDecreaseFactorY1)) -> 24750 | M13: =IF('Y0 Calculated Revenue'!M13="","",'Y0 Calculated Revenue'!M13*(1-UseDecreaseFactorY1)) ->  | N13: =IF('Y0 Calculated Revenue'!N13="","",'Y0 Calculated Revenue'!N13*(1-UseDecreaseFactorY1)) ->  | O13: 156.354 | R13: 144.4575 | U13: 136.80975 | X13: 140.20875 | AB13: 102000 | AJ13: 577.83 | AP13: =IFERROR(IF(AND(#REF!<=AP$5,#REF!>AP$4),SUM($N13:$Y13),""),"") -> 
A14: =IF('Y0 Metered Data'!A15<>0,'Y0 Metered Data'!A15,0) -> Commercial 8 | B14: =IF('Y0 Metered Data'!B15<>0,'Y0 Metered Data'!B15,0) -> Commercial | C14: =IF('Y0 Calculated Revenue'!C14="","",'Y0 Calculated Revenue'!C14*(1-UseDecreaseFactorY1)) -> 52800 | D14: =IF('Y0 Calculated Revenue'!D14="","",'Y0 Calculated Revenue'!D14*(1-UseDecreaseFactorY1)) ->  | E14: =IF('Y0 Calculated Revenue'!E14="","",'Y0 Calculated Revenue'!E14*(1-UseDecreaseFactorY1)) ->  | F14: =IF('Y0 Calculated Revenue'!F14="","",'Y0 Calculated Revenue'!F14*(1-UseDecreaseFactorY1)) -> 15000 | G14: =IF('Y0 Calculated Revenue'!G14="","",'Y0 Calculated Revenue'!G14*(1-UseDecreaseFactorY1)) ->  | H14: =IF('Y0 Calculated Revenue'!H14="","",'Y0 Calculated Revenue'!H14*(1-UseDecreaseFactorY1)) ->  | I14: =IF('Y0 Calculated Revenue'!I14="","",'Y0 Calculated Revenue'!I14*(1-UseDecreaseFactorY1)) -> 15000 | J14: =IF('Y0 Calculated Revenue'!J14="","",'Y0 Calculated Revenue'!J14*(1-UseDecreaseFactorY1)) ->  | K14: =IF('Y0 Calculated Revenue'!K14="","",'Y0 Calculated Revenue'!K14*(1-UseDecreaseFactorY1)) ->  | L14: =IF('Y0 Calculated Revenue'!L14="","",'Y0 Calculated Revenue'!L14*(1-UseDecreaseFactorY1)) -> 15000 | M14: =IF('Y0 Calculated Revenue'!M14="","",'Y0 Calculated Revenue'!M14*(1-UseDecreaseFactorY1)) ->  | N14: =IF('Y0 Calculated Revenue'!N14="","",'Y0 Calculated Revenue'!N14*(1-UseDecreaseFactorY1)) ->  | O14: 299.112 | R14: 84.975 | U14: 84.975 | X14: 84.975 | AB14: 97800 | AJ14: 554.037 | AP14: =IFERROR(IF(AND(#REF!<=AP$5,#REF!>AP$4),SUM($N14:$Y14),""),"") -> 
A15: =IF('Y0 Metered Data'!A16<>0,'Y0 Metered Data'!A16,0) -> Commercial 9 | B15: =IF('Y0 Metered Data'!B16<>0,'Y0 Metered Data'!B16,0) -> Commercial | C15: =IF('Y0 Calculated Revenue'!C15="","",'Y0 Calculated Revenue'!C15*(1-UseDecreaseFactorY1)) -> 51150 | D15: =IF('Y0 Calculated Revenue'!D15="","",'Y0 Calculated Revenue'!D15*(1-UseDecreaseFactorY1)) ->  | E15: =IF('Y0 Calculated Revenue'!E15="","",'Y0 Calculated Revenue'!E15*(1-UseDecreaseFactorY1)) ->  | F15: =IF('Y0 Calculated Revenue'!F15="","",'Y0 Calculated Revenue'!F15*(1-UseDecreaseFactorY1)) -> 68400 | G15: =IF('Y0 Calculated Revenue'!G15="","",'Y0 Calculated Revenue'!G15*(1-UseDecreaseFactorY1)) ->  | H15: =IF('Y0 Calculated Revenue'!H15="","",'Y0 Calculated Revenue'!H15*(1-UseDecreaseFactorY1)) ->  | I15: =IF('Y0 Calculated Revenue'!I15="","",'Y0 Calculated Revenue'!I15*(1-UseDecreaseFactorY1)) -> 60750 | J15: =IF('Y0 Calculated Revenue'!J15="","",'Y0 Calculated Revenue'!J15*(1-UseDecreaseFactorY1)) ->  | K15: =IF('Y0 Calculated Revenue'!K15="","",'Y0 Calculated Revenue'!K15*(1-UseDecreaseFactorY1)) ->  | L15: =IF('Y0 Calculated Revenue'!L15="","",'Y0 Calculated Revenue'!L15*(1-UseDecreaseFactorY1)) -> 36900 | M15: =IF('Y0 Calculated Revenue'!M15="","",'Y0 Calculated Revenue'!M15*(1-UseDecreaseFactorY1)) ->  | N15: =IF('Y0 Calculated Revenue'!N15="","",'Y0 Calculated Revenue'!N15*(1-UseDecreaseFactorY1)) ->  | O15: 289.76475 | R15: 387.486 | U15: 344.14875 | X15: 209.0385 | AC15: 217200 | AK15: 1230.438 | AP15: =IFERROR(IF(AND(#REF!<=AP$5,#REF!>AP$4),SUM($N15:$Y15),""),"") -> 
A16: =IF('Y0 Metered Data'!A17<>0,'Y0 Metered Data'!A17,0) -> Commercial 10 | B16: =IF('Y0 Metered Data'!B17<>0,'Y0 Metered Data'!B17,0) -> Commercial | C16: =IF('Y0 Calculated Revenue'!C16="","",'Y0 Calculated Revenue'!C16*(1-UseDecreaseFactorY1)) -> 26850 | D16: =IF('Y0 Calculated Revenue'!D16="","",'Y0 Calculated Revenue'!D16*(1-UseDecreaseFactorY1)) ->  | E16: =IF('Y0 Calculated Revenue'!E16="","",'Y0 Calculated Revenue'!E16*(1-UseDecreaseFactorY1)) ->  | F16: =IF('Y0 Calculated Revenue'!F16="","",'Y0 Calculated Revenue'!F16*(1-UseDecreaseFactorY1)) -> 25650 | G16: =IF('Y0 Calculated Revenue'!G16="","",'Y0 Calculated Revenue'!G16*(1-UseDecreaseFactorY1)) ->  | H16: =IF('Y0 Calculated Revenue'!H16="","",'Y0 Calculated Revenue'!H16*(1-UseDecreaseFactorY1)) ->  | I16: =IF('Y0 Calculated Revenue'!I16="","",'Y0 Calculated Revenue'!I16*(1-UseDecreaseFactorY1)) -> 35700 | J16: =IF('Y0 Calculated Revenue'!J16="","",'Y0 Calculated Revenue'!J16*(1-UseDecreaseFactorY1)) ->  | K16: =IF('Y0 Calculated Revenue'!K16="","",'Y0 Calculated Revenue'!K16*(1-UseDecreaseFactorY1)) ->  | L16: =IF('Y0 Calculated Revenue'!L16="","",'Y0 Calculated Revenue'!L16*(1-UseDecreaseFactorY1)) -> 25950 | M16: =IF('Y0 Calculated Revenue'!M16="","",'Y0 Calculated Revenue'!M16*(1-UseDecreaseFactorY1)) ->  | N16: =IF('Y0 Calculated Revenue'!N16="","",'Y0 Calculated Revenue'!N16*(1-UseDecreaseFactorY1)) ->  | O16: 152.10525 | R16: 145.30725 | U16: 202.2405 | X16: 147.00675 | AB16: 114150 | AJ16: 646.65975 | AP16: =IFERROR(IF(AND(#REF!<=AP$5,#REF!>AP$4),SUM($N16:$Y16),""),"") -> 
A17: =IF('Y0 Metered Data'!A18<>0,'Y0 Metered Data'!A18,0) -> Commercial 11 | B17: =IF('Y0 Metered Data'!B18<>0,'Y0 Metered Data'!B18,0) -> Commercial | C17: =IF('Y0 Calculated Revenue'!C17="","",'Y0 Calculated Revenue'!C17*(1-UseDecreaseFactorY1)) -> 21300 | D17: =IF('Y0 Calculated Revenue'!D17="","",'Y0 Calculated Revenue'!D17*(1-UseDecreaseFactorY1)) ->  | E17: =IF('Y0 Calculated Revenue'!E17="","",'Y0 Calculated Revenue'!E17*(1-UseDecreaseFactorY1)) ->  | F17: =IF('Y0 Calculated Revenue'!F17="","",'Y0 Calculated Revenue'!F17*(1-UseDecreaseFactorY1)) -> 19950 | G17: =IF('Y0 Calculated Revenue'!G17="","",'Y0 Calculated Revenue'!G17*(1-UseDecreaseFactorY1)) ->  | H17: =IF('Y0 Calculated Revenue'!H17="","",'Y0 Calculated Revenue'!H17*(1-UseDecreaseFactorY1)) ->  | I17: =IF('Y0 Calculated Revenue'!I17="","",'Y0 Calculated Revenue'!I17*(1-UseDecreaseFactorY1)) -> 17550 | J17: =IF('Y0 Calculated Revenue'!J17="","",'Y0 Calculated Revenue'!J17*(1-UseDecreaseFactorY1)) ->  | K17: =IF('Y0 Calculated Revenue'!K17="","",'Y0 Calculated Revenue'!K17*(1-UseDecreaseFactorY1)) ->  | L17: =IF('Y0 Calculated Revenue'!L17="","",'Y0 Calculated Revenue'!L17*(1-UseDecreaseFactorY1)) -> 19650 | M17: =IF('Y0 Calculated Revenue'!M17="","",'Y0 Calculated Revenue'!M17*(1-UseDecreaseFactorY1)) ->  | N17: =IF('Y0 Calculated Revenue'!N17="","",'Y0 Calculated Revenue'!N17*(1-UseDecreaseFactorY1)) ->  | O17: 120.6645 | R17: 113.01675 | U17: 99.42075 | X17: 111.31725 | AB17: 78450 | AJ17: 444.41925 | AP17: =IFERROR(IF(AND(#REF!<=AP$5,#REF!>AP$4),SUM($N17:$Y17),""),"") -> 
A18: =IF('Y0 Metered Data'!A19<>0,'Y0 Metered Data'!A19,0) -> Commercial 12 | B18: =IF('Y0 Metered Data'!B19<>0,'Y0 Metered Data'!B19,0) -> Commercial | C18: =IF('Y0 Calculated Revenue'!C18="","",'Y0 Calculated Revenue'!C18*(1-UseDecreaseFactorY1)) -> 152700 | D18: =IF('Y0 Calculated Revenue'!D18="","",'Y0 Calculated Revenue'!D18*(1-UseDecreaseFactorY1)) ->  | E18: =IF('Y0 Calculated Revenue'!E18="","",'Y0 Calculated Revenue'!E18*(1-UseDecreaseFactorY1)) ->  | F18: =IF('Y0 Calculated Revenue'!F18="","",'Y0 Calculated Revenue'!F18*(1-UseDecreaseFactorY1)) -> 135300 | G18: =IF('Y0 Calculated Revenue'!G18="","",'Y0 Calculated Revenue'!G18*(1-UseDecreaseFactorY1)) ->  | H18: =IF('Y0 Calculated Revenue'!H18="","",'Y0 Calculated Revenue'!H18*(1-UseDecreaseFactorY1)) ->  | I18: =IF('Y0 Calculated Revenue'!I18="","",'Y0 Calculated Revenue'!I18*(1-UseDecreaseFactorY1)) -> 107550 | J18: =IF('Y0 Calculated Revenue'!J18="","",'Y0 Calculated Revenue'!J18*(1-UseDecreaseFactorY1)) ->  | K18: =IF('Y0 Calculated Revenue'!K18="","",'Y0 Calculated Revenue'!K18*(1-UseDecreaseFactorY1)) ->  | L18: =IF('Y0 Calculated Revenue'!L18="","",'Y0 Calculated Revenue'!L18*(1-UseDecreaseFactorY1)) -> 131850 | M18: =IF('Y0 Calculated Revenue'!M18="","",'Y0 Calculated Revenue'!M18*(1-UseDecreaseFactorY1)) ->  | N18: =IF('Y0 Calculated Revenue'!N18="","",'Y0 Calculated Revenue'!N18*(1-UseDecreaseFactorY1)) ->  | O18: 865.0455 | R18: 766.4745 | U18: 609.27075 | X18: 746.93025 | AE18: 527400 | AM18: 2987.721 | AP18: =IFERROR(IF(AND(#REF!<=AP$5,#REF!>AP$4),SUM($N18:$Y18),""),"") -> 
A19: =IF('Y0 Metered Data'!A20<>0,'Y0 Metered Data'!A20,0) -> Commercial 13 | B19: =IF('Y0 Metered Data'!B20<>0,'Y0 Metered Data'!B20,0) -> Commercial | C19: =IF('Y0 Calculated Revenue'!C19="","",'Y0 Calculated Revenue'!C19*(1-UseDecreaseFactorY1)) -> 74100 | D19: =IF('Y0 Calculated Revenue'!D19="","",'Y0 Calculated Revenue'!D19*(1-UseDecreaseFactorY1)) ->  | E19: =IF('Y0 Calculated Revenue'!E19="","",'Y0 Calculated Revenue'!E19*(1-UseDecreaseFactorY1)) ->  | F19: =IF('Y0 Calculated Revenue'!F19="","",'Y0 Calculated Revenue'!F19*(1-UseDecreaseFactorY1)) -> 52800 | G19: =IF('Y0 Calculated Revenue'!G19="","",'Y0 Calculated Revenue'!G19*(1-UseDecreaseFactorY1)) ->  | H19: =IF('Y0 Calculated Revenue'!H19="","",'Y0 Calculated Revenue'!H19*(1-UseDecreaseFactorY1)) ->  | I19: =IF('Y0 Calculated Revenue'!I19="","",'Y0 Calculated Revenue'!I19*(1-UseDecreaseFactorY1)) -> 36300 | J19: =IF('Y0 Calculated Revenue'!J19="","",'Y0 Calculated Revenue'!J19*(1-UseDecreaseFactorY1)) ->  | K19: =IF('Y0 Calculated Revenue'!K19="","",'Y0 Calculated Revenue'!K19*(1-UseDecreaseFactorY1)) ->  | L19: =IF('Y0 Calculated Revenue'!L19="","",'Y0 Calculated Revenue'!L19*(1-UseDecreaseFactorY1)) -> 40800 | M19: =IF('Y0 Calculated Revenue'!M19="","",'Y0 Calculated Revenue'!M19*(1-UseDecreaseFactorY1)) ->  | N19: =IF('Y0 Calculated Revenue'!N19="","",'Y0 Calculated Revenue'!N19*(1-UseDecreaseFactorY1)) ->  | O19: 419.7765 | R19: 299.112 | U19: 205.6395 | X19: 231.132 | AC19: 204000 | AK19: 1155.66 | AP19: =IFERROR(IF(AND(#REF!<=AP$5,#REF!>AP$4),SUM($N19:$Y19),""),"") -> 
A20: =IF('Y0 Metered Data'!A21<>0,'Y0 Metered Data'!A21,0) -> Commercial 14 | B20: =IF('Y0 Metered Data'!B21<>0,'Y0 Metered Data'!B21,0) -> Commercial | C20: =IF('Y0 Calculated Revenue'!C20="","",'Y0 Calculated Revenue'!C20*(1-UseDecreaseFactorY1)) -> 34350 | D20: =IF('Y0 Calculated Revenue'!D20="","",'Y0 Calculated Revenue'!D20*(1-UseDecreaseFactorY1)) ->  | E20: =IF('Y0 Calculated Revenue'!E20="","",'Y0 Calculated Revenue'!E20*(1-UseDecreaseFactorY1)) ->  | F20: =IF('Y0 Calculated Revenue'!F20="","",'Y0 Calculated Revenue'!F20*(1-UseDecreaseFactorY1)) -> 32250 | G20: =IF('Y0 Calculated Revenue'!G20="","",'Y0 Calculated Revenue'!G20*(1-UseDecreaseFactorY1)) ->  | H20: =IF('Y0 Calculated Revenue'!H20="","",'Y0 Calculated Revenue'!H20*(1-UseDecreaseFactorY1)) ->  | I20: =IF('Y0 Calculated Revenue'!I20="","",'Y0 Calculated Revenue'!I20*(1-UseDecreaseFactorY1)) -> 31050 | J20: =IF('Y0 Calculated Revenue'!J20="","",'Y0 Calculated Revenue'!J20*(1-UseDecreaseFactorY1)) ->  | K20: =IF('Y0 Calculated Revenue'!K20="","",'Y0 Calculated Revenue'!K20*(1-UseDecreaseFactorY1)) ->  | L20: =IF('Y0 Calculated Revenue'!L20="","",'Y0 Calculated Revenue'!L20*(1-UseDecreaseFactorY1)) -> 29850 | M20: =IF('Y0 Calculated Revenue'!M20="","",'Y0 Calculated Revenue'!M20*(1-UseDecreaseFactorY1)) ->  | N20: =IF('Y0 Calculated Revenue'!N20="","",'Y0 Calculated Revenue'!N20*(1-UseDecreaseFactorY1)) ->  | O20: 194.59275 | R20: 182.69625 | U20: 175.89825 | X20: 169.10025 | AC20: 127500 | AK20: 722.2875 | AP20: =IFERROR(IF(AND(#REF!<=AP$5,#REF!>AP$4),SUM($N20:$Y20),""),"") -> 
A21: =IF('Y0 Metered Data'!A22<>0,'Y0 Metered Data'!A22,0) -> Commercial 15 | B21: =IF('Y0 Metered Data'!B22<>0,'Y0 Metered Data'!B22,0) -> Commercial | C21: =IF('Y0 Calculated Revenue'!C21="","",'Y0 Calculated Revenue'!C21*(1-UseDecreaseFactorY1)) -> 83550 | D21: =IF('Y0 Calculated Revenue'!D21="","",'Y0 Calculated Revenue'!D21*(1-UseDecreaseFactorY1)) ->  | E21: =IF('Y0 Calculated Revenue'!E21="","",'Y0 Calculated Revenue'!E21*(1-UseDecreaseFactorY1)) ->  | F21: =IF('Y0 Calculated Revenue'!F21="","",'Y0 Calculated Revenue'!F21*(1-UseDecreaseFactorY1)) -> 87150 | G21: =IF('Y0 Calculated Revenue'!G21="","",'Y0 Calculated Revenue'!G21*(1-UseDecreaseFactorY1)) ->  | H21: =IF('Y0 Calculated Revenue'!H21="","",'Y0 Calculated Revenue'!H21*(1-UseDecreaseFactorY1)) ->  | I21: =IF('Y0 Calculated Revenue'!I21="","",'Y0 Calculated Revenue'!I21*(1-UseDecreaseFactorY1)) -> 64800 | J21: =IF('Y0 Calculated Revenue'!J21="","",'Y0 Calculated Revenue'!J21*(1-UseDecreaseFactorY1)) ->  | K21: =IF('Y0 Calculated Revenue'!K21="","",'Y0 Calculated Revenue'!K21*(1-UseDecreaseFactorY1)) ->  | L21: =IF('Y0 Calculated Revenue'!L21="","",'Y0 Calculated Revenue'!L21*(1-UseDecreaseFactorY1)) -> 63600 | M21: =IF('Y0 Calculated Revenue'!M21="","",'Y0 Calculated Revenue'!M21*(1-UseDecreaseFactorY1)) ->  | N21: =IF('Y0 Calculated Revenue'!N21="","",'Y0 Calculated Revenue'!N21*(1-UseDecreaseFactorY1)) ->  | O21: 473.31075 | R21: 493.70475 | U21: 367.092 | X21: 360.294 | AD21: 299100 | AL21: 1694.4015 | AP21: =IFERROR(IF(AND(#REF!<=AP$5,#REF!>AP$4),SUM($N21:$Y21),""),"") -> 
A22: =IF('Y0 Metered Data'!A23<>0,'Y0 Metered Data'!A23,0) -> Commercial 16 | B22: =IF('Y0 Metered Data'!B23<>0,'Y0 Metered Data'!B23,0) -> Commercial | C22: =IF('Y0 Calculated Revenue'!C22="","",'Y0 Calculated Revenue'!C22*(1-UseDecreaseFactorY1)) -> 1091250 | D22: =IF('Y0 Calculated Revenue'!D22="","",'Y0 Calculated Revenue'!D22*(1-UseDecreaseFactorY1)) ->  | E22: =IF('Y0 Calculated Revenue'!E22="","",'Y0 Calculated Revenue'!E22*(1-UseDecreaseFactorY1)) ->  | F22: =IF('Y0 Calculated Revenue'!F22="","",'Y0 Calculated Revenue'!F22*(1-UseDecreaseFactorY1)) -> 1161000 | G22: =IF('Y0 Calculated Revenue'!G22="","",'Y0 Calculated Revenue'!G22*(1-UseDecreaseFactorY1)) ->  | H22: =IF('Y0 Calculated Revenue'!H22="","",'Y0 Calculated Revenue'!H22*(1-UseDecreaseFactorY1)) ->  | I22: =IF('Y0 Calculated Revenue'!I22="","",'Y0 Calculated Revenue'!I22*(1-UseDecreaseFactorY1)) -> 1028400 | J22: =IF('Y0 Calculated Revenue'!J22="","",'Y0 Calculated Revenue'!J22*(1-UseDecreaseFactorY1)) ->  | K22: =IF('Y0 Calculated Revenue'!K22="","",'Y0 Calculated Revenue'!K22*(1-UseDecreaseFactorY1)) ->  | L22: =IF('Y0 Calculated Revenue'!L22="","",'Y0 Calculated Revenue'!L22*(1-UseDecreaseFactorY1)) -> 1169550 | M22: =IF('Y0 Calculated Revenue'!M22="","",'Y0 Calculated Revenue'!M22*(1-UseDecreaseFactorY1)) ->  | N22: =IF('Y0 Calculated Revenue'!N22="","",'Y0 Calculated Revenue'!N22*(1-UseDecreaseFactorY1)) ->  | O22: 6181.93125 | R22: 6577.065 | U22: 5825.886 | X22: 6625.50075 | AG22: 4450200 | AO22: 25210.383 | AP22: =IFERROR(IF(AND(#REF!<=AP$5,#REF!>AP$4),SUM($N22:$Y22),""),"") -> 
A23: =IF('Y0 Metered Data'!A24<>0,'Y0 Metered Data'!A24,0) -> Commercial 17 | B23: =IF('Y0 Metered Data'!B24<>0,'Y0 Metered Data'!B24,0) -> Commercial | C23: =IF('Y0 Calculated Revenue'!C23="","",'Y0 Calculated Revenue'!C23*(1-UseDecreaseFactorY1)) -> 30900 | D23: =IF('Y0 Calculated Revenue'!D23="","",'Y0 Calculated Revenue'!D23*(1-UseDecreaseFactorY1)) ->  | E23: =IF('Y0 Calculated Revenue'!E23="","",'Y0 Calculated Revenue'!E23*(1-UseDecreaseFactorY1)) ->  | F23: =IF('Y0 Calculated Revenue'!F23="","",'Y0 Calculated Revenue'!F23*(1-UseDecreaseFactorY1)) -> 28200 | G23: =IF('Y0 Calculated Revenue'!G23="","",'Y0 Calculated Revenue'!G23*(1-UseDecreaseFactorY1)) ->  | H23: =IF('Y0 Calculated Revenue'!H23="","",'Y0 Calculated Revenue'!H23*(1-UseDecreaseFactorY1)) ->  | I23: =IF('Y0 Calculated Revenue'!I23="","",'Y0 Calculated Revenue'!I23*(1-UseDecreaseFactorY1)) -> 38700 | J23: =IF('Y0 Calculated Revenue'!J23="","",'Y0 Calculated Revenue'!J23*(1-UseDecreaseFactorY1)) ->  | K23: =IF('Y0 Calculated Revenue'!K23="","",'Y0 Calculated Revenue'!K23*(1-UseDecreaseFactorY1)) ->  | L23: =IF('Y0 Calculated Revenue'!L23="","",'Y0 Calculated Revenue'!L23*(1-UseDecreaseFactorY1)) -> 47250 | M23: =IF('Y0 Calculated Revenue'!M23="","",'Y0 Calculated Revenue'!M23*(1-UseDecreaseFactorY1)) ->  | N23: =IF('Y0 Calculated Revenue'!N23="","",'Y0 Calculated Revenue'!N23*(1-UseDecreaseFactorY1)) ->  | O23: 175.0485 | R23: 159.753 | U23: 219.2355 | X23: 267.67125 | AC23: 145050 | AK23: 821.70825 | AP23: =IFERROR(IF(AND(#REF!<=AP$5,#REF!>AP$4),SUM($N23:$Y23),""),"") -> 
A24: =IF('Y0 Metered Data'!A25<>0,'Y0 Metered Data'!A25,0) -> Commercial 18 | B24: =IF('Y0 Metered Data'!B25<>0,'Y0 Metered Data'!B25,0) -> Commercial | C24: =IF('Y0 Calculated Revenue'!C24="","",'Y0 Calculated Revenue'!C24*(1-UseDecreaseFactorY1)) -> 55650 | D24: =IF('Y0 Calculated Revenue'!D24="","",'Y0 Calculated Revenue'!D24*(1-UseDecreaseFactorY1)) ->  | E24: =IF('Y0 Calculated Revenue'!E24="","",'Y0 Calculated Revenue'!E24*(1-UseDecreaseFactorY1)) ->  | F24: =IF('Y0 Calculated Revenue'!F24="","",'Y0 Calculated Revenue'!F24*(1-UseDecreaseFactorY1)) -> 48600 | G24: =IF('Y0 Calculated Revenue'!G24="","",'Y0 Calculated Revenue'!G24*(1-UseDecreaseFactorY1)) ->  | H24: =IF('Y0 Calculated Revenue'!H24="","",'Y0 Calculated Revenue'!H24*(1-UseDecreaseFactorY1)) ->  | I24: =IF('Y0 Calculated Revenue'!I24="","",'Y0 Calculated Revenue'!I24*(1-UseDecreaseFactorY1)) -> 40950 | J24: =IF('Y0 Calculated Revenue'!J24="","",'Y0 Calculated Revenue'!J24*(1-UseDecreaseFactorY1)) ->  | K24: =IF('Y0 Calculated Revenue'!K24="","",'Y0 Calculated Revenue'!K24*(1-UseDecreaseFactorY1)) ->  | L24: =IF('Y0 Calculated Revenue'!L24="","",'Y0 Calculated Revenue'!L24*(1-UseDecreaseFactorY1)) -> 80250 | M24: =IF('Y0 Calculated Revenue'!M24="","",'Y0 Calculated Revenue'!M24*(1-UseDecreaseFactorY1)) ->  | N24: =IF('Y0 Calculated Revenue'!N24="","",'Y0 Calculated Revenue'!N24*(1-UseDecreaseFactorY1)) ->  | O24: 315.25725 | R24: 275.319 | U24: 231.98175 | X24: 454.61625 | AC24: 225450 | AK24: 1277.17425 | AP24: =IFERROR(IF(AND(#REF!<=AP$5,#REF!>AP$4),SUM($N24:$Y24),""),"") -> 
A25: =IF('Y0 Metered Data'!A26<>0,'Y0 Metered Data'!A26,0) -> Commercial 19 | B25: =IF('Y0 Metered Data'!B26<>0,'Y0 Metered Data'!B26,0) -> Commercial | C25: =IF('Y0 Calculated Revenue'!C25="","",'Y0 Calculated Revenue'!C25*(1-UseDecreaseFactorY1)) -> 19200 | D25: =IF('Y0 Calculated Revenue'!D25="","",'Y0 Calculated Revenue'!D25*(1-UseDecreaseFactorY1)) ->  | E25: =IF('Y0 Calculated Revenue'!E25="","",'Y0 Calculated Revenue'!E25*(1-UseDecreaseFactorY1)) ->  | F25: =IF('Y0 Calculated Revenue'!F25="","",'Y0 Calculated Revenue'!F25*(1-UseDecreaseFactorY1)) -> 37800 | G25: =IF('Y0 Calculated Revenue'!G25="","",'Y0 Calculated Revenue'!G25*(1-UseDecreaseFactorY1)) ->  | H25: =IF('Y0 Calculated Revenue'!H25="","",'Y0 Calculated Revenue'!H25*(1-UseDecreaseFactorY1)) ->  | I25: =IF('Y0 Calculated Revenue'!I25="","",'Y0 Calculated Revenue'!I25*(1-UseDecreaseFactorY1)) -> 17400 | J25: =IF('Y0 Calculated Revenue'!J25="","",'Y0 Calculated Revenue'!J25*(1-UseDecreaseFactorY1)) ->  | K25: =IF('Y0 Calculated Revenue'!K25="","",'Y0 Calculated Revenue'!K25*(1-UseDecreaseFactorY1)) ->  | L25: =IF('Y0 Calculated Revenue'!L25="","",'Y0 Calculated Revenue'!L25*(1-UseDecreaseFactorY1)) -> 15000 | M25: =IF('Y0 Calculated Revenue'!M25="","",'Y0 Calculated Revenue'!M25*(1-UseDecreaseFactorY1)) ->  | N25: =IF('Y0 Calculated Revenue'!N25="","",'Y0 Calculated Revenue'!N25*(1-UseDecreaseFactorY1)) ->  | O25: 108.768 | R25: 214.137 | U25: 98.571 | X25: 84.975 | AB25: 89400 | AJ25: 506.451 | AP25: =IFERROR(IF(AND(#REF!<=AP$5,#REF!>AP$4),SUM($N25:$Y25),""),"") -> 
A26: =IF('Y0 Metered Data'!A27<>0,'Y0 Metered Data'!A27,0) -> Commercial 20 | B26: =IF('Y0 Metered Data'!B27<>0,'Y0 Metered Data'!B27,0) -> Commercial | C26: =IF('Y0 Calculated Revenue'!C26="","",'Y0 Calculated Revenue'!C26*(1-UseDecreaseFactorY1)) -> 15000 | D26: =IF('Y0 Calculated Revenue'!D26="","",'Y0 Calculated Revenue'!D26*(1-UseDecreaseFactorY1)) ->  | E26: =IF('Y0 Calculated Revenue'!E26="","",'Y0 Calculated Revenue'!E26*(1-UseDecreaseFactorY1)) ->  | F26: =IF('Y0 Calculated Revenue'!F26="","",'Y0 Calculated Revenue'!F26*(1-UseDecreaseFactorY1)) -> 15000 | G26: =IF('Y0 Calculated Revenue'!G26="","",'Y0 Calculated Revenue'!G26*(1-UseDecreaseFactorY1)) ->  | H26: =IF('Y0 Calculated Revenue'!H26="","",'Y0 Calculated Revenue'!H26*(1-UseDecreaseFactorY1)) ->  | I26: =IF('Y0 Calculated Revenue'!I26="","",'Y0 Calculated Revenue'!I26*(1-UseDecreaseFactorY1)) -> 15000 | J26: =IF('Y0 Calculated Revenue'!J26="","",'Y0 Calculated Revenue'!J26*(1-UseDecreaseFactorY1)) ->  | K26: =IF('Y0 Calculated Revenue'!K26="","",'Y0 Calculated Revenue'!K26*(1-UseDecreaseFactorY1)) ->  | L26: =IF('Y0 Calculated Revenue'!L26="","",'Y0 Calculated Revenue'!L26*(1-UseDecreaseFactorY1)) -> 15000 | M26: =IF('Y0 Calculated Revenue'!M26="","",'Y0 Calculated Revenue'!M26*(1-UseDecreaseFactorY1)) ->  | N26: =IF('Y0 Calculated Revenue'!N26="","",'Y0 Calculated Revenue'!N26*(1-UseDecreaseFactorY1)) ->  | O26: 84.975 | R26: 84.975 | U26: 84.975 | X26: 84.975 | AA26: 60000 | AI26: 339.9 | AP26: =IFERROR(IF(AND(#REF!<=AP$5,#REF!>AP$4),SUM($N26:$Y26),""),"") -> 
A27: =IF('Y0 Metered Data'!A28<>0,'Y0 Metered Data'!A28,0) -> Commercial 21 | B27: =IF('Y0 Metered Data'!B28<>0,'Y0 Metered Data'!B28,0) -> Commercial | C27: =IF('Y0 Calculated Revenue'!C27="","",'Y0 Calculated Revenue'!C27*(1-UseDecreaseFactorY1)) -> 84900 | D27: =IF('Y0 Calculated Revenue'!D27="","",'Y0 Calculated Revenue'!D27*(1-UseDecreaseFactorY1)) ->  | E27: =IF('Y0 Calculated Revenue'!E27="","",'Y0 Calculated Revenue'!E27*(1-UseDecreaseFactorY1)) ->  | F27: =IF('Y0 Calculated Revenue'!F27="","",'Y0 Calculated Revenue'!F27*(1-UseDecreaseFactorY1)) -> 84300 | G27: =IF('Y0 Calculated Revenue'!G27="","",'Y0 Calculated Revenue'!G27*(1-UseDecreaseFactorY1)) ->  | H27: =IF('Y0 Calculated Revenue'!H27="","",'Y0 Calculated Revenue'!H27*(1-UseDecreaseFactorY1)) ->  | I27: =IF('Y0 Calculated Revenue'!I27="","",'Y0 Calculated Revenue'!I27*(1-UseDecreaseFactorY1)) -> 72750 | J27: =IF('Y0 Calculated Revenue'!J27="","",'Y0 Calculated Revenue'!J27*(1-UseDecreaseFactorY1)) ->  | K27: =IF('Y0 Calculated Revenue'!K27="","",'Y0 Calculated Revenue'!K27*(1-UseDecreaseFactorY1)) ->  | L27: =IF('Y0 Calculated Revenue'!L27="","",'Y0 Calculated Revenue'!L27*(1-UseDecreaseFactorY1)) -> 69300 | M27: =IF('Y0 Calculated Revenue'!M27="","",'Y0 Calculated Revenue'!M27*(1-UseDecreaseFactorY1)) ->  | N27: =IF('Y0 Calculated Revenue'!N27="","",'Y0 Calculated Revenue'!N27*(1-UseDecreaseFactorY1)) ->  | O27: 480.9585 | R27: 477.5595 | U27: 412.12875 | X27: 392.5845 | AD27: 311250 | AL27: 1763.23125 | AP27: =IFERROR(IF(AND(#REF!<=AP$5,#REF!>AP$4),SUM($N27:$Y27),""),"") -> 
A28: =IF('Y0 Metered Data'!A29<>0,'Y0 Metered Data'!A29,0) -> Commercial 22 | B28: =IF('Y0 Metered Data'!B29<>0,'Y0 Metered Data'!B29,0) -> Commercial | C28: =IF('Y0 Calculated Revenue'!C28="","",'Y0 Calculated Revenue'!C28*(1-UseDecreaseFactorY1)) -> 15000 | D28: =IF('Y0 Calculated Revenue'!D28="","",'Y0 Calculated Revenue'!D28*(1-UseDecreaseFactorY1)) ->  | E28: =IF('Y0 Calculated Revenue'!E28="","",'Y0 Calculated Revenue'!E28*(1-UseDecreaseFactorY1)) ->  | F28: =IF('Y0 Calculated Revenue'!F28="","",'Y0 Calculated Revenue'!F28*(1-UseDecreaseFactorY1)) -> 15000 | G28: =IF('Y0 Calculated Revenue'!G28="","",'Y0 Calculated Revenue'!G28*(1-UseDecreaseFactorY1)) ->  | H28: =IF('Y0 Calculated Revenue'!H28="","",'Y0 Calculated Revenue'!H28*(1-UseDecreaseFactorY1)) ->  | I28: =IF('Y0 Calculated Revenue'!I28="","",'Y0 Calculated Revenue'!I28*(1-UseDecreaseFactorY1)) -> 15000 | J28: =IF('Y0 Calculated Revenue'!J28="","",'Y0 Calculated Revenue'!J28*(1-UseDecreaseFactorY1)) ->  | K28: =IF('Y0 Calculated Revenue'!K28="","",'Y0 Calculated Revenue'!K28*(1-UseDecreaseFactorY1)) ->  | L28: =IF('Y0 Calculated Revenue'!L28="","",'Y0 Calculated Revenue'!L28*(1-UseDecreaseFactorY1)) -> 15000 | M28: =IF('Y0 Calculated Revenue'!M28="","",'Y0 Calculated Revenue'!M28*(1-UseDecreaseFactorY1)) ->  | N28: =IF('Y0 Calculated Revenue'!N28="","",'Y0 Calculated Revenue'!N28*(1-UseDecreaseFactorY1)) ->  | O28: 84.975 | R28: 84.975 | U28: 84.975 | X28: 84.975 | AA28: 60000 | AI28: 339.9 | AP28: =IFERROR(IF(AND(#REF!<=AP$5,#REF!>AP$4),SUM($N28:$Y28),""),"") -> 
A29: =IF('Y0 Metered Data'!A30<>0,'Y0 Metered Data'!A30,0) -> Commercial 23 | B29: =IF('Y0 Metered Data'!B30<>0,'Y0 Metered Data'!B30,0) -> Commercial | C29: =IF('Y0 Calculated Revenue'!C29="","",'Y0 Calculated Revenue'!C29*(1-UseDecreaseFactorY1)) -> 30600 | D29: =IF('Y0 Calculated Revenue'!D29="","",'Y0 Calculated Revenue'!D29*(1-UseDecreaseFactorY1)) ->  | E29: =IF('Y0 Calculated Revenue'!E29="","",'Y0 Calculated Revenue'!E29*(1-UseDecreaseFactorY1)) ->  | F29: =IF('Y0 Calculated Revenue'!F29="","",'Y0 Calculated Revenue'!F29*(1-UseDecreaseFactorY1)) -> 28800 | G29: =IF('Y0 Calculated Revenue'!G29="","",'Y0 Calculated Revenue'!G29*(1-UseDecreaseFactorY1)) ->  | H29: =IF('Y0 Calculated Revenue'!H29="","",'Y0 Calculated Revenue'!H29*(1-UseDecreaseFactorY1)) ->  | I29: =IF('Y0 Calculated Revenue'!I29="","",'Y0 Calculated Revenue'!I29*(1-UseDecreaseFactorY1)) -> 26100 | J29: =IF('Y0 Calculated Revenue'!J29="","",'Y0 Calculated Revenue'!J29*(1-UseDecreaseFactorY1)) ->  | K29: =IF('Y0 Calculated Revenue'!K29="","",'Y0 Calculated Revenue'!K29*(1-UseDecreaseFactorY1)) ->  | L29: =IF('Y0 Calculated Revenue'!L29="","",'Y0 Calculated Revenue'!L29*(1-UseDecreaseFactorY1)) -> 27000 | M29: =IF('Y0 Calculated Revenue'!M29="","",'Y0 Calculated Revenue'!M29*(1-UseDecreaseFactorY1)) ->  | N29: =IF('Y0 Calculated Revenue'!N29="","",'Y0 Calculated Revenue'!N29*(1-UseDecreaseFactorY1)) ->  | O29: 173.349 | R29: 163.152 | U29: 147.8565 | X29: 152.955 | AB29: 112500 | AJ29: 637.3125 | AP29: =IFERROR(IF(AND(#REF!<=AP$5,#REF!>AP$4),SUM($N29:$Y29),""),"") -> 
A30: =IF('Y0 Metered Data'!A31<>0,'Y0 Metered Data'!A31,0) -> Commercial 24 | B30: =IF('Y0 Metered Data'!B31<>0,'Y0 Metered Data'!B31,0) -> Commercial | C30: =IF('Y0 Calculated Revenue'!C30="","",'Y0 Calculated Revenue'!C30*(1-UseDecreaseFactorY1)) -> 60000 | D30: =IF('Y0 Calculated Revenue'!D30="","",'Y0 Calculated Revenue'!D30*(1-UseDecreaseFactorY1)) ->  | E30: =IF('Y0 Calculated Revenue'!E30="","",'Y0 Calculated Revenue'!E30*(1-UseDecreaseFactorY1)) ->  | F30: =IF('Y0 Calculated Revenue'!F30="","",'Y0 Calculated Revenue'!F30*(1-UseDecreaseFactorY1)) -> 72450 | G30: =IF('Y0 Calculated Revenue'!G30="","",'Y0 Calculated Revenue'!G30*(1-UseDecreaseFactorY1)) ->  | H30: =IF('Y0 Calculated Revenue'!H30="","",'Y0 Calculated Revenue'!H30*(1-UseDecreaseFactorY1)) ->  | I30: =IF('Y0 Calculated Revenue'!I30="","",'Y0 Calculated Revenue'!I30*(1-UseDecreaseFactorY1)) -> 54900 | J30: =IF('Y0 Calculated Revenue'!J30="","",'Y0 Calculated Revenue'!J30*(1-UseDecreaseFactorY1)) ->  | K30: =IF('Y0 Calculated Revenue'!K30="","",'Y0 Calculated Revenue'!K30*(1-UseDecreaseFactorY1)) ->  | L30: =IF('Y0 Calculated Revenue'!L30="","",'Y0 Calculated Revenue'!L30*(1-UseDecreaseFactorY1)) -> 46500 | M30: =IF('Y0 Calculated Revenue'!M30="","",'Y0 Calculated Revenue'!M30*(1-UseDecreaseFactorY1)) ->  | N30: =IF('Y0 Calculated Revenue'!N30="","",'Y0 Calculated Revenue'!N30*(1-UseDecreaseFactorY1)) ->  | O30: 339.9 | R30: 410.42925 | U30: 311.0085 | X30: 263.4225 | AC30: 233850 | AK30: 1324.76025 | AP30: =IFERROR(IF(AND(#REF!<=AP$5,#REF!>AP$4),SUM($N30:$Y30),""),"") -> 
A31: =IF('Y0 Metered Data'!A32<>0,'Y0 Metered Data'!A32,0) -> Commercial 25 | B31: =IF('Y0 Metered Data'!B32<>0,'Y0 Metered Data'!B32,0) -> Commercial | C31: =IF('Y0 Calculated Revenue'!C31="","",'Y0 Calculated Revenue'!C31*(1-UseDecreaseFactorY1)) -> 15000 | D31: =IF('Y0 Calculated Revenue'!D31="","",'Y0 Calculated Revenue'!D31*(1-UseDecreaseFactorY1)) ->  | E31: =IF('Y0 Calculated Revenue'!E31="","",'Y0 Calculated Revenue'!E31*(1-UseDecreaseFactorY1)) ->  | F31: =IF('Y0 Calculated Revenue'!F31="","",'Y0 Calculated Revenue'!F31*(1-UseDecreaseFactorY1)) -> 15000 | G31: =IF('Y0 Calculated Revenue'!G31="","",'Y0 Calculated Revenue'!G31*(1-UseDecreaseFactorY1)) ->  | H31: =IF('Y0 Calculated Revenue'!H31="","",'Y0 Calculated Revenue'!H31*(1-UseDecreaseFactorY1)) ->  | I31: =IF('Y0 Calculated Revenue'!I31="","",'Y0 Calculated Revenue'!I31*(1-UseDecreaseFactorY1)) -> 15000 | J31: =IF('Y0 Calculated Revenue'!J31="","",'Y0 Calculated Revenue'!J31*(1-UseDecreaseFactorY1)) ->  | K31: =IF('Y0 Calculated Revenue'!K31="","",'Y0 Calculated Revenue'!K31*(1-UseDecreaseFactorY1)) ->  | L31: =IF('Y0 Calculated Revenue'!L31="","",'Y0 Calculated Revenue'!L31*(1-UseDecreaseFactorY1)) -> 15000 | M31: =IF('Y0 Calculated Revenue'!M31="","",'Y0 Calculated Revenue'!M31*(1-UseDecreaseFactorY1)) ->  | N31: =IF('Y0 Calculated Revenue'!N31="","",'Y0 Calculated Revenue'!N31*(1-UseDecreaseFactorY1)) ->  | O31: 84.975 | R31: 84.975 | U31: 84.975 | X31: 84.975 | AA31: 60000 | AI31: 339.9 | AP31: =IFERROR(IF(AND(#REF!<=AP$5,#REF!>AP$4),SUM($N31:$Y31),""),"") -> 
A32: =IF('Y0 Metered Data'!A33<>0,'Y0 Metered Data'!A33,0) -> Commercial 26 | B32: =IF('Y0 Metered Data'!B33<>0,'Y0 Metered Data'!B33,0) -> Commercial | C32: =IF('Y0 Calculated Revenue'!C32="","",'Y0 Calculated Revenue'!C32*(1-UseDecreaseFactorY1)) -> 235650 | D32: =IF('Y0 Calculated Revenue'!D32="","",'Y0 Calculated Revenue'!D32*(1-UseDecreaseFactorY1)) ->  | E32: =IF('Y0 Calculated Revenue'!E32="","",'Y0 Calculated Revenue'!E32*(1-UseDecreaseFactorY1)) ->  | F32: =IF('Y0 Calculated Revenue'!F32="","",'Y0 Calculated Revenue'!F32*(1-UseDecreaseFactorY1)) -> 409950 | G32: =IF('Y0 Calculated Revenue'!G32="","",'Y0 Calculated Revenue'!G32*(1-UseDecreaseFactorY1)) ->  | H32: =IF('Y0 Calculated Revenue'!H32="","",'Y0 Calculated Revenue'!H32*(1-UseDecreaseFactorY1)) ->  | I32: =IF('Y0 Calculated Revenue'!I32="","",'Y0 Calculated Revenue'!I32*(1-UseDecreaseFactorY1)) -> 400650 | J32: =IF('Y0 Calculated Revenue'!J32="","",'Y0 Calculated Revenue'!J32*(1-UseDecreaseFactorY1)) ->  | K32: =IF('Y0 Calculated Revenue'!K32="","",'Y0 Calculated Revenue'!K32*(1-UseDecreaseFactorY1)) ->  | L32: =IF('Y0 Calculated Revenue'!L32="","",'Y0 Calculated Revenue'!L32*(1-UseDecreaseFactorY1)) -> 444600 | M32: =IF('Y0 Calculated Revenue'!M32="","",'Y0 Calculated Revenue'!M32*(1-UseDecreaseFactorY1)) ->  | N32: =IF('Y0 Calculated Revenue'!N32="","",'Y0 Calculated Revenue'!N32*(1-UseDecreaseFactorY1)) ->  | O32: 1334.95725 | R32: 2322.36675 | U32: 2269.68225 | X32: 2518.659 | AF32: 1490850 | AN32: 8445.66525 | AP32: =IFERROR(IF(AND(#REF!<=AP$5,#REF!>AP$4),SUM($N32:$Y32),""),"") -> 
A33: =IF('Y0 Metered Data'!A34<>0,'Y0 Metered Data'!A34,0) -> Commercial 27 | B33: =IF('Y0 Metered Data'!B34<>0,'Y0 Metered Data'!B34,0) -> Commercial | C33: =IF('Y0 Calculated Revenue'!C33="","",'Y0 Calculated Revenue'!C33*(1-UseDecreaseFactorY1)) -> 32550 | D33: =IF('Y0 Calculated Revenue'!D33="","",'Y0 Calculated Revenue'!D33*(1-UseDecreaseFactorY1)) ->  | E33: =IF('Y0 Calculated Revenue'!E33="","",'Y0 Calculated Revenue'!E33*(1-UseDecreaseFactorY1)) ->  | F33: =IF('Y0 Calculated Revenue'!F33="","",'Y0 Calculated Revenue'!F33*(1-UseDecreaseFactorY1)) -> 28200 | G33: =IF('Y0 Calculated Revenue'!G33="","",'Y0 Calculated Revenue'!G33*(1-UseDecreaseFactorY1)) ->  | H33: =IF('Y0 Calculated Revenue'!H33="","",'Y0 Calculated Revenue'!H33*(1-UseDecreaseFactorY1)) ->  | I33: =IF('Y0 Calculated Revenue'!I33="","",'Y0 Calculated Revenue'!I33*(1-UseDecreaseFactorY1)) -> 31200 | J33: =IF('Y0 Calculated Revenue'!J33="","",'Y0 Calculated Revenue'!J33*(1-UseDecreaseFactorY1)) ->  | K33: =IF('Y0 Calculated Revenue'!K33="","",'Y0 Calculated Revenue'!K33*(1-UseDecreaseFactorY1)) ->  | L33: =IF('Y0 Calculated Revenue'!L33="","",'Y0 Calculated Revenue'!L33*(1-UseDecreaseFactorY1)) -> 43800 | M33: =IF('Y0 Calculated Revenue'!M33="","",'Y0 Calculated Revenue'!M33*(1-UseDecreaseFactorY1)) ->  | N33: =IF('Y0 Calculated Revenue'!N33="","",'Y0 Calculated Revenue'!N33*(1-UseDecreaseFactorY1)) ->  | O33: 184.39575 | R33: 159.753 | U33: 176.748 | X33: 248.127 | AC33: 135750 | AK33: 769.02375 | AP33: =IFERROR(IF(AND(#REF!<=AP$5,#REF!>AP$4),SUM($N33:$Y33),""),"") -> 
A34: =IF('Y0 Metered Data'!A35<>0,'Y0 Metered Data'!A35,0) -> Commercial 28 | B34: =IF('Y0 Metered Data'!B35<>0,'Y0 Metered Data'!B35,0) -> Commercial | C34: =IF('Y0 Calculated Revenue'!C34="","",'Y0 Calculated Revenue'!C34*(1-UseDecreaseFactorY1)) -> 15000 | D34: =IF('Y0 Calculated Revenue'!D34="","",'Y0 Calculated Revenue'!D34*(1-UseDecreaseFactorY1)) ->  | E34: =IF('Y0 Calculated Revenue'!E34="","",'Y0 Calculated Revenue'!E34*(1-UseDecreaseFactorY1)) ->  | F34: =IF('Y0 Calculated Revenue'!F34="","",'Y0 Calculated Revenue'!F34*(1-UseDecreaseFactorY1)) -> 15000 | G34: =IF('Y0 Calculated Revenue'!G34="","",'Y0 Calculated Revenue'!G34*(1-UseDecreaseFactorY1)) ->  | H34: =IF('Y0 Calculated Revenue'!H34="","",'Y0 Calculated Revenue'!H34*(1-UseDecreaseFactorY1)) ->  | I34: =IF('Y0 Calculated Revenue'!I34="","",'Y0 Calculated Revenue'!I34*(1-UseDecreaseFactorY1)) -> 15000 | J34: =IF('Y0 Calculated Revenue'!J34="","",'Y0 Calculated Revenue'!J34*(1-UseDecreaseFactorY1)) ->  | K34: =IF('Y0 Calculated Revenue'!K34="","",'Y0 Calculated Revenue'!K34*(1-UseDecreaseFactorY1)) ->  | L34: =IF('Y0 Calculated Revenue'!L34="","",'Y0 Calculated Revenue'!L34*(1-UseDecreaseFactorY1)) -> 15000 | M34: =IF('Y0 Calculated Revenue'!M34="","",'Y0 Calculated Revenue'!M34*(1-UseDecreaseFactorY1)) ->  | N34: =IF('Y0 Calculated Revenue'!N34="","",'Y0 Calculated Revenue'!N34*(1-UseDecreaseFactorY1)) ->  | O34: 84.975 | R34: 84.975 | U34: 84.975 | X34: 84.975 | AA34: 60000 | AI34: 339.9 | AP34: =IFERROR(IF(AND(#REF!<=AP$5,#REF!>AP$4),SUM($N34:$Y34),""),"") -> 
A35: =IF('Y0 Metered Data'!A36<>0,'Y0 Metered Data'!A36,0) -> Commercial 29 | B35: =IF('Y0 Metered Data'!B36<>0,'Y0 Metered Data'!B36,0) -> Commercial | C35: =IF('Y0 Calculated Revenue'!C35="","",'Y0 Calculated Revenue'!C35*(1-UseDecreaseFactorY1)) -> 15000 | D35: =IF('Y0 Calculated Revenue'!D35="","",'Y0 Calculated Revenue'!D35*(1-UseDecreaseFactorY1)) ->  | E35: =IF('Y0 Calculated Revenue'!E35="","",'Y0 Calculated Revenue'!E35*(1-UseDecreaseFactorY1)) ->  | F35: =IF('Y0 Calculated Revenue'!F35="","",'Y0 Calculated Revenue'!F35*(1-UseDecreaseFactorY1)) -> 15000 | G35: =IF('Y0 Calculated Revenue'!G35="","",'Y0 Calculated Revenue'!G35*(1-UseDecreaseFactorY1)) ->  | H35: =IF('Y0 Calculated Revenue'!H35="","",'Y0 Calculated Revenue'!H35*(1-UseDecreaseFactorY1)) ->  | I35: =IF('Y0 Calculated Revenue'!I35="","",'Y0 Calculated Revenue'!I35*(1-UseDecreaseFactorY1)) -> 15000 | J35: =IF('Y0 Calculated Revenue'!J35="","",'Y0 Calculated Revenue'!J35*(1-UseDecreaseFactorY1)) ->  | K35: =IF('Y0 Calculated Revenue'!K35="","",'Y0 Calculated Revenue'!K35*(1-UseDecreaseFactorY1)) ->  | L35: =IF('Y0 Calculated Revenue'!L35="","",'Y0 Calculated Revenue'!L35*(1-UseDecreaseFactorY1)) -> 15000 | M35: =IF('Y0 Calculated Revenue'!M35="","",'Y0 Calculated Revenue'!M35*(1-UseDecreaseFactorY1)) ->  | N35: =IF('Y0 Calculated Revenue'!N35="","",'Y0 Calculated Revenue'!N35*(1-UseDecreaseFactorY1)) ->  | O35: 84.975 | R35: 84.975 | U35: 84.975 | X35: 84.975 | AA35: 60000 | AI35: 339.9 | AP35: =IFERROR(IF(AND(#REF!<=AP$5,#REF!>AP$4),SUM($N35:$Y35),""),"") -> 
A36: =IF('Y0 Metered Data'!A37<>0,'Y0 Metered Data'!A37,0) -> Commercial 30 | B36: =IF('Y0 Metered Data'!B37<>0,'Y0 Metered Data'!B37,0) -> Commercial | C36: =IF('Y0 Calculated Revenue'!C36="","",'Y0 Calculated Revenue'!C36*(1-UseDecreaseFactorY1)) -> 15000 | D36: =IF('Y0 Calculated Revenue'!D36="","",'Y0 Calculated Revenue'!D36*(1-UseDecreaseFactorY1)) ->  | E36: =IF('Y0 Calculated Revenue'!E36="","",'Y0 Calculated Revenue'!E36*(1-UseDecreaseFactorY1)) ->  | F36: =IF('Y0 Calculated Revenue'!F36="","",'Y0 Calculated Revenue'!F36*(1-UseDecreaseFactorY1)) -> 15000 | G36: =IF('Y0 Calculated Revenue'!G36="","",'Y0 Calculated Revenue'!G36*(1-UseDecreaseFactorY1)) ->  | H36: =IF('Y0 Calculated Revenue'!H36="","",'Y0 Calculated Revenue'!H36*(1-UseDecreaseFactorY1)) ->  | I36: =IF('Y0 Calculated Revenue'!I36="","",'Y0 Calculated Revenue'!I36*(1-UseDecreaseFactorY1)) -> 15000 | J36: =IF('Y0 Calculated Revenue'!J36="","",'Y0 Calculated Revenue'!J36*(1-UseDecreaseFactorY1)) ->  | K36: =IF('Y0 Calculated Revenue'!K36="","",'Y0 Calculated Revenue'!K36*(1-UseDecreaseFactorY1)) ->  | L36: =IF('Y0 Calculated Revenue'!L36="","",'Y0 Calculated Revenue'!L36*(1-UseDecreaseFactorY1)) -> 15000 | M36: =IF('Y0 Calculated Revenue'!M36="","",'Y0 Calculated Revenue'!M36*(1-UseDecreaseFactorY1)) ->  | N36: =IF('Y0 Calculated Revenue'!N36="","",'Y0 Calculated Revenue'!N36*(1-UseDecreaseFactorY1)) ->  | O36: 84.975 | R36: 84.975 | U36: 84.975 | X36: 84.975 | AA36: 60000 | AI36: 339.9 | AP36: =IFERROR(IF(AND(#REF!<=AP$5,#REF!>AP$4),SUM($N36:$Y36),""),"") -> 
A37: =IF('Y0 Metered Data'!A38<>0,'Y0 Metered Data'!A38,0) -> Commercial 31 | B37: =IF('Y0 Metered Data'!B38<>0,'Y0 Metered Data'!B38,0) -> Commercial | C37: =IF('Y0 Calculated Revenue'!C37="","",'Y0 Calculated Revenue'!C37*(1-UseDecreaseFactorY1)) -> 15000 | D37: =IF('Y0 Calculated Revenue'!D37="","",'Y0 Calculated Revenue'!D37*(1-UseDecreaseFactorY1)) ->  | E37: =IF('Y0 Calculated Revenue'!E37="","",'Y0 Calculated Revenue'!E37*(1-UseDecreaseFactorY1)) ->  | F37: =IF('Y0 Calculated Revenue'!F37="","",'Y0 Calculated Revenue'!F37*(1-UseDecreaseFactorY1)) -> 15000 | G37: =IF('Y0 Calculated Revenue'!G37="","",'Y0 Calculated Revenue'!G37*(1-UseDecreaseFactorY1)) ->  | H37: =IF('Y0 Calculated Revenue'!H37="","",'Y0 Calculated Revenue'!H37*(1-UseDecreaseFactorY1)) ->  | I37: =IF('Y0 Calculated Revenue'!I37="","",'Y0 Calculated Revenue'!I37*(1-UseDecreaseFactorY1)) -> 15000 | J37: =IF('Y0 Calculated Revenue'!J37="","",'Y0 Calculated Revenue'!J37*(1-UseDecreaseFactorY1)) ->  | K37: =IF('Y0 Calculated Revenue'!K37="","",'Y0 Calculated Revenue'!K37*(1-UseDecreaseFactorY1)) ->  | L37: =IF('Y0 Calculated Revenue'!L37="","",'Y0 Calculated Revenue'!L37*(1-UseDecreaseFactorY1)) -> 15000 | M37: =IF('Y0 Calculated Revenue'!M37="","",'Y0 Calculated Revenue'!M37*(1-UseDecreaseFactorY1)) ->  | N37: =IF('Y0 Calculated Revenue'!N37="","",'Y0 Calculated Revenue'!N37*(1-UseDecreaseFactorY1)) ->  | O37: 84.975 | R37: 84.975 | U37: 84.975 | X37: 84.975 | AA37: 60000 | AI37: 339.9 | AP37: =IFERROR(IF(AND(#REF!<=AP$5,#REF!>AP$4),SUM($N37:$Y37),""),"") -> 
A38: =IF('Y0 Metered Data'!A39<>0,'Y0 Metered Data'!A39,0) -> Commercial 32 | B38: =IF('Y0 Metered Data'!B39<>0,'Y0 Metered Data'!B39,0) -> Commercial | C38: =IF('Y0 Calculated Revenue'!C38="","",'Y0 Calculated Revenue'!C38*(1-UseDecreaseFactorY1)) -> 226500 | D38: =IF('Y0 Calculated Revenue'!D38="","",'Y0 Calculated Revenue'!D38*(1-UseDecreaseFactorY1)) ->  | E38: =IF('Y0 Calculated Revenue'!E38="","",'Y0 Calculated Revenue'!E38*(1-UseDecreaseFactorY1)) ->  | F38: =IF('Y0 Calculated Revenue'!F38="","",'Y0 Calculated Revenue'!F38*(1-UseDecreaseFactorY1)) -> 215700 | G38: =IF('Y0 Calculated Revenue'!G38="","",'Y0 Calculated Revenue'!G38*(1-UseDecreaseFactorY1)) ->  | H38: =IF('Y0 Calculated Revenue'!H38="","",'Y0 Calculated Revenue'!H38*(1-UseDecreaseFactorY1)) ->  | I38: =IF('Y0 Calculated Revenue'!I38="","",'Y0 Calculated Revenue'!I38*(1-UseDecreaseFactorY1)) -> 170250 | J38: =IF('Y0 Calculated Revenue'!J38="","",'Y0 Calculated Revenue'!J38*(1-UseDecreaseFactorY1)) ->  | K38: =IF('Y0 Calculated Revenue'!K38="","",'Y0 Calculated Revenue'!K38*(1-UseDecreaseFactorY1)) ->  | L38: =IF('Y0 Calculated Revenue'!L38="","",'Y0 Calculated Revenue'!L38*(1-UseDecreaseFactorY1)) -> 198300 | M38: =IF('Y0 Calculated Revenue'!M38="","",'Y0 Calculated Revenue'!M38*(1-UseDecreaseFactorY1)) ->  | N38: =IF('Y0 Calculated Revenue'!N38="","",'Y0 Calculated Revenue'!N38*(1-UseDecreaseFactorY1)) ->  | O38: 1283.1225 | R38: 1221.9405 | U38: 964.46625 | X38: 1123.3695 | AF38: 810750 | AN38: 4592.89875 | AP38: =IFERROR(IF(AND(#REF!<=AP$5,#REF!>AP$4),SUM($N38:$Y38),""),"") -> 
A39: =IF('Y0 Metered Data'!A40<>0,'Y0 Metered Data'!A40,0) -> Commercial 33 | B39: =IF('Y0 Metered Data'!B40<>0,'Y0 Metered Data'!B40,0) -> Commercial | C39: =IF('Y0 Calculated Revenue'!C39="","",'Y0 Calculated Revenue'!C39*(1-UseDecreaseFactorY1)) -> 15000 | D39: =IF('Y0 Calculated Revenue'!D39="","",'Y0 Calculated Revenue'!D39*(1-UseDecreaseFactorY1)) ->  | E39: =IF('Y0 Calculated Revenue'!E39="","",'Y0 Calculated Revenue'!E39*(1-UseDecreaseFactorY1)) ->  | F39: =IF('Y0 Calculated Revenue'!F39="","",'Y0 Calculated Revenue'!F39*(1-UseDecreaseFactorY1)) -> 15000 | G39: =IF('Y0 Calculated Revenue'!G39="","",'Y0 Calculated Revenue'!G39*(1-UseDecreaseFactorY1)) ->  | H39: =IF('Y0 Calculated Revenue'!H39="","",'Y0 Calculated Revenue'!H39*(1-UseDecreaseFactorY1)) ->  | I39: =IF('Y0 Calculated Revenue'!I39="","",'Y0 Calculated Revenue'!I39*(1-UseDecreaseFactorY1)) -> 15000 | J39: =IF('Y0 Calculated Revenue'!J39="","",'Y0 Calculated Revenue'!J39*(1-UseDecreaseFactorY1)) ->  | K39: =IF('Y0 Calculated Revenue'!K39="","",'Y0 Calculated Revenue'!K39*(1-UseDecreaseFactorY1)) ->  | L39: =IF('Y0 Calculated Revenue'!L39="","",'Y0 Calculated Revenue'!L39*(1-UseDecreaseFactorY1)) -> 15000 | M39: =IF('Y0 Calculated Revenue'!M39="","",'Y0 Calculated Revenue'!M39*(1-UseDecreaseFactorY1)) ->  | N39: =IF('Y0 Calculated Revenue'!N39="","",'Y0 Calculated Revenue'!N39*(1-UseDecreaseFactorY1)) ->  | O39: 84.975 | R39: 84.975 | U39: 84.975 | X39: 84.975 | AA39: 60000 | AI39: 339.9 | AP39: =IFERROR(IF(AND(#REF!<=AP$5,#REF!>AP$4),SUM($N39:$Y39),""),"") -> 
A40: =IF('Y0 Metered Data'!A41<>0,'Y0 Metered Data'!A41,0) -> Commercial 34 | B40: =IF('Y0 Metered Data'!B41<>0,'Y0 Metered Data'!B41,0) -> Commercial | C40: =IF('Y0 Calculated Revenue'!C40="","",'Y0 Calculated Revenue'!C40*(1-UseDecreaseFactorY1)) -> 34800 | D40: =IF('Y0 Calculated Revenue'!D40="","",'Y0 Calculated Revenue'!D40*(1-UseDecreaseFactorY1)) ->  | E40: =IF('Y0 Calculated Revenue'!E40="","",'Y0 Calculated Revenue'!E40*(1-UseDecreaseFactorY1)) ->  | F40: =IF('Y0 Calculated Revenue'!F40="","",'Y0 Calculated Revenue'!F40*(1-UseDecreaseFactorY1)) -> 34500 | G40: =IF('Y0 Calculated Revenue'!G40="","",'Y0 Calculated Revenue'!G40*(1-UseDecreaseFactorY1)) ->  | H40: =IF('Y0 Calculated Revenue'!H40="","",'Y0 Calculated Revenue'!H40*(1-UseDecreaseFactorY1)) ->  | I40: =IF('Y0 Calculated Revenue'!I40="","",'Y0 Calculated Revenue'!I40*(1-UseDecreaseFactorY1)) -> 29850 | J40: =IF('Y0 Calculated Revenue'!J40="","",'Y0 Calculated Revenue'!J40*(1-UseDecreaseFactorY1)) ->  | K40: =IF('Y0 Calculated Revenue'!K40="","",'Y0 Calculated Revenue'!K40*(1-UseDecreaseFactorY1)) ->  | L40: =IF('Y0 Calculated Revenue'!L40="","",'Y0 Calculated Revenue'!L40*(1-UseDecreaseFactorY1)) -> 31650 | M40: =IF('Y0 Calculated Revenue'!M40="","",'Y0 Calculated Revenue'!M40*(1-UseDecreaseFactorY1)) ->  | N40: =IF('Y0 Calculated Revenue'!N40="","",'Y0 Calculated Revenue'!N40*(1-UseDecreaseFactorY1)) ->  | O40: 197.142 | R40: 195.4425 | U40: 169.10025 | X40: 179.29725 | AC40: 130800 | AK40: 740.982 | AP40: =IFERROR(IF(AND(#REF!<=AP$5,#REF!>AP$4),SUM($N40:$Y40),""),"") -> 
A41: =IF('Y0 Metered Data'!A42<>0,'Y0 Metered Data'!A42,0) -> Commercial 35 | B41: =IF('Y0 Metered Data'!B42<>0,'Y0 Metered Data'!B42,0) -> Commercial | C41: =IF('Y0 Calculated Revenue'!C41="","",'Y0 Calculated Revenue'!C41*(1-UseDecreaseFactorY1)) -> 42750 | D41: =IF('Y0 Calculated Revenue'!D41="","",'Y0 Calculated Revenue'!D41*(1-UseDecreaseFactorY1)) ->  | E41: =IF('Y0 Calculated Revenue'!E41="","",'Y0 Calculated Revenue'!E41*(1-UseDecreaseFactorY1)) ->  | F41: =IF('Y0 Calculated Revenue'!F41="","",'Y0 Calculated Revenue'!F41*(1-UseDecreaseFactorY1)) -> 25950 | G41: =IF('Y0 Calculated Revenue'!G41="","",'Y0 Calculated Revenue'!G41*(1-UseDecreaseFactorY1)) ->  | H41: =IF('Y0 Calculated Revenue'!H41="","",'Y0 Calculated Revenue'!H41*(1-UseDecreaseFactorY1)) ->  | I41: =IF('Y0 Calculated Revenue'!I41="","",'Y0 Calculated Revenue'!I41*(1-UseDecreaseFactorY1)) -> 34950 | J41: =IF('Y0 Calculated Revenue'!J41="","",'Y0 Calculated Revenue'!J41*(1-UseDecreaseFactorY1)) ->  | K41: =IF('Y0 Calculated Revenue'!K41="","",'Y0 Calculated Revenue'!K41*(1-UseDecreaseFactorY1)) ->  | L41: =IF('Y0 Calculated Revenue'!L41="","",'Y0 Calculated Revenue'!L41*(1-UseDecreaseFactorY1)) -> 33450 | M41: =IF('Y0 Calculated Revenue'!M41="","",'Y0 Calculated Revenue'!M41*(1-UseDecreaseFactorY1)) ->  | N41: =IF('Y0 Calculated Revenue'!N41="","",'Y0 Calculated Revenue'!N41*(1-UseDecreaseFactorY1)) ->  | O41: 242.17875 | R41: 147.00675 | U41: 197.99175 | X41: 189.49425 | AC41: 137100 | AK41: 776.6715 | AP41: =IFERROR(IF(AND(#REF!<=AP$5,#REF!>AP$4),SUM($N41:$Y41),""),"") -> 
A42: =IF('Y0 Metered Data'!A43<>0,'Y0 Metered Data'!A43,0) -> Commercial 36 | B42: =IF('Y0 Metered Data'!B43<>0,'Y0 Metered Data'!B43,0) -> Commercial | C42: =IF('Y0 Calculated Revenue'!C42="","",'Y0 Calculated Revenue'!C42*(1-UseDecreaseFactorY1)) -> 60450 | D42: =IF('Y0 Calculated Revenue'!D42="","",'Y0 Calculated Revenue'!D42*(1-UseDecreaseFactorY1)) ->  | E42: =IF('Y0 Calculated Revenue'!E42="","",'Y0 Calculated Revenue'!E42*(1-UseDecreaseFactorY1)) ->  | F42: =IF('Y0 Calculated Revenue'!F42="","",'Y0 Calculated Revenue'!F42*(1-UseDecreaseFactorY1)) -> 48600 | G42: =IF('Y0 Calculated Revenue'!G42="","",'Y0 Calculated Revenue'!G42*(1-UseDecreaseFactorY1)) ->  | H42: =IF('Y0 Calculated Revenue'!H42="","",'Y0 Calculated Revenue'!H42*(1-UseDecreaseFactorY1)) ->  | I42: =IF('Y0 Calculated Revenue'!I42="","",'Y0 Calculated Revenue'!I42*(1-UseDecreaseFactorY1)) -> 39450 | J42: =IF('Y0 Calculated Revenue'!J42="","",'Y0 Calculated Revenue'!J42*(1-UseDecreaseFactorY1)) ->  | K42: =IF('Y0 Calculated Revenue'!K42="","",'Y0 Calculated Revenue'!K42*(1-UseDecreaseFactorY1)) ->  | L42: =IF('Y0 Calculated Revenue'!L42="","",'Y0 Calculated Revenue'!L42*(1-UseDecreaseFactorY1)) -> 36750 | M42: =IF('Y0 Calculated Revenue'!M42="","",'Y0 Calculated Revenue'!M42*(1-UseDecreaseFactorY1)) ->  | N42: =IF('Y0 Calculated Revenue'!N42="","",'Y0 Calculated Revenue'!N42*(1-UseDecreaseFactorY1)) ->  | O42: 342.44925 | R42: 275.319 | U42: 223.48425 | X42: 208.18875 | AC42: 185250 | AK42: 1049.44125 | AP42: =IFERROR(IF(AND(#REF!<=AP$5,#REF!>AP$4),SUM($N42:$Y42),""),"") -> 
A43: =IF('Y0 Metered Data'!A44<>0,'Y0 Metered Data'!A44,0) -> Commercial 37 | B43: =IF('Y0 Metered Data'!B44<>0,'Y0 Metered Data'!B44,0) -> Commercial | C43: =IF('Y0 Calculated Revenue'!C43="","",'Y0 Calculated Revenue'!C43*(1-UseDecreaseFactorY1)) -> 15000 | D43: =IF('Y0 Calculated Revenue'!D43="","",'Y0 Calculated Revenue'!D43*(1-UseDecreaseFactorY1)) ->  | E43: =IF('Y0 Calculated Revenue'!E43="","",'Y0 Calculated Revenue'!E43*(1-UseDecreaseFactorY1)) ->  | F43: =IF('Y0 Calculated Revenue'!F43="","",'Y0 Calculated Revenue'!F43*(1-UseDecreaseFactorY1)) -> 42150 | G43: =IF('Y0 Calculated Revenue'!G43="","",'Y0 Calculated Revenue'!G43*(1-UseDecreaseFactorY1)) ->  | H43: =IF('Y0 Calculated Revenue'!H43="","",'Y0 Calculated Revenue'!H43*(1-UseDecreaseFactorY1)) ->  | I43: =IF('Y0 Calculated Revenue'!I43="","",'Y0 Calculated Revenue'!I43*(1-UseDecreaseFactorY1)) -> 33150 | J43: =IF('Y0 Calculated Revenue'!J43="","",'Y0 Calculated Revenue'!J43*(1-UseDecreaseFactorY1)) ->  | K43: =IF('Y0 Calculated Revenue'!K43="","",'Y0 Calculated Revenue'!K43*(1-UseDecreaseFactorY1)) ->  | L43: =IF('Y0 Calculated Revenue'!L43="","",'Y0 Calculated Revenue'!L43*(1-UseDecreaseFactorY1)) -> 36600 | M43: =IF('Y0 Calculated Revenue'!M43="","",'Y0 Calculated Revenue'!M43*(1-UseDecreaseFactorY1)) ->  | N43: =IF('Y0 Calculated Revenue'!N43="","",'Y0 Calculated Revenue'!N43*(1-UseDecreaseFactorY1)) ->  | O43: 84.975 | R43: 238.77975 | U43: 187.79475 | X43: 207.339 | AC43: 126900 | AK43: 718.8885 | AP43: =IFERROR(IF(AND(#REF!<=AP$5,#REF!>AP$4),SUM($N43:$Y43),""),"") -> 
AP44: =IFERROR(IF(AND(#REF!<=AP$5,#REF!>AP$4),SUM($N44:$Y44),""),"") -> 
AP45: =IFERROR(IF(AND(#REF!<=AP$5,#REF!>AP$4),SUM($N45:$Y45),""),"") -> 
AP46: =IFERROR(IF(AND(#REF!<=AP$5,#REF!>AP$4),SUM($N46:$Y46),""),"") -> 
AP47: =IFERROR(IF(AND(#REF!<=AP$5,#REF!>AP$4),SUM($N47:$Y47),""),"") -> 
AP48: =IFERROR(IF(AND(#REF!<=AP$5,#REF!>AP$4),SUM($N48:$Y48),""),"") -> 
AP49: =IFERROR(IF(AND(#REF!<=AP$5,#REF!>AP$4),SUM($N49:$Y49),""),"") -> 
AP50: =IFERROR(IF(AND(#REF!<=AP$5,#REF!>AP$4),SUM($N50:$Y50),""),"") -> 
AP51: =IFERROR(IF(AND(#REF!<=AP$5,#REF!>AP$4),SUM($N51:$Y51),""),"") -> 
AP52: =IFERROR(IF(AND(#REF!<=AP$5,#REF!>AP$4),SUM($N52:$Y52),""),"") -> 
AP53: =IFERROR(IF(AND(#REF!<=AP$5,#REF!>AP$4),SUM($N53:$Y53),""),"") -> 
AP54: =IFERROR(IF(AND(#REF!<=AP$5,#REF!>AP$4),SUM($N54:$Y54),""),"") -> 
AP55: =IFERROR(IF(AND(#REF!<=AP$5,#REF!>AP$4),SUM($N55:$Y55),""),"") -> 
AP56: =IFERROR(IF(AND(#REF!<=AP$5,#REF!>AP$4),SUM($N56:$Y56),""),"") -> 
AP57: =IFERROR(IF(AND(#REF!<=AP$5,#REF!>AP$4),SUM($N57:$Y57),""),"") -> 
AP58: =IFERROR(IF(AND(#REF!<=AP$5,#REF!>AP$4),SUM($N58:$Y58),""),"") -> 
AP59: =IFERROR(IF(AND(#REF!<=AP$5,#REF!>AP$4),SUM($N59:$Y59),""),"") -> 
AP60: =IFERROR(IF(AND(#REF!<=AP$5,#REF!>AP$4),SUM($N60:$Y60),""),"") -> 
AP61: =IFERROR(IF(AND(#REF!<=AP$5,#REF!>AP$4),SUM($N61:$Y61),""),"") -> 
AP62: =IFERROR(IF(AND(#REF!<=AP$5,#REF!>AP$4),SUM($N62:$Y62),""),"") -> 
AP63: =IFERROR(IF(AND(#REF!<=AP$5,#REF!>AP$4),SUM($N63:$Y63),""),"") -> 
AP64: =IFERROR(IF(AND(#REF!<=AP$5,#REF!>AP$4),SUM($N64:$Y64),""),"") -> 
AP65: =IFERROR(IF(AND(#REF!<=AP$5,#REF!>AP$4),SUM($N65:$Y65),""),"") -> 
AP66: =IFERROR(IF(AND(#REF!<=AP$5,#REF!>AP$4),SUM($N66:$Y66),""),"") -> 
AP67: =IFERROR(IF(AND(#REF!<=AP$5,#REF!>AP$4),SUM($N67:$Y67),""),"") -> 
AP68: =IFERROR(IF(AND(#REF!<=AP$5,#REF!>AP$4),SUM($N68:$Y68),""),"") -> 
AP69: =IFERROR(IF(AND(#REF!<=AP$5,#REF!>AP$4),SUM($N69:$Y69),""),"") -> 
AP70: =IFERROR(IF(AND(#REF!<=AP$5,#REF!>AP$4),SUM($N70:$Y70),""),"") -> 
AP71: =IFERROR(IF(AND(#REF!<=AP$5,#REF!>AP$4),SUM($N71:$Y71),""),"") -> 
AP72: =IFERROR(IF(AND(#REF!<=AP$5,#REF!>AP$4),SUM($N72:$Y72),""),"") -> 
AP73: =IFERROR(IF(AND(#REF!<=AP$5,#REF!>AP$4),SUM($N73:$Y73),""),"") -> 
AP74: =IFERROR(IF(AND(#REF!<=AP$5,#REF!>AP$4),SUM($N74:$Y74),""),"") -> 
AP75: =IFERROR(IF(AND(#REF!<=AP$5,#REF!>AP$4),SUM($N75:$Y75),""),"") -> 
AP76: =IFERROR(IF(AND(#REF!<=AP$5,#REF!>AP$4),SUM($N76:$Y76),""),"") -> 
AP77: =IFERROR(IF(AND(#REF!<=AP$5,#REF!>AP$4),SUM($N77:$Y77),""),"") -> 
AP78: =IFERROR(IF(AND(#REF!<=AP$5,#REF!>AP$4),SUM($N78:$Y78),""),"") -> 
AP79: =IFERROR(IF(AND(#REF!<=AP$5,#REF!>AP$4),SUM($N79:$Y79),""),"") -> 
AP80: =IFERROR(IF(AND(#REF!<=AP$5,#REF!>AP$4),SUM($N80:$Y80),""),"") -> 
AP81: =IFERROR(IF(AND(#REF!<=AP$5,#REF!>AP$4),SUM($N81:$Y81),""),"") -> 
AP82: =IFERROR(IF(AND(#REF!<=AP$5,#REF!>AP$4),SUM($N82:$Y82),""),"") -> 
AP83: =IFERROR(IF(AND(#REF!<=AP$5,#REF!>AP$4),SUM($N83:$Y83),""),"") -> 
AP84: =IFERROR(IF(AND(#REF!<=AP$5,#REF!>AP$4),SUM($N84:$Y84),""),"") -> 
AP85: =IFERROR(IF(AND(#REF!<=AP$5,#REF!>AP$4),SUM($N85:$Y85),""),"") -> 
AP86: =IFERROR(IF(AND(#REF!<=AP$5,#REF!>AP$4),SUM($N86:$Y86),""),"") -> 
AP87: =IFERROR(IF(AND(#REF!<=AP$5,#REF!>AP$4),SUM($N87:$Y87),""),"") -> 
AP88: =IFERROR(IF(AND(#REF!<=AP$5,#REF!>AP$4),SUM($N88:$Y88),""),"") -> 
AP89: =IFERROR(IF(AND(#REF!<=AP$5,#REF!>AP$4),SUM($N89:$Y89),""),"") -> 
AP90: =IFERROR(IF(AND(#REF!<=AP$5,#REF!>AP$4),SUM($N90:$Y90),""),"") -> 
AP91: =IFERROR(IF(AND(#REF!<=AP$5,#REF!>AP$4),SUM($N91:$Y91),""),"") -> 
AP92: =IFERROR(IF(AND(#REF!<=AP$5,#REF!>AP$4),SUM($N92:$Y92),""),"") -> 
AP93: =IFERROR(IF(AND(#REF!<=AP$5,#REF!>AP$4),SUM($N93:$Y93),""),"") -> 
AP94: =IFERROR(IF(AND(#REF!<=AP$5,#REF!>AP$4),SUM($N94:$Y94),""),"") -> 
AP95: =IFERROR(IF(AND(#REF!<=AP$5,#REF!>AP$4),SUM($N95:$Y95),""),"") -> 
AP96: =IFERROR(IF(AND(#REF!<=AP$5,#REF!>AP$4),SUM($N96:$Y96),""),"") -> 
AP97: =IFERROR(IF(AND(#REF!<=AP$5,#REF!>AP$4),SUM($N97:$Y97),""),"") -> 
AP98: =IFERROR(IF(AND(#REF!<=AP$5,#REF!>AP$4),SUM($N98:$Y98),""),"") -> 
AP99: =IFERROR(IF(AND(#REF!<=AP$5,#REF!>AP$4),SUM($N99:$Y99),""),"") -> 
AP100: =IFERROR(IF(AND(#REF!<=AP$5,#REF!>AP$4),SUM($N100:$Y100),""),"") -> 
AP101: =IFERROR(IF(AND(#REF!<=AP$5,#REF!>AP$4),SUM($N101:$Y101),""),"") -> 
AP102: =IFERROR(IF(AND(#REF!<=AP$5,#REF!>AP$4),SUM($N102:$Y102),""),"") -> 
AP103: =IFERROR(IF(AND(#REF!<=AP$5,#REF!>AP$4),SUM($N103:$Y103),""),"") -> 
AP104: =IFERROR(IF(AND(#REF!<=AP$5,#REF!>AP$4),SUM($N104:$Y104),""),"") -> 
AP105: =IFERROR(IF(AND(#REF!<=AP$5,#REF!>AP$4),SUM($N105:$Y105),""),"") -> 
AP106: =IFERROR(IF(AND(#REF!<=AP$5,#REF!>AP$4),SUM($N106:$Y106),""),"") -> 
AP107: =IFERROR(IF(AND(#REF!<=AP$5,#REF!>AP$4),SUM($N107:$Y107),""),"") -> 
AP108: =IFERROR(IF(AND(#REF!<=AP$5,#REF!>AP$4),SUM($N108:$Y108),""),"") -> 
AP109: =IFERROR(IF(AND(#REF!<=AP$5,#REF!>AP$4),SUM($N109:$Y109),""),"") -> 
AP110: =IFERROR(IF(AND(#REF!<=AP$5,#REF!>AP$4),SUM($N110:$Y110),""),"") -> 
AP111: =IFERROR(IF(AND(#REF!<=AP$5,#REF!>AP$4),SUM($N111:$Y111),""),"") -> 
AP112: =IFERROR(IF(AND(#REF!<=AP$5,#REF!>AP$4),SUM($N112:$Y112),""),"") -> 
AP113: =IFERROR(IF(AND(#REF!<=AP$5,#REF!>AP$4),SUM($N113:$Y113),""),"") -> 
AP114: =IFERROR(IF(AND(#REF!<=AP$5,#REF!>AP$4),SUM($N114:$Y114),""),"") -> 
AP115: =IFERROR(IF(AND(#REF!<=AP$5,#REF!>AP$4),SUM($N115:$Y115),""),"") -> 
AP116: =IFERROR(IF(AND(#REF!<=AP$5,#REF!>AP$4),SUM($N116:$Y116),""),"") -> 
AP117: =IFERROR(IF(AND(#REF!<=AP$5,#REF!>AP$4),SUM($N117:$Y117),""),"") -> 
AP118: =IFERROR(IF(AND(#REF!<=AP$5,#REF!>AP$4),SUM($N118:$Y118),""),"") -> 
AP119: =IFERROR(IF(AND(#REF!<=AP$5,#REF!>AP$4),SUM($N119:$Y119),""),"") -> 
AP120: =IFERROR(IF(AND(#REF!<=AP$5,#REF!>AP$4),SUM($N120:$Y120),""),"") -> 
AP121: =IFERROR(IF(AND(#REF!<=AP$5,#REF!>AP$4),SUM($N121:$Y121),""),"") -> 
AP122: =IFERROR(IF(AND(#REF!<=AP$5,#REF!>AP$4),SUM($N122:$Y122),""),"") -> 
AP123: =IFERROR(IF(AND(#REF!<=AP$5,#REF!>AP$4),SUM($N123:$Y123),""),"") -> 
AP124: =IFERROR(IF(AND(#REF!<=AP$5,#REF!>AP$4),SUM($N124:$Y124),""),"") -> 
AP125: =IFERROR(IF(AND(#REF!<=AP$5,#REF!>AP$4),SUM($N125:$Y125),""),"") -> 
AP126: =IFERROR(IF(AND(#REF!<=AP$5,#REF!>AP$4),SUM($N126:$Y126),""),"") -> 
AP127: =IFERROR(IF(AND(#REF!<=AP$5,#REF!>AP$4),SUM($N127:$Y127),""),"") -> 
AP128: =IFERROR(IF(AND(#REF!<=AP$5,#REF!>AP$4),SUM($N128:$Y128),""),"") -> 
AP129: =IFERROR(IF(AND(#REF!<=AP$5,#REF!>AP$4),SUM($N129:$Y129),""),"") -> 
AP130: =IFERROR(IF(AND(#REF!<=AP$5,#REF!>AP$4),SUM($N130:$Y130),""),"") -> 
AP131: =IFERROR(IF(AND(#REF!<=AP$5,#REF!>AP$4),SUM($N131:$Y131),""),"") -> 
AP132: =IFERROR(IF(AND(#REF!<=AP$5,#REF!>AP$4),SUM($N132:$Y132),""),"") -> 
AP133: =IFERROR(IF(AND(#REF!<=AP$5,#REF!>AP$4),SUM($N133:$Y133),""),"") -> 
AP134: =IFERROR(IF(AND(#REF!<=AP$5,#REF!>AP$4),SUM($N134:$Y134),""),"") -> 
AP135: =IFERROR(IF(AND(#REF!<=AP$5,#REF!>AP$4),SUM($N135:$Y135),""),"") -> 
AP136: =IFERROR(IF(AND(#REF!<=AP$5,#REF!>AP$4),SUM($N136:$Y136),""),"") -> 
AP137: =IFERROR(IF(AND(#REF!<=AP$5,#REF!>AP$4),SUM($N137:$Y137),""),"") -> 
AP138: =IFERROR(IF(AND(#REF!<=AP$5,#REF!>AP$4),SUM($N138:$Y138),""),"") -> 
AP139: =IFERROR(IF(AND(#REF!<=AP$5,#REF!>AP$4),SUM($N139:$Y139),""),"") -> 
AP140: =IFERROR(IF(AND(#REF!<=AP$5,#REF!>AP$4),SUM($N140:$Y140),""),"") -> 
AP141: =IFERROR(IF(AND(#REF!<=AP$5,#REF!>AP$4),SUM($N141:$Y141),""),"") -> 
AP142: =IFERROR(IF(AND(#REF!<=AP$5,#REF!>AP$4),SUM($N142:$Y142),""),"") -> 
AP143: =IFERROR(IF(AND(#REF!<=AP$5,#REF!>AP$4),SUM($N143:$Y143),""),"") -> 
AP144: =IFERROR(IF(AND(#REF!<=AP$5,#REF!>AP$4),SUM($N144:$Y144),""),"") -> 
AP145: =IFERROR(IF(AND(#REF!<=AP$5,#REF!>AP$4),SUM($N145:$Y145),""),"") -> 
AP146: =IFERROR(IF(AND(#REF!<=AP$5,#REF!>AP$4),SUM($N146:$Y146),""),"") -> 
AP147: =IFERROR(IF(AND(#REF!<=AP$5,#REF!>AP$4),SUM($N147:$Y147),""),"") -> 
AP148: =IFERROR(IF(AND(#REF!<=AP$5,#REF!>AP$4),SUM($N148:$Y148),""),"") -> 
AP149: =IFERROR(IF(AND(#REF!<=AP$5,#REF!>AP$4),SUM($N149:$Y149),""),"") -> 
AP150: =IFERROR(IF(AND(#REF!<=AP$5,#REF!>AP$4),SUM($N150:$Y150),""),"") -> 
AP151: =IFERROR(IF(AND(#REF!<=AP$5,#REF!>AP$4),SUM($N151:$Y151),""),"") -> 
AP152: =IFERROR(IF(AND(#REF!<=AP$5,#REF!>AP$4),SUM($N152:$Y152),""),"") -> 
AP153: =IFERROR(IF(AND(#REF!<=AP$5,#REF!>AP$4),SUM($N153:$Y153),""),"") -> 
AP154: =IFERROR(IF(AND(#REF!<=AP$5,#REF!>AP$4),SUM($N154:$Y154),""),"") -> 
AP155: =IFERROR(IF(AND(#REF!<=AP$5,#REF!>AP$4),SUM($N155:$Y155),""),"") -> 
AP156: =IFERROR(IF(AND(#REF!<=AP$5,#REF!>AP$4),SUM($N156:$Y156),""),"") -> 
AP157: =IFERROR(IF(AND(#REF!<=AP$5,#REF!>AP$4),SUM($N157:$Y157),""),"") -> 
AP158: =IFERROR(IF(AND(#REF!<=AP$5,#REF!>AP$4),SUM($N158:$Y158),""),"") -> 
AP159: =IFERROR(IF(AND(#REF!<=AP$5,#REF!>AP$4),SUM($N159:$Y159),""),"") -> 
AP160: =IFERROR(IF(AND(#REF!<=AP$5,#REF!>AP$4),SUM($N160:$Y160),""),"") -> 
AP161: =IFERROR(IF(AND(#REF!<=AP$5,#REF!>AP$4),SUM($N161:$Y161),""),"") -> 
AP162: =IFERROR(IF(AND(#REF!<=AP$5,#REF!>AP$4),SUM($N162:$Y162),""),"") -> 
AP163: =IFERROR(IF(AND(#REF!<=AP$5,#REF!>AP$4),SUM($N163:$Y163),""),"") -> 
AP164: =IFERROR(IF(AND(#REF!<=AP$5,#REF!>AP$4),SUM($N164:$Y164),""),"") -> 
AP165: =IFERROR(IF(AND(#REF!<=AP$5,#REF!>AP$4),SUM($N165:$Y165),""),"") -> 
AP166: =IFERROR(IF(AND(#REF!<=AP$5,#REF!>AP$4),SUM($N166:$Y166),""),"") -> 
AP167: =IFERROR(IF(AND(#REF!<=AP$5,#REF!>AP$4),SUM($N167:$Y167),""),"") -> 
AP168: =IFERROR(IF(AND(#REF!<=AP$5,#REF!>AP$4),SUM($N168:$Y168),""),"") -> 
AP169: =IFERROR(IF(AND(#REF!<=AP$5,#REF!>AP$4),SUM($N169:$Y169),""),"") -> 
AP170: =IFERROR(IF(AND(#REF!<=AP$5,#REF!>AP$4),SUM($N170:$Y170),""),"") -> 
AP171: =IFERROR(IF(AND(#REF!<=AP$5,#REF!>AP$4),SUM($N171:$Y171),""),"") -> 
AP172: =IFERROR(IF(AND(#REF!<=AP$5,#REF!>AP$4),SUM($N172:$Y172),""),"") -> 
AP173: =IFERROR(IF(AND(#REF!<=AP$5,#REF!>AP$4),SUM($N173:$Y173),""),"") -> 
AP174: =IFERROR(IF(AND(#REF!<=AP$5,#REF!>AP$4),SUM($N174:$Y174),""),"") -> 
AP175: =IFERROR(IF(AND(#REF!<=AP$5,#REF!>AP$4),SUM($N175:$Y175),""),"") -> 
AP176: =IFERROR(IF(AND(#REF!<=AP$5,#REF!>AP$4),SUM($N176:$Y176),""),"") -> 
AP177: =IFERROR(IF(AND(#REF!<=AP$5,#REF!>AP$4),SUM($N177:$Y177),""),"") -> 
AP178: =IFERROR(IF(AND(#REF!<=AP$5,#REF!>AP$4),SUM($N178:$Y178),""),"") -> 
AP179: =IFERROR(IF(AND(#REF!<=AP$5,#REF!>AP$4),SUM($N179:$Y179),""),"") -> 
AP180: =IFERROR(IF(AND(#REF!<=AP$5,#REF!>AP$4),SUM($N180:$Y180),""),"") -> 
AP181: =IFERROR(IF(AND(#REF!<=AP$5,#REF!>AP$4),SUM($N181:$Y181),""),"") -> 
AP182: =IFERROR(IF(AND(#REF!<=AP$5,#REF!>AP$4),SUM($N182:$Y182),""),"") -> 
AP183: =IFERROR(IF(AND(#REF!<=AP$5,#REF!>AP$4),SUM($N183:$Y183),""),"") -> 
AP184: =IFERROR(IF(AND(#REF!<=AP$5,#REF!>AP$4),SUM($N184:$Y184),""),"") -> 
AP185: =IFERROR(IF(AND(#REF!<=AP$5,#REF!>AP$4),SUM($N185:$Y185),""),"") -> 
AP186: =IFERROR(IF(AND(#REF!<=AP$5,#REF!>AP$4),SUM($N186:$Y186),""),"") -> 
AP187: =IFERROR(IF(AND(#REF!<=AP$5,#REF!>AP$4),SUM($N187:$Y187),""),"") -> 
AP188: =IFERROR(IF(AND(#REF!<=AP$5,#REF!>AP$4),SUM($N188:$Y188),""),"") -> 
AP189: =IFERROR(IF(AND(#REF!<=AP$5,#REF!>AP$4),SUM($N189:$Y189),""),"") -> 
AP190: =IFERROR(IF(AND(#REF!<=AP$5,#REF!>AP$4),SUM($N190:$Y190),""),"") -> 
AP191: =IFERROR(IF(AND(#REF!<=AP$5,#REF!>AP$4),SUM($N191:$Y191),""),"") -> 
AP192: =IFERROR(IF(AND(#REF!<=AP$5,#REF!>AP$4),SUM($N192:$Y192),""),"") -> 
AP193: =IFERROR(IF(AND(#REF!<=AP$5,#REF!>AP$4),SUM($N193:$Y193),""),"") -> 
AP194: =IFERROR(IF(AND(#REF!<=AP$5,#REF!>AP$4),SUM($N194:$Y194),""),"") -> 
AP195: =IFERROR(IF(AND(#REF!<=AP$5,#REF!>AP$4),SUM($N195:$Y195),""),"") -> 
AP196: =IFERROR(IF(AND(#REF!<=AP$5,#REF!>AP$4),SUM($N196:$Y196),""),"") -> 
AP197: =IFERROR(IF(AND(#REF!<=AP$5,#REF!>AP$4),SUM($N197:$Y197),""),"") -> 
AP198: =IFERROR(IF(AND(#REF!<=AP$5,#REF!>AP$4),SUM($N198:$Y198),""),"") -> 
AP199: =IFERROR(IF(AND(#REF!<=AP$5,#REF!>AP$4),SUM($N199:$Y199),""),"") -> 
AP200: =IFERROR(IF(AND(#REF!<=AP$5,#REF!>AP$4),SUM($N200:$Y200),""),"") -> 
... 2050 more rows

Sheet Y0 Fee Shortfall (hidden)
A1: =Client -> Example Municipality
A2: User Fees Collection Shortfall
A3: or Over Collection
A4: For the one year period ending: | F4: ='Y0 Metered Data'!N7 -> 2018-05-07
A5: (Last Fiscal Year)
B7: =CalculatedMeteredRevY0 -> 574626.525 | D7: Total Calculated User Fees
D8: Minus
B9: =UseRevY0 -> 576557.17 | D9: Total Collected User Fees
D10: Equals
B11: =B7-B9 -> -1930.645 | D11: User Fees Collection Shortfall
D12: or Surplus (in parentheses)
B14: =B9/B7 -> 1.003359826 | D14: User Fees Collection Rate
B16: =IF(B14>1,B14-1," ") -> 0.003359825758 | D16: =IF(B14>1,"User Fees Over Collection"," ") -> User Fees Over Collection
B17: =IF(B14<1,1-B14," ") ->  | D17: =IF(B14<1,"User Fees Collection Shortfall"," ") -> 

Sheet Balance Projection
A1: Notes/Assumptions: Enter data in peach or orange areas only. Italicized values do not feed total. Enter planned rate increases in cells F6 and F7 onwards for individual rate increases, or C6 and C7 for a uniform annual increase.
A2: EXAMPLE MUNICIPALITY
A3: Operating Cost and Income Items | C3: Annual Increase | D3: FY | E3: FY | F3: FY | G3: FY | H3: FY | I3: FY | J3: FY | K3: FY | L3: FY | M3: FY | N3: FY | O3: FY | P3: FY | Q3: FY | R3: FY | S3: FY | T3: FY | U3: FY | V3: FY | W3: FY | X3: FY | Y3: FY | Z3: FY | AA3: FY | AB3: FY | AC3: FY
D4: =ReadMe!M6 -> 2018 | E4: =D4+1 -> 2019 | F4: =E4+1 -> 2020 | G4: 2021 | H4: 2022 | I4: 2023 | J4: 2024 | K4: =J4+1 -> 2025 | L4: =K4+1 -> 2026 | M4: =L4+1 -> 2027 | N4: =M4+1 -> 2028 | O4: =N4+1 -> 2029 | P4: =O4+1 -> 2030 | Q4: =P4+1 -> 2031 | R4: =Q4+1 -> 2032 | S4: =R4+1 -> 2033 | T4: =S4+1 -> 2034 | U4: =T4+1 -> 2035 | V4: =U4+1 -> 2036 | W4: =V4+1 -> 2037 | X4: =W4+1 -> 2038 | Y4: =X4+1 -> 2039 | Z4: =Y4+1 -> 2040 | AA4: =Z4+1 -> 2041 | AB4: =AA4+1 -> 2042 | AC4: 2043
A5: Total Number of Customers | D5: ='Rate Block Statistics'!D15+'Y0 Nonmetered Data'!B22 -> 1535.93 | E5: =D5+SUM(NewCust[Y1]) -> 1535.93 | F5: =E5+SUM(NewCust[Y2]) -> 1535.93 | G5: =F5+SUM(NewCust[Y3]) -> 1535.93 | H5: =G5+SUM(NewCust[Y4]) -> 1535.93 | I5: =H5+SUM(NewCust[Y5]) -> 1535.93 | J5: =I5+SUM(NewCust[Y6]) -> 1535.93 | K5: =J5+SUM(NewCust[Y7]) -> 1535.93 | L5: =K5+SUM(NewCust[Y8]) -> 1535.93 | M5: =L5+SUM(NewCust[Y9]) -> 1535.93 | N5: =M5+SUM(NewCust[Y10]) -> 1535.93 | O5: =N5+SUM(NewCust[Y11]) -> 1535.93 | P5: =O5+SUM(NewCust[Y12]) -> 1535.93 | Q5: =P5+SUM(NewCust[Y13]) -> 1535.93 | R5: =Q5+SUM(NewCust[Y14]) -> 1535.93 | S5: =R5+SUM(NewCust[Y15]) -> 1535.93 | T5: =S5+SUM(NewCust[Y16]) -> 1535.93 | U5: =T5+SUM(NewCust[Y17]) -> 1535.93 | V5: =U5+SUM(NewCust[Y18]) -> 1535.93 | W5: =V5+SUM(NewCust[Y19]) -> 1535.93 | X5: =W5+SUM(NewCust[Y20]) -> 1535.93 | Y5: =X5+SUM(NewCust[Y21]) -> 1535.93 | Z5: =Y5+SUM(NewCust[Y22]) -> 1535.93 | AA5: =Z5+SUM(NewCust[Y23]) -> 1535.93 | AB5: =AA5+SUM(NewCust[Y24]) -> 1535.93 | AC5: =AB5+SUM(NewCust[Y25]) -> 1535.93
B6: Commercial Planned Rate Increase | C6: 0.03 | D6: n/a | E6: See Y1 Rates | F6: =$C6 -> 0.03 | G6: =$C6 -> 0.03 | H6: 0.03 | I6: 0.03 | J6: 0.03 | K6: 0.03 | L6: 0.03 | M6: 0.03 | N6: 0.03 | O6: 0.03 | P6: 0.03 | Q6: 0.03 | R6: 0.03 | S6: 0.03 | T6: 0.03 | U6: 0.03 | V6: 0.03 | W6: 0.03 | X6: 0.03 | Y6: 0.03 | Z6: 0.03 | AA6: 0.03 | AB6: 0.03 | AC6: 0.03
B7: Unmetered Planned Rate Increase | C7: 0.03 | D7: n/a | E7: =$C7 -> 0.03 | F7: =$C7 -> 0.03 | G7: 0.03 | H7: 0.03 | I7: 0.03 | J7: 0.03 | K7: 0.03 | L7: 0.03 | M7: 0.03 | N7: 0.03 | O7: 0.03 | P7: 0.03 | Q7: 0.03 | R7: 0.03 | S7: 0.03 | T7: 0.03 | U7: 0.03 | V7: 0.03 | W7: 0.03 | X7: 0.03 | Y7: 0.03 | Z7: 0.03 | AA7: 0.03 | AB7: 0.03 | AC7: 0.03
B8: Unmetered Annual Rate per Account | D8: =Y0_Annual_Rate -> 330 | E8: =D8*(1+E7) -> 339.9 | F8: =E8*(1+F7) -> 350.097 | G8: 360.59991 | H8: 371.4179073 | I8: 382.5604445 | J8: 394.0372579 | K8: 405.8583756 | L8: 418.0341269 | M8: 430.5751507 | N8: 443.4924052 | O8: 456.7971773 | P8: 470.5010927 | Q8: 484.6161254 | R8: 499.1546092 | S8: 514.1292475 | T8: 529.5531249 | U8: 545.4397186 | V8: 561.8029102 | W8: 578.6569975 | X8: 596.0167074 | Y8: 613.8972087 | Z8: 632.3141249 | AA8: 651.2835487 | AB8: 670.8220551 | AC8: 690.9467168
B9: Annual Increase in Customers (NOT USED) | D9: ='Future Connections'!C6/'Balance Projection'!D5 -> 0 | E9: was last year's actual rate for adding new customers
D10: y0 | E10: y1 | F10: y2 | G10: y3 | H10: y4 | I10: y5 | J10: y6 | K10: y7 | L10: y8 | M10: y9 | N10: y10 | O10: y11 | P10: y12 | Q10: y13 | R10: y14 | S10: y15 | T10: y16 | U10: y17 | V10: y18 | W10: y19 | X10: y20 | Y10: y21 | Z10: y22 | AA10: y23 | AB10: y24 | AC10: y25
A11: Operating Incomes | D11: =SUM(D13,D19:D20) -> 576557.17 | E11: =SUM(E13,E19:E20) -> 591865.3208 | F11: 609621.2804 | G11: 627909.9188 | H11: 646747.2163 | I11: 666149.6328 | J11: 686134.1218 | K11: 706718.1455 | L11: 727919.6898 | M11: 749757.2805 | N11: 772249.999 | O11: 795417.4989 | P11: 819280.0239 | Q11: 843858.4246 | R11: 869174.1773 | S11: 895249.4027 | T11: 922106.8847 | U11: 949770.0913 | V11: 978263.194 | W11: 1007611.09 | X11: 1037839.423 | Y11: 1068974.605 | Z11: 1101043.843 | AA11: 1134075.159 | AB11: 1168097.413 | AC11: =SUM(AC13,AC19:AC20) -> 1203140.336
B12: User Charges (Actual or Projected Receipts) | D12: =UseRevY0 -> 576557.17 | E12: =SUM(E14:E18) -> 591865.3208 | F12: 609621.2804 | G12: 627909.9188 | H12: 646747.2163 | I12: 666149.6328 | J12: 686134.1218 | K12: =SUM(K14:K18) -> 706718.1455 | L12: 727919.6898 | M12: 749757.2805 | N12: 772249.999 | O12: 795417.4989 | P12: 819280.0239 | Q12: 843858.4246 | R12: 869174.1773 | S12: =SUM(S14:S18) -> 895249.4027 | T12: 922106.8847 | U12: 949770.0913 | V12: 978263.194 | W12: 1007611.09 | X12: 1037839.423 | Y12: 1068974.605 | Z12: 1101043.843 | AA12: 1134075.159 | AB12: 1168097.413 | AC12: =SUM(AC14:AC18) -> 1203140.336
B13: User Charges (Actual or Projected Receipts) with Collection Shortfall | D13: =UseRevY0 -> 576557.17 | E13: =IF(Shortfall<0,SUM(E14:E18),SUM(E14:E18)*(1-Shortfall)) -> 591865.3208 | F13: 609621.2804 | G13: 627909.9188 | H13: 646747.2163 | I13: 666149.6328 | J13: 686134.1218 | K13: =IF(Shortfall<0,SUM(K14:K18),SUM(K14:K18)*(1-Shortfall)) -> 706718.1455 | L13: 727919.6898 | M13: 749757.2805 | N13: 772249.999 | O13: 795417.4989 | P13: 819280.0239 | Q13: 843858.4246 | R13: 869174.1773 | S13: =IF(Shortfall<0,SUM(S14:S18),SUM(S14:S18)*(1-Shortfall)) -> 895249.4027 | T13: 922106.8847 | U13: 949770.0913 | V13: 978263.194 | W13: 1007611.09 | X13: 1037839.423 | Y13: 1068974.605 | Z13: 1101043.843 | AA13: 1134075.159 | AB13: 1168097.413 | AC13: =IF(Shortfall<0,SUM(AC14:AC18),SUM(AC14:AC18)*(1-Shortfall)) -> 1203140.336
B14: Commercial Metered Usage | D14: ='Y0 Calculated Revenue'!D4 -> 79979.625 | E14: =SUM('Y1 Calculated Revenue'!O7:Z1048576) -> 82379.01375 | F14: =E14*(1+F6) -> 84850.38416 | G14: 87395.89569 | H14: 90017.77256 | I14: 92718.30573 | J14: 95499.85491 | K14: 98364.85055 | L14: 101315.7961 | M14: 104355.27 | N14: 107485.9281 | O14: 110710.5059 | P14: 114031.8211 | Q14: 117452.7757 | R14: 120976.359 | S14: 124605.6497 | T14: 128343.8192 | U14: 132194.1338 | V14: 136159.9578 | W14: 140244.7566 | X14: 144452.0993 | Y14: 148785.6622 | Z14: 153249.2321 | AA14: 157846.7091 | AB14: 162582.1103 | AC14: 167459.5736
B15: Unmetered Usage | D15: =SUM(Nonmeter[Calculated Yearly Revenue]) -> 494646.9 | E15: =D15*(1+E7) -> 509486.307 | F15: =(E15+E18)*(1+F7) -> 524770.8962 | G15: 540514.0231 | H15: 556729.4438 | I15: 573431.3271 | J15: 590634.2669 | K15: 608353.2949 | L15: 626603.8938 | M15: 645402.0106 | N15: 664764.0709 | O15: 684706.993 | P15: 705248.2028 | Q15: 726405.6489 | R15: 748197.8184 | S15: 770643.7529 | T15: 793763.0655 | U15: 817575.9575 | V15: 842103.2362 | W15: 867366.3333 | X15: 893387.3233 | Y15: 920188.943 | Z15: 947794.6113 | AA15: 976228.4496 | AB15: 1005515.303 | AC15: 1035680.762
B16: Residential Metered Usage (NOT USED)
B17: Anticipated Decrease in Revenue from Decreased Usage (NOT USED) | D17: 0 | E17: =IF(E6>0,-UseDecreaseFactor*E14,0) -> 0 | F17: 0 | G17: 0 | H17: 0 | I17: 0 | J17: 0 | K17: 0 | L17: 0 | M17: 0 | N17: 0 | O17: 0 | P17: 0 | Q17: 0 | R17: 0 | S17: 0 | T17: 0 | U17: 0 | V17: 0 | W17: 0 | X17: 0 | Y17: 0 | Z17: 0 | AA17: 0 | AB17: 0 | AC17: =IF(AC6>0,-UseDecreaseFactor*AC14,0) -> 0
B18: Anticipated Revenue from New Residential Connections | D18: n/a | E18: ='Future Connections'!D6*E8 -> 0 | F18: ='Future Connections'!E6*F8 -> 0 | G18: ='Future Connections'!F6*G8 -> 0 | H18: ='Future Connections'!G6*H8 -> 0 | I18: ='Future Connections'!H6*I8 -> 0 | J18: ='Future Connections'!I6*J8 -> 0 | K18: ='Future Connections'!J6*K8 -> 0 | L18: ='Future Connections'!K6*L8 -> 0 | M18: ='Future Connections'!L6*M8 -> 0 | N18: ='Future Connections'!M6*N8 -> 0 | O18: ='Future Connections'!N6*O8 -> 0 | P18: ='Future Connections'!O6*P8 -> 0 | Q18: ='Future Connections'!P6*Q8 -> 0 | R18: ='Future Connections'!Q6*R8 -> 0 | S18: ='Future Connections'!R6*S8 -> 0 | T18: ='Future Connections'!S6*T8 -> 0 | U18: ='Future Connections'!T6*U8 -> 0 | V18: ='Future Connections'!U6*V8 -> 0 | W18: ='Future Connections'!V6*W8 -> 0 | X18: ='Future Connections'!W6*X8 -> 0 | Y18: ='Future Connections'!X6*Y8 -> 0 | Z18: ='Future Connections'!Y6*Z8 -> 0 | AA18: ='Future Connections'!Z6*AA8 -> 0 | AB18: ='Future Connections'!AA6*AB8 -> 0 | AC18: ='Future Connections'!AB6*AC8 -> 0
B19: Other Revenue | D19: =SUM(OtherRev[Y0]) -> 0 | E19: =SUM(OtherRev[Y1]) -> 0 | F19: =SUM(OtherRev[Y2]) -> 0 | G19: =SUM(OtherRev[Y3]) -> 0 | H19: =SUM(OtherRev[Y4]) -> 0 | I19: =SUM(OtherRev[Y5]) -> 0 | J19: =SUM(OtherRev[Y6]) -> 0 | K19: =SUM(OtherRev[Y7]) -> 0 | L19: =SUM(OtherRev[Y8]) -> 0 | M19: =SUM(OtherRev[Y9]) -> 0 | N19: =SUM(OtherRev[Y10]) -> 0 | O19: =SUM(OtherRev[Y11]) -> 0 | P19: =SUM(OtherRev[Y12]) -> 0 | Q19: =SUM(OtherRev[Y13]) -> 0 | R19: =SUM(OtherRev[Y14]) -> 0 | S19: =SUM(OtherRev[Y15]) -> 0 | T19: =SUM(OtherRev[Y16]) -> 0 | U19: =SUM(OtherRev[Y17]) -> 0 | V19: =SUM(OtherRev[Y18]) -> 0 | W19: =SUM(OtherRev[Y19]) -> 0 | X19: =SUM(OtherRev[Y20]) -> 0 | Y19: =SUM(OtherRev[Y21]) -> 0 | Z19: =SUM(OtherRev[Y22]) -> 0 | AA19: =SUM(OtherRev[Y23]) -> 0 | AB19: =SUM(OtherRev[Y24]) -> 0 | AC19: =SUM(OtherRev[Y25]) -> 0
B20: Other Adjust. (+ or -) Describe
D21: y0 | E21: y1 | F21: y2 | G21: y3 | H21: y4 | I21: y5 | J21: y6 | K21: y7 | L21: y8 | M21: y9 | N21: y10 | O21: y11 | P21: y12 | Q21: y13 | R21: y14 | S21: y15 | T21: y16 | U21: y17 | V21: y18 | W21: y19 | X21: y20 | Y21: y21 | Z21: y22 | AA21: y23 | AB21: y24 | AC21: y25
A22: Operating Costs | C22: Inflation Factor % | D22: =SUM(D23:D27,D28:D40) -> 454654.15 | E22: =SUM(E23:E40) -> 501143 | F22: 474631.3 | G22: 488866.15 | H22: 503904.1366 | I22: 519806.963 | J22: 536641.9444 | K22: 554482.5526 | L22: 573409.0139 | M22: 593508.9676 | N22: 614878.1882 | O22: 637621.3806 | P22: 661853.0534 | Q22: 687698.4796 | R22: 715294.7519 | S22: 744791.9443 | T22: 776354.3874 | U22: 810162.0723 | V22: 846412.1931 | W22: 885320.8433 | X22: 927124.8815 | Y22: 972083.9821 | Z22: 1020482.891 | AA22: 1072633.906 | AB22: 1128879.605 | AC22: =SUM(AC23:AC40) -> 1189595.843
A23: ='Fixed v. Variable Costs'!A6 -> Salaries & Benefits for Administration Staff | C23: 0 | D23: ='Fixed v. Variable Costs'!$B6 -> 0 | E23: ='Y1 Operating Cost Allocation'!C5 -> 0 | F23: =E23*(1+$C23) -> 0 | G23: =F23*(1+$C23) -> 0 | H23: =G23*(1+$C23) -> 0 | I23: 0 | J23: 0 | K23: 0 | L23: 0 | M23: 0 | N23: 0 | O23: 0 | P23: 0 | Q23: 0 | R23: 0 | S23: 0 | T23: 0 | U23: 0 | V23: 0 | W23: 0 | X23: 0 | Y23: 0 | Z23: 0 | AA23: 0 | AB23: 0 | AC23: 0
A24: ='Fixed v. Variable Costs'!A7 -> Billing, Office Operation & Utilities, Rent & Other Overhead | C24: 0 | D24: ='Fixed v. Variable Costs'!$B7 -> 0 | E24: ='Y1 Operating Cost Allocation'!C6 -> 5000 | F24: =E24*(1+$C24) -> 5000 | G24: 5000 | H24: =G24*(1+$C24) -> 5000 | I24: 5000 | J24: 5000 | K24: 5000 | L24: 5000 | M24: 5000 | N24: 5000 | O24: 5000 | P24: 5000 | Q24: 5000 | R24: 5000 | S24: 5000 | T24: 5000 | U24: 5000 | V24: 5000 | W24: 5000 | X24: 5000 | Y24: 5000 | Z24: 5000 | AA24: 5000 | AB24: 5000 | AC24: 5000
A25: ='Fixed v. Variable Costs'!A8 -> Insurance & Bonding | C25: 0.1 | D25: ='Fixed v. Variable Costs'!$B8 -> 47623.72 | E25: ='Y1 Operating Cost Allocation'!C7 -> 48843 | F25: 53727.3 | G25: 59100.03 | H25: =G25*(1+$C25) -> 65010.033 | I25: 71511.0363 | J25: 78662.13993 | K25: 86528.35392 | L25: 95181.18932 | M25: 104699.3082 | N25: 115169.2391 | O25: 126686.163 | P25: 139354.7793 | Q25: 153290.2572 | R25: 168619.2829 | S25: 185481.2112 | T25: 204029.3323 | U25: 224432.2656 | V25: 246875.4921 | W25: 271563.0413 | X25: 298719.3455 | Y25: 328591.28 | Z25: 361450.408 | AA25: 397595.4488 | AB25: 437354.9937 | AC25: 481090.4931
A26: ='Fixed v. Variable Costs'!A9 -> Accounting, Legal, Engineering & Other Professional Services | C26: 0 | D26: ='Fixed v. Variable Costs'!$B9 -> 29910.92 | E26: ='Y1 Operating Cost Allocation'!C8 -> 90000 | F26: =50000 -> 50000 | G26: =F26*(1+$C26) -> 50000 | H26: 50000 | I26: 50000 | J26: 50000 | K26: 50000 | L26: 50000 | M26: 50000 | N26: 50000 | O26: 50000 | P26: 50000 | Q26: 50000 | R26: 50000 | S26: 50000 | T26: 50000 | U26: 50000 | V26: 50000 | W26: 50000 | X26: 50000 | Y26: 50000 | Z26: 50000 | AA26: 50000 | AB26: 50000 | AC26: 50000
A27: ='Fixed v. Variable Costs'!A11 -> 15% Grant Responsibility | C27: 0 | D27: ='Fixed v. Variable Costs'!$B11 -> 62961.43 | E27: ='Y1 Operating Cost Allocation'!C10 -> 0 | F27: =E27*(1+$C27) -> 0 | G27: 0 | H27: 0 | I27: 0 | J27: 0 | K27: 0 | L27: 0 | M27: 0 | N27: 0 | O27: 0 | P27: 0 | Q27: 0 | R27: 0 | S27: 0 | T27: 0 | U27: 0 | V27: 0 | W27: 0 | X27: 0 | Y27: 0 | Z27: 0 | AA27: 0 | AB27: 0 | AC27: 0
A28: ='Fixed v. Variable Costs'!A13 -> Salaries & Benefits for Operations Staff | C28: 0.03 | D28: ='Fixed v. Variable Costs'!$B13 -> 51049.29 | E28: ='Y1 Operating Cost Allocation'!C12 -> 62800 | F28: =E28*(1+$C28) -> 64684 | G28: 66624.52 | H28: 68623.2556 | I28: 70681.95327 | J28: 72802.41187 | K28: 74986.48422 | L28: 77236.07875 | M28: 79553.16111 | N28: 81939.75594 | O28: 84397.94862 | P28: 86929.88708 | Q28: 89537.78369 | R28: 92223.9172 | S28: 94990.63472 | T28: 97840.35376 | U28: 100775.5644 | V28: 103798.8313 | W28: 106912.7962 | X28: 110120.1801 | Y28: 113423.7855 | Z28: 116826.4991 | AA28: 120331.2941 | AB28: 123941.2329 | AC28: 127659.4699
A29: ='Fixed v. Variable Costs'!A14 -> Utilities for Operations | C29: 0 | D29: ='Fixed v. Variable Costs'!$B14 -> 6902.48 | E29: ='Y1 Operating Cost Allocation'!C13 -> 9000 | F29: 9000 | G29: 9000 | H29: 9000 | I29: 9000 | J29: 9000 | K29: 9000 | L29: 9000 | M29: 9000 | N29: 9000 | O29: 9000 | P29: 9000 | Q29: 9000 | R29: 9000 | S29: 9000 | T29: 9000 | U29: 9000 | V29: 9000 | W29: 9000 | X29: 9000 | Y29: 9000 | Z29: 9000 | AA29: 9000 | AB29: 9000 | AC29: 9000
A30: ='Fixed v. Variable Costs'!A15 -> Operating Supplies & Equipment | C30: 0.03 | D30: ='Fixed v. Variable Costs'!$B15 -> 203897.58 | E30: ='Y1 Operating Cost Allocation'!C14 -> 224000 | F30: 230720 | G30: 237641.6 | H30: 244770.848 | I30: 252113.9734 | J30: 259677.3926 | K30: 267467.7144 | L30: 275491.7459 | M30: 283756.4982 | N30: 292269.1932 | O30: 301037.269 | P30: 310068.387 | Q30: 319370.4387 | R30: 328951.5518 | S30: 338820.0984 | T30: 348984.7013 | U30: 359454.2424 | V30: 370237.8696 | W30: 381345.0057 | X30: 392785.3559 | Y30: 404568.9166 | Z30: 416705.9841 | AA30: 429207.1636 | AB30: 442083.3785 | AC30: 455345.8798
A31: ='Fixed v. Variable Costs'!A16 -> Chemicals | C31: 0 | D31: ='Fixed v. Variable Costs'!$B16 -> 1259.82 | E31: ='Y1 Operating Cost Allocation'!C15 -> 2000 | F31: 2000 | G31: 2000 | H31: 2000 | I31: 2000 | J31: 2000 | K31: 2000 | L31: 2000 | M31: 2000 | N31: 2000 | O31: 2000 | P31: 2000 | Q31: 2000 | R31: 2000 | S31: 2000 | T31: 2000 | U31: 2000 | V31: 2000 | W31: 2000 | X31: 2000 | Y31: 2000 | Z31: 2000 | AA31: 2000 | AB31: 2000 | AC31: 2000
A32: ='Fixed v. Variable Costs'!A17 -> Equipment Leases | C32: 0 | D32: ='Fixed v. Variable Costs'!$B17 -> 2315.95 | E32: ='Y1 Operating Cost Allocation'!C16 -> 2500 | F32: 2500 | G32: 2500 | H32: 2500 | I32: 2500 | J32: 2500 | K32: 2500 | L32: 2500 | M32: 2500 | N32: 2500 | O32: 2500 | P32: 2500 | Q32: 2500 | R32: 2500 | S32: 2500 | T32: 2500 | U32: 2500 | V32: 2500 | W32: 2500 | X32: 2500 | Y32: 2500 | Z32: 2500 | AA32: 2500 | AB32: 2500 | AC32: 2500
A33: ='Fixed v. Variable Costs'!A18 -> Regular Maintenance & Repairs | C33: 0 | D33: ='Fixed v. Variable Costs'!$B18 -> 13923.87 | E33: ='Y1 Operating Cost Allocation'!C17 -> 19000 | F33: 19000 | G33: 19000 | H33: 19000 | I33: 19000 | J33: 19000 | K33: 19000 | L33: 19000 | M33: 19000 | N33: 19000 | O33: 19000 | P33: 19000 | Q33: 19000 | R33: 19000 | S33: 19000 | T33: 19000 | U33: 19000 | V33: 19000 | W33: 19000 | X33: 19000 | Y33: 19000 | Z33: 19000 | AA33: 19000 | AB33: 19000 | AC33: 19000
A34: ='Fixed v. Variable Costs'!A19 -> Auto & Other Rolling Stock | C34: 0 | D34: ='Fixed v. Variable Costs'!$B19 -> 0 | E34: ='Y1 Operating Cost Allocation'!C18 -> 0 | F34: 0 | G34: 0 | H34: 0 | I34: 0 | J34: 0 | K34: 0 | L34: 0 | M34: 0 | N34: 0 | O34: 0 | P34: 0 | Q34: 0 | R34: 0 | S34: 0 | T34: 0 | U34: 0 | V34: 0 | W34: 0 | X34: 0 | Y34: 0 | Z34: 0 | AA34: 0 | AB34: 0 | AC34: 0
A35: ='Fixed v. Variable Costs'!A20 -> Permits, Training | C35: 0 | D35: ='Fixed v. Variable Costs'!$B20 -> 0 | E35: ='Y1 Operating Cost Allocation'!C19 -> 0 | F35: 0 | G35: 0 | H35: 0 | I35: 0 | J35: 0 | K35: 0 | L35: 0 | M35: 0 | N35: 0 | O35: 0 | P35: 0 | Q35: 0 | R35: 0 | S35: 0 | T35: 0 | U35: 0 | V35: 0 | W35: 0 | X35: 0 | Y35: 0 | Z35: 0 | AA35: 0 | AB35: 0 | AC35: 0
A36: ='Fixed v. Variable Costs'!A21 -> Taxes and Franchise Fees | C36: 0 | D36: ='Fixed v. Variable Costs'!$B21 -> 0 | E36: ='Y1 Operating Cost Allocation'!C20 -> 0 | F36: 0 | G36: 0 | H36: 0 | I36: 0 | J36: 0 | K36: 0 | L36: 0 | M36: 0 | N36: 0 | O36: 0 | P36: 0 | Q36: 0 | R36: 0 | S36: 0 | T36: 0 | U36: 0 | V36: 0 | W36: 0 | X36: 0 | Y36: 0 | Z36: 0 | AA36: 0 | AB36: 0 | AC36: 0
A37: ='Fixed v. Variable Costs'!A22 -> Capital Replacement & Improvement | C37: 0 | D37: ='Fixed v. Variable Costs'!$B22 -> 0 | E37: ='Y1 Operating Cost Allocation'!C21 -> 0 | F37: 0 | G37: 0 | H37: 0 | I37: 0 | J37: 0 | K37: 0 | L37: 0 | M37: 0 | N37: 0 | O37: 0 | P37: 0 | Q37: 0 | R37: 0 | S37: 0 | T37: 0 | U37: 0 | V37: 0 | W37: 0 | X37: 0 | Y37: 0 | Z37: =Y37*(1+$C37) -> 0 | AA37: 0 | AB37: 0 | AC37: 0
A38: ='Fixed v. Variable Costs'!A23 -> Electricity for Operations | C38: 0 | D38: ='Fixed v. Variable Costs'!$B23 -> 14424.01 | E38: ='Y1 Operating Cost Allocation'!C22 -> 15000 | F38: 15000 | G38: 15000 | H38: 15000 | I38: 15000 | J38: 15000 | K38: 15000 | L38: 15000 | M38: 15000 | N38: 15000 | O38: 15000 | P38: 15000 | Q38: 15000 | R38: 15000 | S38: 15000 | T38: 15000 | U38: 15000 | V38: 15000 | W38: 15000 | X38: 15000 | Y38: 15000 | Z38: 15000 | AA38: 15000 | AB38: 15000 | AC38: 15000
A39: ='Fixed v. Variable Costs'!A24 -> Sludge Disposal | C39: 0 | D39: ='Fixed v. Variable Costs'!$B24 -> 20385.08 | E39: ='Y1 Operating Cost Allocation'!C23 -> 23000 | F39: 23000 | G39: 23000 | H39: 23000 | I39: 23000 | J39: 23000 | K39: 23000 | L39: 23000 | M39: 23000 | N39: 23000 | O39: 23000 | P39: 23000 | Q39: 23000 | R39: 23000 | S39: 23000 | T39: 23000 | U39: 23000 | V39: 23000 | W39: 23000 | X39: 23000 | Y39: 23000 | Z39: 23000 | AA39: 23000 | AB39: 23000 | AC39: 23000
A40: Cost Adjustments (+ or -) | D40: 0 | E40: 0 | F40: 0 | G40: 0 | H40: 0 | I40: 0 | J40: 0 | K40: 0 | L40: 0 | M40: 0 | N40: 0 | O40: 0 | P40: 0 | Q40: 0 | R40: 0 | S40: 0 | T40: 0 | U40: 0 | V40: 0 | W40: 0 | X40: 0 | Y40: 0 | Z40: 0 | AA40: 0 | AB40: 0 | AC40: 0
D41: y0 | E41: y1 | F41: y2 | G41: y3 | H41: y4 | I41: y5 | J41: y6 | K41: y7 | L41: y8 | M41: y9 | N41: y10 | O41: y11 | P41: y12 | Q41: y13 | R41: y14 | S41: y15 | T41: y16 | U41: y17 | V41: y18 | W41: y19 | X41: y20 | Y41: y21 | Z41: y22 | AA41: y23 | AB41: y24 | AC41: y25
A42: Net Operating Income | D42: =Income[y0]-Cost[y0] -> 121903.02 | E42: =Income[y1]-Cost[y1] -> 90722.32075 | F42: =Income[y2]-Cost[y2] -> 134989.9804 | G42: =Income[y3]-Cost[y3] -> 139043.7688 | H42: =Income[y4]-Cost[y4] -> 142843.0797 | I42: =Income[y5]-Cost[y5] -> 146342.6698 | J42: =Income[y6]-Cost[y6] -> 149492.1774 | K42: =Income[y7]-Cost[y7] -> 152235.5929 | L42: =Income[y8]-Cost[y8] -> 154510.6759 | M42: =Income[y9]-Cost[y9] -> 156248.3129 | N42: =Income[y10]-Cost[y10] -> 157371.8108 | O42: =Income[y11]-Cost[y11] -> 157796.1183 | P42: =Income[y12]-Cost[y12] -> 157426.9705 | Q42: =Income[y13]-Cost[y13] -> 156159.9451 | R42: =Income[y14]-Cost[y14] -> 153879.4254 | S42: =Income[y15]-Cost[y15] -> 150457.4584 | T42: =Income[y16]-Cost[y16] -> 145752.4973 | U42: =Income[y17]-Cost[y17] -> 139608.019 | V42: =Income[y18]-Cost[y18] -> 131851.001 | W42: =Income[y19]-Cost[y19] -> 122290.2465 | X42: =Income[y20]-Cost[y20] -> 110714.541 | Y42: =Income[y21]-Cost[y21] -> 96890.62309 | Z42: =Income[y22]-Cost[y22] -> 80560.95218 | AA42: =Income[y23]-Cost[y23] -> 61441.25218 | AB42: =Income[y24]-Cost[y24] -> 39217.80833 | AC42: =Income[y25]-Cost[y25] -> 13544.49302
A43: Capital Requirements | C43: Inflation Factor % | D43: =SUM(D44:D45) -> 72459 | E43: 78726.61492 | F43: 93102.0181 | G43: 102556.8049 | H43: 97561.53243 | I43: 108436.0283 | J43: 124663.0091 | K43: =SUM(K44:K45) -> 111190.5493 | L43: 92829.5407 | M43: 106053.7018 | N43: 119674.5878 | O43: 133704.1004 | P43: 148154.4983 | Q43: 163038.4082 | R43: 178368.8354 | S43: 194159.1753 | T43: 210423.2255 | U43: 227175.1972 | V43: 244429.7281 | W43: 262201.8948 | X43: 280507.2266 | Y43: 288922.4434 | Z43: 297590.1167 | AA43: 306517.8202 | AB43: 315713.3548 | AC43: =SUM(AC44:AC45) -> 325184.7554
B44: Debt Service - Current Loans | C44: 0 | D44: =SUM(CurrentLoans[Y0]) -> 72459 | E44: =SUM(CurrentLoans[Y1]) -> 68287.34 | F44: =SUM(CurrentLoans[Y2]) -> 71910.29 | G44: =SUM(CurrentLoans[Y3]) -> 70290.05 | H44: =SUM(CurrentLoans[Y4]) -> 53887.5 | I44: =SUM(CurrentLoans[Y5]) -> 53012.5 | J44: =SUM(CurrentLoans[Y6]) -> 57137.5 | K44: =SUM(CurrentLoans[Y7]) -> 31200 | L44: =SUM(CurrentLoans[Y8]) -> 0 | M44: =SUM(CurrentLoans[Y9]) -> 0 | N44: =SUM(CurrentLoans[Y10]) -> 0 | O44: =SUM(CurrentLoans[Y11]) -> 0 | P44: =SUM(CurrentLoans[Y12]) -> 0 | Q44: =SUM(CurrentLoans[Y13]) -> 0 | R44: =SUM(CurrentLoans[Y14]) -> 0 | S44: =SUM(CurrentLoans[Y15]) -> 0 | T44: =SUM(CurrentLoans[Y16]) -> 0 | U44: =SUM(CurrentLoans[Y17]) -> 0 | V44: =SUM(CurrentLoans[Y18]) -> 0 | W44: =SUM(CurrentLoans[Y19]) -> 0 | X44: =SUM(CurrentLoans[Y20]) -> 0 | Y44: =SUM(CurrentLoans[Y21]) -> 0 | Z44: =SUM(CurrentLoans[Y22]) -> 0 | AA44: =SUM(CurrentLoans[Y23]) -> 0 | AB44: =SUM(CurrentLoans[Y24]) -> 0 | AC44: =SUM(CurrentLoans[Y25]) -> 0
B45: Debt Service - Proposed Loans | C45: n/a | D45: =SUM(FutureLoans[Y0]) -> 0 | E45: =SUM(FutureLoans[Y1]) -> 10439.27492 | F45: =SUM(FutureLoans[Y2]) -> 21191.7281 | G45: =SUM(FutureLoans[Y3]) -> 32266.75486 | H45: =SUM(FutureLoans[Y4]) -> 43674.03243 | I45: =SUM(FutureLoans[Y5]) -> 55423.52833 | J45: =SUM(FutureLoans[Y6]) -> 67525.5091 | K45: =SUM(FutureLoans[Y7]) -> 79990.5493 | L45: =SUM(FutureLoans[Y8]) -> 92829.5407 | M45: =SUM(FutureLoans[Y9]) -> 106053.7018 | N45: =SUM(FutureLoans[Y10]) -> 119674.5878 | O45: =SUM(FutureLoans[Y11]) -> 133704.1004 | P45: =SUM(FutureLoans[Y12]) -> 148154.4983 | Q45: =SUM(FutureLoans[Y13]) -> 163038.4082 | R45: =SUM(FutureLoans[Y14]) -> 178368.8354 | S45: =SUM(FutureLoans[Y15]) -> 194159.1753 | T45: =SUM(FutureLoans[Y16]) -> 210423.2255 | U45: =SUM(FutureLoans[Y17]) -> 227175.1972 | V45: =SUM(FutureLoans[Y18]) -> 244429.7281 | W45: =SUM(FutureLoans[Y19]) -> 262201.8948 | X45: =SUM(FutureLoans[Y20]) -> 280507.2266 | Y45: =SUM(FutureLoans[Y21]) -> 288922.4434 | Z45: =SUM(FutureLoans[Y22]) -> 297590.1167 | AA45: =SUM(FutureLoans[Y23]) -> 306517.8202 | AB45: =SUM(FutureLoans[Y24]) -> 315713.3548 | AC45: =SUM(FutureLoans[Y25]) -> 325184.7554
A46: Year-End Balance | C46: Reported
B47: Uncommitted Year-End Balance | C47: =452052.14 -> 452052.14 | D47: =C47+SUM(D51:D53)-D48 -> 66667.92 | E47: =NetIn[y1]-E43 -> 11995.70583 | F47: =NetIn[y2]-F43+E54 -> 41887.96228 | G47: =NetIn[y3]-G43 -> 36486.96392 | H47: =NetIn[y4]-H43 -> 45281.54732 | I47: =NetIn[y5]-I43 -> 37906.6415 | J47: =NetIn[y6]-J43 -> 24829.16828 | K47: =NetIn[y7]-K43 -> 41045.04361 | L47: =NetIn[y8]-L43 -> 61681.13522 | M47: =NetIn[y9]-M43 -> 50194.6111 | N47: =NetIn[y10]-N43 -> 37697.22293 | O47: =NetIn[y11]-O43 -> 24092.01796 | P47: =NetIn[y12]-P43 -> 9272.472171 | Q47: =NetIn[y13]-Q43 -> -6878.463137 | R47: =NetIn[y14]-R43 -> -24489.40996 | S47: =NetIn[y15]-S43 -> -43701.71699 | T47: =NetIn[y16]-T43 -> -64670.7282 | U47: =NetIn[y17]-U43 -> -87567.17824 | V47: =NetIn[y18]-V43 -> -112578.7271 | W47: =NetIn[y19]-W43 -> -139911.6483 | X47: =NetIn[y20]-X43 -> -169792.6856 | Y47: =NetIn[y21]-Y43 -> -192031.8203 | Z47: =NetIn[y22]-Z43 -> -217029.1645 | AA47: =NetIn[y23]-AA43 -> -245076.568 | AB47: =NetIn[y24]-AB43 -> -276495.5465 | AC47: =NetIn[y25]-AC43 -> -311640.2624
B48: Working Capital Goal | C48: 400000 | D48: =C48 -> 400000 | E48: =$D48 -> 400000 | F48: 400000 | G48: 400000 | H48: 400000 | I48: 400000 | J48: 400000 | K48: 400000 | L48: 400000 | M48: 400000 | N48: 400000 | O48: 400000 | P48: 400000 | Q48: 400000 | R48: 400000 | S48: 400000 | T48: 400000 | U48: 400000 | V48: 400000 | W48: 400000 | X48: 400000 | Y48: 400000 | Z48: 400000 | AA48: 400000 | AB48: 400000 | AC48: 400000
A49: Transfer to Reserves | C49: % Allocation | D49: =SUM(D50:D53) -> 452052.14 | E49: =SUM(E50:E53) -> 11995.70583 | F49: =SUM(F50:F53) -> 41887.96228 | G49: 36486.96392 | H49: 45281.54732 | I49: 37906.6415 | J49: 24829.16828 | K49: =SUM(K50:K53) -> 41045.04361 | L49: 61681.13522 | M49: 50194.6111 | N49: 37697.22293 | O49: 24092.01796 | P49: 9272.472171 | Q49: -6878.463137 | R49: -24489.40996 | S49: -43701.71699 | T49: -64670.7282 | U49: -87567.17824 | V49: -112578.7271 | W49: 0 | X49: 0 | Y49: 0 | Z49: 0 | AA49: 0 | AB49: 0 | AC49: =SUM(AC50:AC53) -> 0
B50: Operating Reserve (Money Market) | C50: n/a | D50: =IF(C47<0,"Insufficient Funds",C47-SUM(D51:D53)) -> 437436.36 | E50: =IF(AND(E48>'Reserve Balances'!D5,E47>0),E48-'Reserve Balances'!D5,IF('Reserve Balances'!D5+'Balance Projection'!E47<0,"Insufficient Funds",E47-SUM(E51:E53))) -> 9929.555826 | F50: =IF(AND(F48>'Reserve Balances'!E5,F47>0),F48-'Reserve Balances'!E5,IF('Reserve Balances'!E5+'Balance Projection'!F47<0,"Insufficient Funds",F47-SUM(F51:F53))) -> 0 | G50: =IF(AND(G48>'Reserve Balances'!F5,G47>0),G48-'Reserve Balances'!F5,IF('Reserve Balances'!F5+'Balance Projection'!G47<0,"Insufficient Funds",G47-SUM(G51:G53))) -> 0 | H50: =IF(AND(H48>'Reserve Balances'!G5,H47>0),H48-'Reserve Balances'!G5,IF('Reserve Balances'!G5+'Balance Projection'!H47<0,"Insufficient Funds",H47-SUM(H51:H53))) -> 0 | I50: =IF(AND(I48>'Reserve Balances'!H5,I47>0),I48-'Reserve Balances'!H5,IF('Reserve Balances'!H5+'Balance Projection'!I47<0,"Insufficient Funds",I47-SUM(I51:I53))) -> 0 | J50: =IF(AND(J48>'Reserve Balances'!I5,J47>0),J48-'Reserve Balances'!I5,IF('Reserve Balances'!I5+'Balance Projection'!J47<0,"Insufficient Funds",J47-SUM(J51:J53))) -> 0 | K50: =IF(AND(K48>'Reserve Balances'!J5,K47>0),K48-'Reserve Balances'!J5,IF('Reserve Balances'!J5+'Balance Projection'!K47<0,"Insufficient Funds",K47-SUM(K51:K53))) -> 0 | L50: =IF(AND(L48>'Reserve Balances'!K5,L47>0),L48-'Reserve Balances'!K5,IF('Reserve Balances'!K5+'Balance Projection'!L47<0,"Insufficient Funds",L47-SUM(L51:L53))) -> 0 | M50: =IF(AND(M48>'Reserve Balances'!L5,M47>0),M48-'Reserve Balances'!L5,IF('Reserve Balances'!L5+'Balance Projection'!M47<0,"Insufficient Funds",M47-SUM(M51:M53))) -> 0 | N50: =IF(AND(N48>'Reserve Balances'!M5,N47>0),N48-'Reserve Balances'!M5,IF('Reserve Balances'!M5+'Balance Projection'!N47<0,"Insufficient Funds",N47-SUM(N51:N53))) -> 0 | O50: =IF(AND(O48>'Reserve Balances'!N5,O47>0),O48-'Reserve Balances'!N5,IF('Reserve Balances'!N5+'Balance Projection'!O47<0,"Insufficient Funds",O47-SUM(O51:O53))) -> 0 | P50: =IF(AND(P48>'Reserve Balances'!O5,P47>0),P48-'Reserve Balances'!O5,IF('Reserve Balances'!O5+'Balance Projection'!P47<0,"Insufficient Funds",P47-SUM(P51:P53))) -> 0 | Q50: =IF(AND(Q48>'Reserve Balances'!P5,Q47>0),Q48-'Reserve Balances'!P5,IF('Reserve Balances'!P5+'Balance Projection'!Q47<0,"Insufficient Funds",Q47-SUM(Q51:Q53))) -> -6878.463137 | R50: =IF(AND(R48>'Reserve Balances'!Q5,R47>0),R48-'Reserve Balances'!Q5,IF('Reserve Balances'!Q5+'Balance Projection'!R47<0,"Insufficient Funds",R47-SUM(R51:R53))) -> -24489.40996 | S50: =IF(AND(S48>'Reserve Balances'!R5,S47>0),S48-'Reserve Balances'!R5,IF('Reserve Balances'!R5+'Balance Projection'!S47<0,"Insufficient Funds",S47-SUM(S51:S53))) -> -43701.71699 | T50: =IF(AND(T48>'Reserve Balances'!S5,T47>0),T48-'Reserve Balances'!S5,IF('Reserve Balances'!S5+'Balance Projection'!T47<0,"Insufficient Funds",T47-SUM(T51:T53))) -> -64670.7282 | U50: =IF(AND(U48>'Reserve Balances'!T5,U47>0),U48-'Reserve Balances'!T5,IF('Reserve Balances'!T5+'Balance Projection'!U47<0,"Insufficient Funds",U47-SUM(U51:U53))) -> -87567.17824 | V50: =IF(AND(V48>'Reserve Balances'!U5,V47>0),V48-'Reserve Balances'!U5,IF('Reserve Balances'!U5+'Balance Projection'!V47<0,"Insufficient Funds",V47-SUM(V51:V53))) -> -112578.7271 | W50: =IF(AND(W48>'Reserve Balances'!V5,W47>0),W48-'Reserve Balances'!V5,IF('Reserve Balances'!V5+'Balance Projection'!W47<0,"Insufficient Funds",W47-SUM(W51:W53))) -> Insufficient Funds | X50: =IF(AND(X48>'Reserve Balances'!W5,X47>0),X48-'Reserve Balances'!W5,IF('Reserve Balances'!W5+'Balance Projection'!X47<0,"Insufficient Funds",X47-SUM(X51:X53))) -> Insufficient Funds | Y50: =IF(AND(Y48>'Reserve Balances'!X5,Y47>0),Y48-'Reserve Balances'!X5,IF('Reserve Balances'!X5+'Balance Projection'!Y47<0,"Insufficient Funds",Y47-SUM(Y51:Y53))) -> Insufficient Funds | Z50: =IF(AND(Z48>'Reserve Balances'!Y5,Z47>0),Z48-'Reserve Balances'!Y5,IF('Reserve Balances'!Y5+'Balance Projection'!Z47<0,"Insufficient Funds",Z47-SUM(Z51:Z53))) -> Insufficient Funds | AA50: =IF(AND(AA48>'Reserve Balances'!Z5,AA47>0),AA48-'Reserve Balances'!Z5,IF('Reserve Balances'!Z5+'Balance Projection'!AA47<0,"Insufficient Funds",AA47-SUM(AA51:AA53))) -> Insufficient Funds | AB50: =IF(AND(AB48>'Reserve Balances'!AA5,AB47>0),AB48-'Reserve Balances'!AA5,IF('Reserve Balances'!AA5+'Balance Projection'!AB47<0,"Insufficient Funds",AB47-SUM(AB51:AB53))) -> Insufficient Funds | AC50: =IF(AND(AC48>'Reserve Balances'!AB5,AC47>0),AC48-'Reserve Balances'!AB5,IF('Reserve Balances'!AB5+'Balance Projection'!AC47<0,"Insufficient Funds",AC47-SUM(AC51:AC53))) -> Insufficient Funds
B51: Sewer Equipment Reserve | C51: 0.495 | D51: 7419.95 | E51: ='Y1 Operating Cost Allocation'!C11 -> 2066.15 | F51: =IF(F$47>0,F$47*$C51,0) -> 20734.54133 | G51: =IF(G$47>0,G$47*$C51,0) -> 18061.04714 | H51: 22414.36592 | I51: 18763.78754 | J51: 12290.4383 | K51: 20317.29659 | L51: 30532.16193 | M51: 24846.3325 | N51: 18660.12535 | O51: 11925.54889 | P51: 4589.873725 | Q51: 0 | R51: 0 | S51: 0 | T51: 0 | U51: 0 | V51: 0 | W51: 0 | X51: 0 | Y51: 0 | Z51: 0 | AA51: 0 | AB51: 0 | AC51: 0
B52: Sewer Plant Repair Reserve | C52: 0.01 | D52: 160.2 | E52: 0 | F52: =IF(F$47>0,F$47*$C52,0) -> 418.8796228 | G52: 364.8696392 | H52: 452.8154732 | I52: 379.066415 | J52: 248.2916828 | K52: 410.4504361 | L52: 616.8113522 | M52: 501.946111 | N52: 376.9722293 | O52: 240.9201796 | P52: 92.72472171 | Q52: 0 | R52: 0 | S52: 0 | T52: 0 | U52: 0 | V52: 0 | W52: 0 | X52: 0 | Y52: 0 | Z52: 0 | AA52: 0 | AB52: 0 | AC52: 0
B53: Sanitary Sewer System Reserve | C53: 0.495 | D53: 7035.63 | E53: 0 | F53: 20734.54133 | G53: 18061.04714 | H53: 22414.36592 | I53: 18763.78754 | J53: 12290.4383 | K53: 20317.29659 | L53: 30532.16193 | M53: 24846.3325 | N53: 18660.12535 | O53: 11925.54889 | P53: 4589.873725 | Q53: 0 | R53: 0 | S53: 0 | T53: 0 | U53: 0 | V53: 0 | W53: 0 | X53: 0 | Y53: 0 | Z53: 0 | AA53: 0 | AB53: 0 | AC53: 0
B54: Check Row (should equal $0.00) | D54: =C47-D49 -> 0 | E54: =E47-E49 -> 0 | F54: =F47-F49 -> 0 | G54: 0 | H54: 0 | I54: 0 | J54: 0 | K54: 0 | L54: 0 | M54: 0 | N54: 0 | O54: 0 | P54: 0 | Q54: 0 | R54: 0 | S54: 0 | T54: 0 | U54: 0 | V54: 0 | W54: -139911.6483 | X54: -169792.6856 | Y54: -192031.8203 | Z54: -217029.1645 | AA54: -245076.568 | AB54: -276495.5465 | AC54: =AC47-AC49 -> -311640.2624

Sheet Reserve Balances
A1: Notes/Assumptions: Reserve information from General Ledger Trial Balance pdf for three reserves.
A2: =Client -> Example Municipality
D3: ='Balance Projection'!D4 -> 2018 | E3: ='Balance Projection'!E4 -> 2019 | F3: ='Balance Projection'!F4 -> 2020 | G3: ='Balance Projection'!G4 -> 2021 | H3: ='Balance Projection'!H4 -> 2022 | I3: ='Balance Projection'!I4 -> 2023 | J3: ='Balance Projection'!J4 -> 2024 | K3: ='Balance Projection'!K4 -> 2025 | L3: ='Balance Projection'!L4 -> 2026 | M3: ='Balance Projection'!M4 -> 2027 | N3: ='Balance Projection'!N4 -> 2028 | O3: ='Balance Projection'!O4 -> 2029 | P3: ='Balance Projection'!P4 -> 2030 | Q3: ='Balance Projection'!Q4 -> 2031 | R3: ='Balance Projection'!R4 -> 2032 | S3: ='Balance Projection'!S4 -> 2033 | T3: ='Balance Projection'!T4 -> 2034 | U3: ='Balance Projection'!U4 -> 2035 | V3: ='Balance Projection'!V4 -> 2036 | W3: ='Balance Projection'!W4 -> 2037 | X3: ='Balance Projection'!X4 -> 2038 | Y3: ='Balance Projection'!Y4 -> 2039 | Z3: ='Balance Projection'!Z4 -> 2040 | AA3: ='Balance Projection'!AA4 -> 2041 | AB3: ='Balance Projection'!AB4 -> 2042 | AC3: ='Balance Projection'!AC4 -> 2043
A4: Reserve Balances | C4: Starting Balance | D4: =SUM(D5:D8) -> 736093.84 | E4: =SUM(E5:E8) -> 748089.5458 | F4: 789977.5081 | G4: 826464.472 | H4: 871746.0193 | I4: 909652.6608 | J4: 934481.8291 | K4: =SUM(K5:K8) -> 975526.8727 | L4: 1037208.008 | M4: 1087402.619 | N4: 1125099.842 | O4: 1149191.86 | P4: 1158464.332 | Q4: 1151585.869 | R4: 1127096.459 | S4: 1083394.742 | T4: =SUM(T5:T8) -> 1018724.014 | U4: 931156.8356 | V4: 818578.1085 | W4: 711098.4163 | X4: 711098.4163 | Y4: 711098.4163 | Z4: 711098.4163 | AA4: 711098.4163 | AB4: 711098.4163 | AC4: =SUM(AC5:AC8) -> 711098.4163
B5: ='Balance Projection'!B50 -> Operating Reserve (Money Market) | C5: 0 | D5: =IF('Balance Projection'!D50="Insufficient Funds",0,'Balance Projection'!D50+C5) -> 437436.36 | E5: =IF('Balance Projection'!E50="Insufficient Funds",0,'Balance Projection'!E50+D5) -> 447365.9158 | F5: =IF('Balance Projection'!F50="Insufficient Funds",0,'Balance Projection'!F50+E5) -> 447365.9158 | G5: =IF('Balance Projection'!G50="Insufficient Funds",0,'Balance Projection'!G50+F5) -> 447365.9158 | H5: =IF('Balance Projection'!H50="Insufficient Funds",0,'Balance Projection'!H50+G5) -> 447365.9158 | I5: =IF('Balance Projection'!I50="Insufficient Funds",0,'Balance Projection'!I50+H5) -> 447365.9158 | J5: =IF('Balance Projection'!J50="Insufficient Funds",0,'Balance Projection'!J50+I5) -> 447365.9158 | K5: =IF('Balance Projection'!K50="Insufficient Funds",0,'Balance Projection'!K50+J5) -> 447365.9158 | L5: =IF('Balance Projection'!L50="Insufficient Funds",0,'Balance Projection'!L50+K5) -> 447365.9158 | M5: =IF('Balance Projection'!M50="Insufficient Funds",0,'Balance Projection'!M50+L5) -> 447365.9158 | N5: =IF('Balance Projection'!N50="Insufficient Funds",0,'Balance Projection'!N50+M5) -> 447365.9158 | O5: =IF('Balance Projection'!O50="Insufficient Funds",0,'Balance Projection'!O50+N5) -> 447365.9158 | P5: =IF('Balance Projection'!P50="Insufficient Funds",0,'Balance Projection'!P50+O5) -> 447365.9158 | Q5: =IF('Balance Projection'!Q50="Insufficient Funds",0,'Balance Projection'!Q50+P5) -> 440487.4527 | R5: =IF('Balance Projection'!R50="Insufficient Funds",0,'Balance Projection'!R50+Q5) -> 415998.0427 | S5: =IF('Balance Projection'!S50="Insufficient Funds",0,'Balance Projection'!S50+R5) -> 372296.3257 | T5: =IF('Balance Projection'!T50="Insufficient Funds",0,'Balance Projection'!T50+S5) -> 307625.5975 | U5: =IF('Balance Projection'!U50="Insufficient Funds",0,'Balance Projection'!U50+T5) -> 220058.4193 | V5: =IF('Balance Projection'!V50="Insufficient Funds",0,'Balance Projection'!V50+U5) -> 107479.6922 | W5: =IF('Balance Projection'!W50="Insufficient Funds",0,'Balance Projection'!W50+V5) -> 0 | X5: =IF('Balance Projection'!X50="Insufficient Funds",0,'Balance Projection'!X50+W5) -> 0 | Y5: =IF('Balance Projection'!Y50="Insufficient Funds",0,'Balance Projection'!Y50+X5) -> 0 | Z5: =IF('Balance Projection'!Z50="Insufficient Funds",0,'Balance Projection'!Z50+Y5) -> 0 | AA5: =IF('Balance Projection'!AA50="Insufficient Funds",0,'Balance Projection'!AA50+Z5) -> 0 | AB5: =IF('Balance Projection'!AB50="Insufficient Funds",0,'Balance Projection'!AB50+AA5) -> 0 | AC5: =IF('Balance Projection'!AC50="Insufficient Funds",0,'Balance Projection'!AC50+AB5) -> 0
B6: ='Balance Projection'!B51 -> Sewer Equipment Reserve | C6: 35949.88 | D6: =C6+'Balance Projection'!D51 -> 43369.83 | E6: =D6+'Balance Projection'!E51 -> 45435.98 | F6: =E6+'Balance Projection'!F51 -> 66170.52133 | G6: =F6+'Balance Projection'!G51 -> 84231.56847 | H6: =G6+'Balance Projection'!H51 -> 106645.9344 | I6: =H6+'Balance Projection'!I51 -> 125409.7219 | J6: =I6+'Balance Projection'!J51 -> 137700.1602 | K6: =J6+'Balance Projection'!K51 -> 158017.4568 | L6: =K6+'Balance Projection'!L51 -> 188549.6188 | M6: =L6+'Balance Projection'!M51 -> 213395.9513 | N6: =M6+'Balance Projection'!N51 -> 232056.0766 | O6: =N6+'Balance Projection'!O51 -> 243981.6255 | P6: =O6+'Balance Projection'!P51 -> 248571.4992 | Q6: =P6+'Balance Projection'!Q51 -> 248571.4992 | R6: =Q6+'Balance Projection'!R51 -> 248571.4992 | S6: =R6+'Balance Projection'!S51 -> 248571.4992 | T6: =S6+'Balance Projection'!T51 -> 248571.4992 | U6: =T6+'Balance Projection'!U51 -> 248571.4992 | V6: =U6+'Balance Projection'!V51 -> 248571.4992 | W6: =V6+'Balance Projection'!W51 -> 248571.4992 | X6: =W6+'Balance Projection'!X51 -> 248571.4992 | Y6: =X6+'Balance Projection'!Y51 -> 248571.4992 | Z6: =Y6+'Balance Projection'!Z51 -> 248571.4992 | AA6: =Z6+'Balance Projection'!AA51 -> 248571.4992 | AB6: =AA6+'Balance Projection'!AB51 -> 248571.4992 | AC6: =AB6+'Balance Projection'!AC51 -> 248571.4992
B7: ='Balance Projection'!B52 -> Sewer Plant Repair Reserve | C7: 200961.98 | D7: =C7+'Balance Projection'!D52 -> 201122.18 | E7: =D7+'Balance Projection'!E52 -> 201122.18 | F7: =E7+'Balance Projection'!F52 -> 201541.0596 | G7: =F7+'Balance Projection'!G52 -> 201905.9293 | H7: =G7+'Balance Projection'!H52 -> 202358.7447 | I7: =H7+'Balance Projection'!I52 -> 202737.8112 | J7: =I7+'Balance Projection'!J52 -> 202986.1028 | K7: =J7+'Balance Projection'!K52 -> 203396.5533 | L7: =K7+'Balance Projection'!L52 -> 204013.3646 | M7: =L7+'Balance Projection'!M52 -> 204515.3107 | N7: =M7+'Balance Projection'!N52 -> 204892.283 | O7: =N7+'Balance Projection'!O52 -> 205133.2031 | P7: =O7+'Balance Projection'!P52 -> 205225.9279 | Q7: =P7+'Balance Projection'!Q52 -> 205225.9279 | R7: =Q7+'Balance Projection'!R52 -> 205225.9279 | S7: =R7+'Balance Projection'!S52 -> 205225.9279 | T7: =S7+'Balance Projection'!T52 -> 205225.9279 | U7: =T7+'Balance Projection'!U52 -> 205225.9279 | V7: =U7+'Balance Projection'!V52 -> 205225.9279 | W7: =V7+'Balance Projection'!W52 -> 205225.9279 | X7: =W7+'Balance Projection'!X52 -> 205225.9279 | Y7: =X7+'Balance Projection'!Y52 -> 205225.9279 | Z7: =Y7+'Balance Projection'!Z52 -> 205225.9279 | AA7: =Z7+'Balance Projection'!AA52 -> 205225.9279 | AB7: =AA7+'Balance Projection'!AB52 -> 205225.9279 | AC7: =AB7+'Balance Projection'!AC52 -> 205225.9279
B8: ='Balance Projection'!B53 -> Sanitary Sewer System Reserve | C8: 47129.84 | D8: =C8+'Balance Projection'!D53 -> 54165.47 | E8: =D8+'Balance Projection'!E53 -> 54165.47 | F8: =E8+'Balance Projection'!F53 -> 74900.01133 | G8: =F8+'Balance Projection'!G53 -> 92961.05847 | H8: =G8+'Balance Projection'!H53 -> 115375.4244 | I8: =H8+'Balance Projection'!I53 -> 134139.2119 | J8: =I8+'Balance Projection'!J53 -> 146429.6502 | K8: =J8+'Balance Projection'!K53 -> 166746.9468 | L8: =K8+'Balance Projection'!L53 -> 197279.1088 | M8: =L8+'Balance Projection'!M53 -> 222125.4413 | N8: =M8+'Balance Projection'!N53 -> 240785.5666 | O8: =N8+'Balance Projection'!O53 -> 252711.1155 | P8: =O8+'Balance Projection'!P53 -> 257300.9892 | Q8: =P8+'Balance Projection'!Q53 -> 257300.9892 | R8: =Q8+'Balance Projection'!R53 -> 257300.9892 | S8: =R8+'Balance Projection'!S53 -> 257300.9892 | T8: =S8+'Balance Projection'!T53 -> 257300.9892 | U8: =T8+'Balance Projection'!U53 -> 257300.9892 | V8: =U8+'Balance Projection'!V53 -> 257300.9892 | W8: =V8+'Balance Projection'!W53 -> 257300.9892 | X8: =W8+'Balance Projection'!X53 -> 257300.9892 | Y8: =X8+'Balance Projection'!Y53 -> 257300.9892 | Z8: =Y8+'Balance Projection'!Z53 -> 257300.9892 | AA8: =Z8+'Balance Projection'!AA53 -> 257300.9892 | AB8: =AA8+'Balance Projection'!AB53 -> 257300.9892 | AC8: =AB8+'Balance Projection'!AC53 -> 257300.9892

Sheet Metrics
A1: =Client -> Example Municipality
A2: Financial Capacity Indicators Projection
A3: Description | C3: Growth Rate % | D3: ='Balance Projection'!D3 -> FY | E3: ='Balance Projection'!E3 -> FY | F3: ='Balance Projection'!F3 -> FY | G3: ='Balance Projection'!G3 -> FY | H3: ='Balance Projection'!H3 -> FY | I3: ='Balance Projection'!I3 -> FY | J3: ='Balance Projection'!J3 -> FY | K3: ='Balance Projection'!K3 -> FY | L3: ='Balance Projection'!L3 -> FY | M3: ='Balance Projection'!M3 -> FY | N3: ='Balance Projection'!N3 -> FY | O3: ='Balance Projection'!O3 -> FY | P3: ='Balance Projection'!P3 -> FY | Q3: ='Balance Projection'!Q3 -> FY | R3: ='Balance Projection'!R3 -> FY | S3: ='Balance Projection'!S3 -> FY | T3: ='Balance Projection'!T3 -> FY | U3: ='Balance Projection'!U3 -> FY | V3: ='Balance Projection'!V3 -> FY | W3: ='Balance Projection'!W3 -> FY | X3: ='Balance Projection'!X3 -> FY | Y3: ='Balance Projection'!Y3 -> FY | Z3: ='Balance Projection'!Z3 -> FY | AA3: ='Balance Projection'!AA3 -> FY | AB3: ='Balance Projection'!AB3 -> FY | AC3: ='Balance Projection'!AC3 -> FY
D4: ='Balance Projection'!D4 -> 2018 | E4: ='Balance Projection'!E4 -> 2019 | F4: ='Balance Projection'!F4 -> 2020 | G4: ='Balance Projection'!G4 -> 2021 | H4: ='Balance Projection'!H4 -> 2022 | I4: ='Balance Projection'!I4 -> 2023 | J4: ='Balance Projection'!J4 -> 2024 | K4: ='Balance Projection'!K4 -> 2025 | L4: ='Balance Projection'!L4 -> 2026 | M4: ='Balance Projection'!M4 -> 2027 | N4: ='Balance Projection'!N4 -> 2028 | O4: ='Balance Projection'!O4 -> 2029 | P4: ='Balance Projection'!P4 -> 2030 | Q4: ='Balance Projection'!Q4 -> 2031 | R4: ='Balance Projection'!R4 -> 2032 | S4: ='Balance Projection'!S4 -> 2033 | T4: ='Balance Projection'!T4 -> 2034 | U4: ='Balance Projection'!U4 -> 2035 | V4: ='Balance Projection'!V4 -> 2036 | W4: ='Balance Projection'!W4 -> 2037 | X4: ='Balance Projection'!X4 -> 2038 | Y4: ='Balance Projection'!Y4 -> 2039 | Z4: ='Balance Projection'!Z4 -> 2040 | AA4: ='Balance Projection'!AA4 -> 2041 | AB4: ='Balance Projection'!AB4 -> 2042 | AC4: ='Balance Projection'!AC4 -> 2043
A5: Annual Median Household Income (AMHI) | C5: 0.02 | D5: =ReadMe!M8 -> 58333 | E5: =((D5*(1+$C$5))) -> 59499.66 | F5: 60689.6532 | G5: 61903.44626 | H5: 63141.51519 | I5: 64404.34549 | J5: 65692.4324 | K5: =((J5*(1+$C$5))) -> 67006.28105 | L5: =((K5*(1+$C$5))) -> 68346.40667 | M5: =((L5*(1+$C$5))) -> 69713.33481 | N5: =((M5*(1+$C$5))) -> 71107.6015 | O5: =((N5*(1+$C$5))) -> 72529.75353 | P5: =((O5*(1+$C$5))) -> 73980.3486 | Q5: =((P5*(1+$C$5))) -> 75459.95557 | R5: =((Q5*(1+$C$5))) -> 76969.15469 | S5: =((R5*(1+$C$5))) -> 78508.53778 | T5: =((S5*(1+$C$5))) -> 80078.70854 | U5: =((T5*(1+$C$5))) -> 81680.28271 | V5: =((U5*(1+$C$5))) -> 83313.88836 | W5: =((V5*(1+$C$5))) -> 84980.16613 | X5: =((W5*(1+$C$5))) -> 86679.76945 | Y5: =((X5*(1+$C$5))) -> 88413.36484 | Z5: =((Y5*(1+$C$5))) -> 90181.63214 | AA5: =((Z5*(1+$C$5))) -> 91985.26478 | AB5: =((AA5*(1+$C$5))) -> 93824.97007 | AC5: 95701.46948
A6: Annual Bill for Residential/Exempt Customer | D6: =Y0_Annual_Rate -> 330 | E6: =D6*(1+'Balance Projection'!E7) -> 339.9 | F6: =E6*(1+'Balance Projection'!F7) -> 350.097 | G6: =F6*(1+'Balance Projection'!G7) -> 360.59991 | H6: =G6*(1+'Balance Projection'!H7) -> 371.4179073 | I6: =H6*(1+'Balance Projection'!I7) -> 382.5604445 | J6: =I6*(1+'Balance Projection'!J7) -> 394.0372579 | K6: =J6*(1+'Balance Projection'!K7) -> 405.8583756 | L6: =K6*(1+'Balance Projection'!L7) -> 418.0341269 | M6: =L6*(1+'Balance Projection'!M7) -> 430.5751507 | N6: =M6*(1+'Balance Projection'!N7) -> 443.4924052 | O6: =N6*(1+'Balance Projection'!O7) -> 456.7971773 | P6: =O6*(1+'Balance Projection'!P7) -> 470.5010927 | Q6: =P6*(1+'Balance Projection'!Q7) -> 484.6161254 | R6: =Q6*(1+'Balance Projection'!R7) -> 499.1546092 | S6: =R6*(1+'Balance Projection'!S7) -> 514.1292475 | T6: =S6*(1+'Balance Projection'!T7) -> 529.5531249 | U6: =T6*(1+'Balance Projection'!U7) -> 545.4397186 | V6: =U6*(1+'Balance Projection'!V7) -> 561.8029102 | W6: =V6*(1+'Balance Projection'!W7) -> 578.6569975 | X6: =W6*(1+'Balance Projection'!X7) -> 596.0167074 | Y6: =X6*(1+'Balance Projection'!Y7) -> 613.8972087 | Z6: =Y6*(1+'Balance Projection'!Z7) -> 632.3141249 | AA6: =Z6*(1+'Balance Projection'!AA7) -> 651.2835487 | AB6: =AA6*(1+'Balance Projection'!AB7) -> 670.8220551 | AC6: =AB6*(1+'Balance Projection'!AC7) -> 690.9467168
A7: Affordability Index for Residential/Exempt Customer | D7: =D6/D5 -> 0.005657175184 | E7: =E6/E5 -> 0.005712637686 | F7: 0.005768643937 | G7: 0.00582519927 | H7: 0.005882309067 | I7: 0.005939978764 | J7: 0.00599821385 | K7: =K6/K5 -> 0.006057019868 | L7: 0.006116402415 | M7: 0.006176367145 | N7: 0.006236919764 | O7: 0.006298066036 | P7: 0.006359811782 | Q7: 0.006422162878 | R7: 0.006485125259 | S7: 0.006548704918 | T7: 0.006612907908 | U7: 0.006677740338 | V7: 0.006743208381 | W7: 0.006809318267 | X7: =X6/X5 -> 0.006876076289 | Y7: 0.006943488802 | Z7: 0.007011562221 | AA7: 0.007080303027 | AB7: 0.007149717763 | AC7: =AC6/AC5 -> 0.007219813035
B8: Percent of AMHI needed by a system user to pay one's bill. Average residential rates should not exceed 1.5 to 2.0% of AMHI if they are to be considered affordable.
A9: Operating Ratio | D9: =Income[y0]/Cost[y0] -> 1.268122528 | E9: =Income[y1]/Cost[y1] -> 1.181030805 | F9: =Income[y2]/Cost[y2] -> 1.284410195 | G9: =Income[y3]/Cost[y3] -> 1.284420938 | H9: =Income[y4]/Cost[y4] -> 1.283472727 | I9: =Income[y5]/Cost[y5] -> 1.281532723 | J9: =Income[y6]/Cost[y6] -> 1.278569685 | K9: =Income[y7]/Cost[y7] -> 1.274554343 | L9: =Income[y8]/Cost[y8] -> 1.269459796 | M9: =Income[y9]/Cost[y9] -> 1.263261924 | N9: =Income[y10]/Cost[y10] -> 1.255939817 | O9: =Income[y11]/Cost[y11] -> 1.247476203 | P9: =Income[y12]/Cost[y12] -> 1.23785789 | Q9: =Income[y13]/Cost[y13] -> 1.227076182 | R9: =Income[y14]/Cost[y14] -> 1.215127295 | S9: =Income[y15]/Cost[y15] -> 1.202012736 | T9: =Income[y16]/Cost[y16] -> 1.187739645 | U9: =Income[y17]/Cost[y17] -> 1.172321099 | V9: =Income[y18]/Cost[y18] -> 1.155776349 | W9: =Income[y19]/Cost[y19] -> 1.138130992 | X9: =Income[y20]/Cost[y20] -> 1.119417074 | Y9: =Income[y21]/Cost[y21] -> 1.099673099 | Z9: =Income[y22]/Cost[y22] -> 1.078943952 | AA9: =Income[y23]/Cost[y23] -> 1.057280729 | AB9: =Income[y24]/Cost[y24] -> 1.03474047 | AC9: =Income[y25]/Cost[y25] -> 1.011385794
A10: Operating Ratio Goal | D10: 1.3 | E10: 1.3 | F10: 1.3 | G10: 1.3 | H10: 1.3 | I10: 1.3 | J10: 1.3 | K10: 1.3 | L10: 1.3 | M10: 1.3 | N10: 1.3 | O10: 1.3 | P10: 1.3 | Q10: 1.3 | R10: 1.3 | S10: 1.3 | T10: 1.3 | U10: 1.3 | V10: 1.3 | W10: 1.3 | X10: 1.3 | Y10: 1.3 | Z10: 1.3 | AA10: 1.3 | AB10: 1.3 | AC10: 1.3
B11: 1.0 is break even for operations. Below 1.0 and you are operating in the "red." Generally, the operating ratio should be at least 1.15 for larger systems and 1.30 or more for smaller systems.)
A12: Coverage Ratio | D12: =IF(SUM(CurrentLoans[Y0],FutureLoans[Y0])=0,"NA",NetIn[y0]/SUM(CurrentLoans[Y0],FutureLoans[Y0])) -> 1.682372376 | E12: =IF(SUM(CurrentLoans[Y1],FutureLoans[Y1])=0,"NA",NetIn[y1]/SUM(CurrentLoans[Y1],FutureLoans[Y1])) -> 1.15237167 | F12: =IF(SUM(CurrentLoans[Y2],FutureLoans[Y2])=0,"NA",NetIn[y2]/SUM(CurrentLoans[Y2],FutureLoans[Y2])) -> 1.449914654 | G12: =IF(SUM(CurrentLoans[Y3],FutureLoans[Y3])=0,"NA",NetIn[y3]/SUM(CurrentLoans[Y3],FutureLoans[Y3])) -> 1.355773212 | H12: =IF(SUM(CurrentLoans[Y4],FutureLoans[Y4])=0,"NA",NetIn[y4]/SUM(CurrentLoans[Y4],FutureLoans[Y4])) -> 1.464133211 | I12: =IF(SUM(CurrentLoans[Y5],FutureLoans[Y5])=0,"NA",NetIn[y5]/SUM(CurrentLoans[Y5],FutureLoans[Y5])) -> 1.349576078 | J12: =IF(SUM(CurrentLoans[Y6],FutureLoans[Y6])=0,"NA",NetIn[y6]/SUM(CurrentLoans[Y6],FutureLoans[Y6])) -> 1.199170295 | K12: =IF(SUM(CurrentLoans[Y7],FutureLoans[Y7])=0,"NA",NetIn[y7]/SUM(CurrentLoans[Y7],FutureLoans[Y7])) -> 1.369141477 | L12: =IF(SUM(CurrentLoans[Y8],FutureLoans[Y8])=0,"NA",NetIn[y8]/SUM(CurrentLoans[Y8],FutureLoans[Y8])) -> 1.664455891 | M12: =IF(SUM(CurrentLoans[Y9],FutureLoans[Y9])=0,"NA",NetIn[y9]/SUM(CurrentLoans[Y9],FutureLoans[Y9])) -> 1.473294286 | N12: =IF(SUM(CurrentLoans[Y10],FutureLoans[Y10])=0,"NA",NetIn[y10]/SUM(CurrentLoans[Y10],FutureLoans[Y10])) -> 1.314997725 | O12: =IF(SUM(CurrentLoans[Y11],FutureLoans[Y11])=0,"NA",NetIn[y11]/SUM(CurrentLoans[Y11],FutureLoans[Y11])) -> 1.180189073 | P12: =IF(SUM(CurrentLoans[Y12],FutureLoans[Y12])=0,"NA",NetIn[y12]/SUM(CurrentLoans[Y12],FutureLoans[Y12])) -> 1.062586504 | Q12: =IF(SUM(CurrentLoans[Y13],FutureLoans[Y13])=0,"NA",NetIn[y13]/SUM(CurrentLoans[Y13],FutureLoans[Y13])) -> 0.9578107808 | R12: =IF(SUM(CurrentLoans[Y14],FutureLoans[Y14])=0,"NA",NetIn[y14]/SUM(CurrentLoans[Y14],FutureLoans[Y14])) -> 0.8627035384 | S12: =IF(SUM(CurrentLoans[Y15],FutureLoans[Y15])=0,"NA",NetIn[y15]/SUM(CurrentLoans[Y15],FutureLoans[Y15])) -> 0.7749180954 | T12: =IF(SUM(CurrentLoans[Y16],FutureLoans[Y16])=0,"NA",NetIn[y16]/SUM(CurrentLoans[Y16],FutureLoans[Y16])) -> 0.6926635449 | U12: =IF(SUM(CurrentLoans[Y17],FutureLoans[Y17])=0,"NA",NetIn[y17]/SUM(CurrentLoans[Y17],FutureLoans[Y17])) -> 0.614539002 | V12: =IF(SUM(CurrentLoans[Y18],FutureLoans[Y18])=0,"NA",NetIn[y18]/SUM(CurrentLoans[Y18],FutureLoans[Y18])) -> 0.5394229336 | W12: =IF(SUM(CurrentLoans[Y19],FutureLoans[Y19])=0,"NA",NetIn[y19]/SUM(CurrentLoans[Y19],FutureLoans[Y19])) -> 0.4663972647 | X12: =IF(SUM(CurrentLoans[Y20],FutureLoans[Y20])=0,"NA",NetIn[y20]/SUM(CurrentLoans[Y20],FutureLoans[Y20])) -> 0.3946940775 | Y12: =IF(SUM(CurrentLoans[Y21],FutureLoans[Y21])=0,"NA",NetIn[y21]/SUM(CurrentLoans[Y21],FutureLoans[Y21])) -> 0.3353516672 | Z12: =IF(SUM(CurrentLoans[Y22],FutureLoans[Y22])=0,"NA",NetIn[y22]/SUM(CurrentLoans[Y22],FutureLoans[Y22])) -> 0.2707111146 | AA12: =IF(SUM(CurrentLoans[Y23],FutureLoans[Y23])=0,"NA",NetIn[y23]/SUM(CurrentLoans[Y23],FutureLoans[Y23])) -> 0.2004492011 | AB12: =IF(SUM(CurrentLoans[Y24],FutureLoans[Y24])=0,"NA",NetIn[y24]/SUM(CurrentLoans[Y24],FutureLoans[Y24])) -> 0.1242196687 | AC12: =IF(SUM(CurrentLoans[Y25],FutureLoans[Y25])=0,"NA",NetIn[y25]/SUM(CurrentLoans[Y25],FutureLoans[Y25])) -> 0.04165168506
A13: Coverage Ratio Goal | D13: 1.25 | E13: 1.25 | F13: 1.25 | G13: 1.25 | H13: 1.25 | I13: 1.25 | J13: 1.25 | K13: 1.25 | L13: 1.25 | M13: 1.25 | N13: 1.25 | O13: 1.25 | P13: 1.25 | Q13: 1.25 | R13: 1.25 | S13: 1.25 | T13: 1.25 | U13: 1.25 | V13: 1.25 | W13: 1.25 | X13: 1.25 | Y13: 1.25 | Z13: 1.25 | AA13: 1.25 | AB13: 1.25 | AC13: 1.25
B14: Applies only if you have debt service. 1.0 is break even. Generally, the coverage ratio should be at least 1.25.

Sheet Rate Block Statistics
A1: **hide this column when printing sheet | B1: Notes/Assumptions: User must input bin limits in column A (hidden) to update customer classes to be included.
B3: Rate Block Statistics
B4: FY2018 | K4: Revised Rate
A5: Bin Limits | B5: =_xlfn.CONCAT("Customer Class (",UOM,"/",BP,")") -> Customer Class (gal/Quarter) | C5: =_xlfn.CONCAT("Average Usage (",UOM,"/",BP,")") -> Average Usage (gal/Quarter) | D5: # of Accounts | E5: % of Accounts | F5: =_xlfn.CONCAT("Total Usage (",UOM,")") -> Total Usage (gal) | G5: % of Usage* | H5: Total Revenue | I5: % of Y0 Revenue | J5: Bill for Average Usage | K5: =_xlfn.CONCAT("Total Usage (",UOM,")") -> Total Usage (gal) | L5: # of Accounts | M5: % of Accounts | N5: % of Usage | O5: Total Revenue | P5: % of Y1 Revenue | Q5: Bill for Average Usage | R5: Projected Dollar Change in Bill | S5: Projected Percent Change in Bill
A6: 0
A7: 15000 | B7: =A6 & " - " & A7 -> 0 - 15000 | C7: ='Y0 Metered Data'!Z3 -> 15000 | D7: =COUNT('Y0 Calculated Revenue'!AI7:AI13000) -> 11 | E7: =D7/$D$15 -> 0.007161784717 | F7: ='Y0 Metered Data'!R3 -> 660000 | G7: =F7/$F$15 -> 0.04538655939 | H7: ='Y0 Calculated Revenue'!AA2 -> 3630 | I7: =H7/$H$15 -> 0.006317146602 | J7: =Y0_Rate*(C7/15000) -> 82.5 | K7: ='Y1 Calculated Revenue'!AA2 -> 660000 | L7: =D7 -> 11 | M7: =E7 -> 0.007161784717 | N7: =K7/$K$15 -> 0.04538655939 | O7: ='Y1 Calculated Revenue'!AI3 -> 3738.9 | P7: =O7/$O$15 -> 0.006317146602 | Q7: =(C7/15000)*Y1_Rate -> 84.975 | R7: =(Q7-J7) -> 2.475 | S7: =R7/J7 -> 0.03
A8: 30000 | B8: 15000 - 30000 | C8: ='Y0 Metered Data'!AA3 -> 23512.5 | D8: =COUNT('Y0 Calculated Revenue'!AJ7:AJ13000) -> 7 | E8: 0.004557499365 | F8: ='Y0 Metered Data'!S3 -> 658350 | G8: =F8/$F$15 -> 0.04527309299 | H8: ='Y0 Calculated Revenue'!AB2 -> 3620.925 | I8: 0.006301353736 | J8: 129.31875 | K8: ='Y1 Calculated Revenue'!AB2 -> 658350 | L8: 7 | M8: 0.004557499365 | N8: 0.04527309299 | O8: ='Y1 Calculated Revenue'!AJ3 -> 3729.55275 | P8: 0.006301353736 | Q8: 133.1983125 | R8: 3.8795625 | S8: 0.03
A9: 60000 | B9: 30000 - 60000 | C9: ='Y0 Metered Data'!AB3 -> 41912.5 | D9: =COUNT('Y0 Calculated Revenue'!AK7:AK13000) -> 12 | E9: 0.007812856055 | F9: ='Y0 Metered Data'!T3 -> 2011800 | G9: 0.1383464851 | H9: ='Y0 Calculated Revenue'!AC2 -> 11064.9 | I9: 0.01925581142 | J9: 230.51875 | K9: ='Y1 Calculated Revenue'!AC2 -> 2011800 | L9: 12 | M9: 0.007812856055 | N9: 0.1383464851 | O9: ='Y1 Calculated Revenue'!AK3 -> 11396.847 | P9: 0.01925581142 | Q9: 237.4343125 | R9: 6.9155625 | S9: 0.03
A10: 100000 | B10: 60000 - 100000 | C10: ='Y0 Metered Data'!AC3 -> 76293.75 | D10: =COUNT('Y0 Calculated Revenue'!AL7:AL13000) -> 2 | E10: 0.001302142676 | F10: ='Y0 Metered Data'!U3 -> 610350 | G10: 0.04197225231 | H10: ='Y0 Calculated Revenue'!AD2 -> 3356.925 | I10: 0.005841924892 | J10: 419.615625 | K10: ='Y1 Calculated Revenue'!AD2 -> 610350 | L10: 2 | M10: 0.001302142676 | N10: 0.04197225231 | O10: ='Y1 Calculated Revenue'!AL3 -> 3457.63275 | P10: 0.005841924892 | Q10: 432.2040938 | R10: 12.58846875 | S10: 0.03
A11: 180000 | B11: 100000 - 180000 | C11: ='Y0 Metered Data'!AD3 -> 131850 | D11: =COUNT('Y0 Calculated Revenue'!AM7:AM13000) -> 1 | E11: 0.0006510713379 | F11: ='Y0 Metered Data'!V3 -> 527400 | G11: 0.036267987 | H11: ='Y0 Calculated Revenue'!AE2 -> 2900.7 | I11: 0.005047974421 | J11: 725.175 | K11: ='Y1 Calculated Revenue'!AE2 -> 527400 | L11: 1 | M11: 0.0006510713379 | N11: 0.036267987 | O11: ='Y1 Calculated Revenue'!AM3 -> 2987.721 | P11: 0.005047974421 | Q11: 746.93025 | R11: 21.75525 | S11: 0.03
A12: 1000000 | B12: 180000 - 1000000 | C12: ='Y0 Metered Data'!AE3 -> 468637.5 | D12: =COUNT('Y0 Calculated Revenue'!AN7:AN13000) -> 3 | E12: 0.001953214014 | F12: ='Y0 Metered Data'!W3 -> 5623650 | G12: 0.3867244314 | H12: ='Y0 Calculated Revenue'!AF2 -> 30930.075 | I12: 0.0538263962 | J12: 2577.50625 | K12: ='Y1 Calculated Revenue'!AF2 -> 5623650 | L12: 3 | M12: 0.001953214014 | N12: 0.3867244314 | O12: ='Y1 Calculated Revenue'!AN3 -> 31857.97725 | P12: 0.0538263962 | Q12: 2654.831438 | R12: 77.3251875 | S12: 0.03
B13: ="> " & A12 -> > 1000000 | C13: ='Y0 Metered Data'!AF3 -> 1112550 | D13: =COUNT('Y0 Calculated Revenue'!AO7:AO13000) -> 1 | E13: 0.0006510713379 | F13: ='Y0 Metered Data'!X3 -> 4450200 | G13: 0.3060291918 | H13: ='Y0 Calculated Revenue'!AG2 -> 24476.1 | I13: 0.04259479668 | J13: 6119.025 | K13: ='Y1 Calculated Revenue'!AG2 -> 4450200 | L13: 1 | M13: 0.0006510713379 | N13: 0.3060291918 | O13: ='Y1 Calculated Revenue'!AO3 -> 25210.383 | P13: 0.04259479668 | Q13: 6302.59575 | R13: 183.57075 | S13: 0.03
B14: Residential/ Exempt | C14: n/a | D14: =SUM(Nonmeter[Number of Accounts]) -> 1498.93 | E14: 0.9759103605 | F14: n/a | G14: n/a | H14: =SUM(Nonmeter[Calculated Yearly Revenue]) -> 494646.9 | I14: 0.8608145961 | J14: n/a | K14: =C14 -> n/a | L14: =D14 -> 1498.93 | M14: 0.9759103605 | N14: n/a | O14: ='Balance Projection'!E15 -> 509486.307 | P14: 0.8608145961 | Q14: n/a | R14: n/a | S14: n/a
B15: Total | D15: =SUM(D6:D14) -> 1535.93 | E15: 1 | F15: 14541750 | G15: 1 | H15: 574626.525 | I15: 1 | K15: =SUM(K6:K14) -> 14541750 | L15: 1535.93 | M15: 1 | N15: 1 | O15: 591865.3208 | P15: 1
B17: Commercial User Metered Data Summary (Y0)
B18: =CONCATENATE("Quarterly Data (",ReadMe!M4,")") -> Quarterly Data (gal)
B19: Usage | C19: Overall | D19: ='Y0 Calculated Revenue'!C6 -> June2017 | E19: ='Y0 Calculated Revenue'!D6 -> 2017-07-01 | F19: ='Y0 Calculated Revenue'!E6 -> 2017-08-01 | G19: ='Y0 Calculated Revenue'!F6 -> 2017-09-01 | H19: ='Y0 Calculated Revenue'!G6 -> 2017-10-02 | I19: ='Y0 Calculated Revenue'!H6 -> 2017-11-02 | J19: ='Y0 Calculated Revenue'!I6 -> 2017-12-03 | K19: ='Y0 Calculated Revenue'!J6 -> 2018-01-03 | L19: ='Y0 Calculated Revenue'!K6 -> 2018-02-03 | M19: ='Y0 Calculated Revenue'!L6 -> 2018-03-06 | N19: ='Y0 Calculated Revenue'!M6 -> 2018-04-06
B20: Average Usage | C20: =AVERAGEIF('Y0 Metered Data'!O$8:O$1048576,">0") -> 98255.06757 | D20: =AVERAGEIF('Y0 Metered Data'!C$8:C$1048576,">0") -> 94366.21622 | G20: =AVERAGEIF('Y0 Metered Data'!F$8:F$1048576,">0") -> 98935.13514 | J20: =AVERAGEIF('Y0 Metered Data'!I$8:I$1048576,">0") -> 93364.86486 | M20: =AVERAGEIF('Y0 Metered Data'!L$8:L$1048576,">0") -> 106354.0541
B21: Minimum | C21: 0 | D21: 0 | G21: 0 | J21: 0 | M21: 2
B22: 10th percentile | C22: =PERCENTILE('Y0 Metered Data'!O$8:O$1048576,0.1) -> 15000 | D22: =PERCENTILE('Y0 Metered Data'!C$8:C$1048576,0.1) -> 15000 | G22: =PERCENTILE('Y0 Metered Data'!F$8:F$1048576,0.1) -> 15000 | J22: =PERCENTILE('Y0 Metered Data'!I$8:I$1048576,0.1) -> 15000 | M22: =PERCENTILE('Y0 Metered Data'!L$8:L$1048576,0.1) -> 15000
B23: 25th percentile | C23: =PERCENTILE('Y0 Metered Data'!O$8:O$1048576,0.25) -> 15000 | D23: =PERCENTILE('Y0 Metered Data'!C$8:C$1048576,0.25) -> 15000 | G23: =PERCENTILE('Y0 Metered Data'!F$8:F$1048576,0.25) -> 15000 | J23: =PERCENTILE('Y0 Metered Data'!I$8:I$1048576,0.25) -> 15000 | M23: =PERCENTILE('Y0 Metered Data'!L$8:L$1048576,0.25) -> 15000
B24: Median | C24: =PERCENTILE('Y0 Metered Data'!O$8:O$1048576,0.5) -> 31725 | D24: =PERCENTILE('Y0 Metered Data'!C$8:C$1048576,0.5) -> 30600 | G24: =PERCENTILE('Y0 Metered Data'!F$8:F$1048576,0.5) -> 28200 | J24: =PERCENTILE('Y0 Metered Data'!I$8:I$1048576,0.5) -> 29850 | M24: =PERCENTILE('Y0 Metered Data'!L$8:L$1048576,0.5) -> 29850
B25: 75th percentile | C25: =PERCENTILE('Y0 Metered Data'!O$8:O$1048576,0.75) -> 54300 | D25: =PERCENTILE('Y0 Metered Data'!C$8:C$1048576,0.75) -> 60000 | G25: =PERCENTILE('Y0 Metered Data'!F$8:F$1048576,0.75) -> 52800 | J25: =PERCENTILE('Y0 Metered Data'!I$8:I$1048576,0.75) -> 40950 | M25: =PERCENTILE('Y0 Metered Data'!L$8:L$1048576,0.75) -> 46500
B26: 90th percentile | C26: =PERCENTILE('Y0 Metered Data'!O$8:O$1048576,0.9) -> 160185 | D26: =PERCENTILE('Y0 Metered Data'!C$8:C$1048576,0.9) -> 182220 | G26: =PERCENTILE('Y0 Metered Data'!F$8:F$1048576,0.9) -> 167460 | J26: =PERCENTILE('Y0 Metered Data'!I$8:I$1048576,0.9) -> 132630 | M26: =PERCENTILE('Y0 Metered Data'!L$8:L$1048576,0.9) -> 158430
B27: Maximium | C27: =MAX('Y0 Metered Data'!O$8:O$1048576) -> 1112550 | D27: =MAX('Y0 Metered Data'!C$8:C$1048576) -> 1091250 | G27: =MAX('Y0 Metered Data'!F$8:F$1048576) -> 1161000 | J27: =MAX('Y0 Metered Data'!I$8:I$1048576) -> 1028400 | M27: =MAX('Y0 Metered Data'!L$8:L$1048576) -> 1169550

Sheet Y1 Sample Bill
A1: =Client -> Example Municipality
A2: Proposed Rate Scenario
A4: Quarterly Bill Calculation for FY2019 Average Commercial User
A6: Proposed Flat Charge | F6: =Yr1_Fixed -> 0
A7: Proposed Unit Charge | C7: =Y1_Rate -> 84.975 | D7: =CONCATENATE(Y1_billunit, " ",UOM) -> 15000 gal
B8: for | C8: =AvgUse -> 98255.06757 | D8: =UOM -> gal
D9: = Total Proposed Unit Charges | F9: =C7*C8/Y1_billunit -> 556.6149578
D11: Total Proposed Bill | F11: =SUM(F6,F9) -> 556.6149578
A13: Annual Bill Calculation for FY2019 Residential User
A15: Proposed Flat Charge | F15: =Y0_Annual_Rate*(1+'Balance Projection'!E7) -> 339.9
A16: Proposed Unit Charge | C16: 0 | D16: =CONCATENATE(Y1_billunit, " ",UOM) -> 15000 gal
B17: for | C17: 0 | D17: =UOM -> gal
D18: = Total Proposed Unit Charges | F18: =C16*C17/100 -> 0
D20: Total Proposed Bill | F20: =SUM(F15,F18) -> 339.9

Sheet Hide me (hidden)
A1: Used?
A2: TRUE | C2: 0
A3: FALSE | C3: 1
C4: 2
C5: 3
C6: 4
A8: Break-Even Point | D8: 1 | E8: 1 | F8: 1 | G8: 1 | H8: 1 | I8: 1 | J8: 1 | K8: 1 | L8: 1 | M8: 1 | N8: 1 | O8: 1 | P8: 1 | Q8: 1 | R8: 1 | S8: 1 | T8: 1 | U8: 1 | V8: 1 | W8: 1 | X8: 1 | Y8: 1 | Z8: 1 | AA8: 1 | AB8: 1 | AC8: 1
A10: Max Afford | D10: 0.02 | E10: 0.02 | F10: 0.02 | G10: 0.02 | H10: 0.02 | I10: 0.02 | J10: 0.02 | K10: 0.02 | L10: 0.02 | M10: 0.02 | N10: 0.02 | O10: 0.02 | P10: 0.02 | Q10: 0.02 | R10: 0.02 | S10: 0.02 | T10: 0.02 | U10: 0.02 | V10: 0.02 | W10: 0.02 | X10: 0.02 | Y10: 0.02 | Z10: 0.02 | AA10: 0.02 | AB10: 0.02 | AC10: 0.02
